Workbook

Sheet Example
A1: Пример определения цен ОФЗ 29010 в моделе стресс-тестирования на конец каждого анализируемого квартала с учетом предложенного алгоритма
A4: ISIN | B4: GRN | C4: Надбавка к ставке | D4: WAPRICE на 31.03.2021
A5: RU000A0JV4Q1 | B5: 29010RMFS | C5: =Bonds!J2/100 -> 0.016 | D5: =CalcData!Y3 -> 1104.95
C7: 1 | D7: =C7+1 -> 2 | E7: =D7+1 -> 3 | F7: 4 | G7: 5 | H7: 6 | I7: 7 | J7: 8 | K7: 9 | L7: 10 | M7: 11 | N7: 12 | O7: 13 | P7: 14 | Q7: 15 | R7: 16 | S7: 17 | T7: 18 | U7: 19 | V7: 20
B8: 2021-03-31 | C8: 2021-06-30 | D8: 2021-09-30 | E8: 2021-12-31 | F8: 2022-03-31 | G8: 2022-06-30 | H8: 2022-09-30 | I8: 2022-12-31 | J8: 2023-03-31 | K8: 2023-06-30 | L8: 2023-09-30 | M8: 2023-12-31 | N8: 2024-03-31 | O8: 2024-06-30 | P8: 2024-09-30 | Q8: 2024-12-31 | R8: 2025-03-31 | S8: 2025-06-30 | T8: 2025-09-30 | U8: 2025-12-31 | V8: 2026-03-31
A9: Цены согласно действующей методологии | B9: =D5 -> 1104.95 | C9: =LNPV(C8,C29:C56,$A29:$A56,C20:C22,0,0) -> 950.7994203 | D9: =LNPV(D8,D29:D56,$A29:$A56,D20:D22,0,0) -> 758.9289572 | E9: =LNPV(E8,E29:E56,$A29:$A56,E20:E22,0,0) -> 763.9881732 | F9: 848.4444319 | G9: 882.0347164 | H9: 936.2229734 | I9: 944.8860319 | J9: 975.9217773 | K9: 969.7804214 | L9: 991.8755818 | M9: 980.1246617 | N9: 998.4798021 | O9: 984.4429343 | P9: 1001.65356 | Q9: 986.9644381 | R9: 1003.663273 | S9: 988.6208008 | T9: 1005.481023 | U9: 990.397957 | V9: 1006.835729
A10: Ожидаемая доходность | B10: =XIRR(B28:B56,A28:A56,0.05) -> 0.05535306036
A11: Спред | B11: =sLIRR(B28:B56,A28:A56,B20:B22) -> -0.01592277735
A13: Цены согласно предлагаемому алгоритму | B13: =LNPV(B8,B61:B88,$A61:$A88,B20:B22,0,$B$15) -> 1104.949312 | C13: =LNPV(C8,C61:C88,$A61:$A88,C20:C22,0,$B$15) -> 1094.067303 | D13: =LNPV(D8,D61:D88,$A61:$A88,D20:D22,0,$B$15) -> 1108.085395 | E13: =LNPV(E8,E61:E88,$A61:$A88,E20:E22,0,$B$15) -> 1085.029839 | F13: 1107.430039 | G13: 1092.415476 | H13: 1117.208936 | I13: 1101.423882 | J13: 1120.544851 | K13: =LNPV(K8,K61:K88,$A61:$A88,K20:K22,0,$B$15) -> 1102.313705 | L13: 1119.673257 | M13: 1100.663525 | N13: 1116.997619 | O13: 1097.453307 | P13: 1113.618461 | Q13: 1094.15441 | R13: 1110.117029 | S13: 1090.618487 | T13: 1106.826481 | U13: 1087.388286 | V13: 1103.14852
A14: Ожидаемая доходность | B14: =XIRR(B60:B88,A60:A88,0.06) -> 0.06771732688
A15: Спред | B15: =sLIRR(B60:B88,A60:A88,B20:B22) -> -0.003394401073
A17: Значение вмененной разницы между КБД и будущими значениями RUONIA | B17: -0.005 | C17: =B17 -> -0.005 | D17: =C17 -> -0.005 | E17: -0.005 | F17: -0.005 | G17: -0.005 | H17: -0.005 | I17: -0.005 | J17: -0.005 | K17: -0.005 | L17: -0.005 | M17: -0.005 | N17: -0.005 | O17: -0.005 | P17: -0.005 | Q17: -0.005 | R17: -0.005 | S17: -0.005 | T17: -0.005 | U17: -0.005 | V17: -0.005
A19: Значения КБД согласно действующим сценариям
A20: 2Y | B20: =KBD(2,Statistics!L2:X2) -> 0.05726657149 | C20: =B20*(1+INDEX(Scenario!$B$3:$D$22,Example!C$7,1)/100) -> 0.05799385695 | D20: =C20*(1+INDEX(Scenario!$B$3:$D$22,Example!D$7,1)/100) -> 0.08365033927 | E20: =D20*(1+INDEX(Scenario!$B$3:$D$22,Example!E$7,1)/100) -> 0.08127466963 | F20: =E20*(1+INDEX(Scenario!$B$3:$D$22,Example!F$7,1)/100) -> 0.07244824051 | G20: =F20*(1+INDEX(Scenario!$B$3:$D$22,Example!G$7,1)/100) -> 0.06791298065 | H20: =G20*(1+INDEX(Scenario!$B$3:$D$22,Example!H$7,1)/100) -> 0.06510817455 | I20: =H20*(1+INDEX(Scenario!$B$3:$D$22,Example!I$7,1)/100) -> 0.06338931874 | J20: =I20*(1+INDEX(Scenario!$B$3:$D$22,Example!J$7,1)/100) -> 0.06233071712 | K20: =J20*(1+INDEX(Scenario!$B$3:$D$22,Example!K$7,1)/100) -> 0.06168247766 | L20: =K20*(1+INDEX(Scenario!$B$3:$D$22,Example!L$7,1)/100) -> 0.06128154156 | M20: =L20*(1+INDEX(Scenario!$B$3:$D$22,Example!M$7,1)/100) -> 0.06103641539 | N20: =M20*(1+INDEX(Scenario!$B$3:$D$22,Example!N$7,1)/100) -> 0.06088382435 | O20: =N20*(1+INDEX(Scenario!$B$3:$D$22,Example!O$7,1)/100) -> 0.06079249862 | P20: =O20*(1+INDEX(Scenario!$B$3:$D$22,Example!P$7,1)/100) -> 0.06073778537 | Q20: =P20*(1+INDEX(Scenario!$B$3:$D$22,Example!Q$7,1)/100) -> 0.0607013427 | R20: =Q20*(1+INDEX(Scenario!$B$3:$D$22,Example!R$7,1)/100) -> 0.06067706216 | S20: =R20*(1+INDEX(Scenario!$B$3:$D$22,Example!S$7,1)/100) -> 0.06066492675 | T20: =S20*(1+INDEX(Scenario!$B$3:$D$22,Example!T$7,1)/100) -> 0.06065886026 | U20: =T20*(1+INDEX(Scenario!$B$3:$D$22,Example!U$7,1)/100) -> 0.06065279437 | V20: =U20*(1+INDEX(Scenario!$B$3:$D$22,Example!V$7,1)/100) -> 0.06064672909
A21: 5Y | B21: =KBD(5,Statistics!L2:X2) -> 0.06744182146 | C21: =B21*(1+INDEX(Scenario!$B$3:$D$22,Example!C$7,2)/100) -> 0.06772507711 | D21: =C21*(1+INDEX(Scenario!$B$3:$D$22,Example!D$7,2)/100) -> 0.10538022 | E21: =D21*(1+INDEX(Scenario!$B$3:$D$22,Example!E$7,2)/100) -> 0.101575994 | F21: =E21*(1+INDEX(Scenario!$B$3:$D$22,Example!F$7,2)/100) -> 0.08840158762 | G21: =F21*(1+INDEX(Scenario!$B$3:$D$22,Example!G$7,2)/100) -> 0.08056920695 | H21: =G21*(1+INDEX(Scenario!$B$3:$D$22,Example!H$7,2)/100) -> 0.07517107009 | I21: =H21*(1+INDEX(Scenario!$B$3:$D$22,Example!I$7,2)/100) -> 0.0718560259 | J21: =I21*(1+INDEX(Scenario!$B$3:$D$22,Example!J$7,2)/100) -> 0.06982250036 | K21: =J21*(1+INDEX(Scenario!$B$3:$D$22,Example!K$7,2)/100) -> 0.06857267761 | L21: =K21*(1+INDEX(Scenario!$B$3:$D$22,Example!L$7,2)/100) -> 0.06780466362 | M21: =L21*(1+INDEX(Scenario!$B$3:$D$22,Example!M$7,2)/100) -> 0.06733003097 | N21: =M21*(1+INDEX(Scenario!$B$3:$D$22,Example!N$7,2)/100) -> 0.06704051184 | O21: =N21*(1+INDEX(Scenario!$B$3:$D$22,Example!O$7,2)/100) -> 0.06685950246 | P21: =O21*(1+INDEX(Scenario!$B$3:$D$22,Example!P$7,2)/100) -> 0.06675252725 | Q21: =P21*(1+INDEX(Scenario!$B$3:$D$22,Example!Q$7,2)/100) -> 0.06668577473 | R21: =Q21*(1+INDEX(Scenario!$B$3:$D$22,Example!R$7,2)/100) -> 0.06664576326 | S21: =R21*(1+INDEX(Scenario!$B$3:$D$22,Example!S$7,2)/100) -> 0.06661910496 | T21: =S21*(1+INDEX(Scenario!$B$3:$D$22,Example!T$7,2)/100) -> 0.06660578114 | U21: =T21*(1+INDEX(Scenario!$B$3:$D$22,Example!U$7,2)/100) -> 0.06659912056 | V21: =U21*(1+INDEX(Scenario!$B$3:$D$22,Example!V$7,2)/100) -> 0.06659246065
A22: 10Y | B22: =KBD(10,Statistics!L2:X2) -> 0.07231029596 | C22: =B22*(1+INDEX(Scenario!$B$3:$D$22,Example!C$7,3)/100) -> 0.07230306493 | D22: =C22*(1+INDEX(Scenario!$B$3:$D$22,Example!D$7,3)/100) -> 0.1029378735 | E22: =D22*(1+INDEX(Scenario!$B$3:$D$22,Example!E$7,3)/100) -> 0.09982914976 | F22: =E22*(1+INDEX(Scenario!$B$3:$D$22,Example!F$7,3)/100) -> 0.08907755033 | G22: =F22*(1+INDEX(Scenario!$B$3:$D$22,Example!G$7,3)/100) -> 0.08179991447 | H22: =G22*(1+INDEX(Scenario!$B$3:$D$22,Example!H$7,3)/100) -> 0.07645838005 | I22: =H22*(1+INDEX(Scenario!$B$3:$D$22,Example!I$7,3)/100) -> 0.07317831555 | J22: =I22*(1+INDEX(Scenario!$B$3:$D$22,Example!J$7,3)/100) -> 0.07116591187 | K22: =J22*(1+INDEX(Scenario!$B$3:$D$22,Example!K$7,3)/100) -> 0.06992762501 | L22: =K22*(1+INDEX(Scenario!$B$3:$D$22,Example!L$7,3)/100) -> 0.06916541389 | M22: =L22*(1+INDEX(Scenario!$B$3:$D$22,Example!M$7,3)/100) -> 0.06870200562 | N22: =M22*(1+INDEX(Scenario!$B$3:$D$22,Example!N$7,3)/100) -> 0.0684134572 | O22: =N22*(1+INDEX(Scenario!$B$3:$D$22,Example!O$7,3)/100) -> 0.06823558221 | P22: =O22*(1+INDEX(Scenario!$B$3:$D$22,Example!P$7,3)/100) -> 0.06812640528 | Q22: =P22*(1+INDEX(Scenario!$B$3:$D$22,Example!Q$7,3)/100) -> 0.06805827887 | R22: =Q22*(1+INDEX(Scenario!$B$3:$D$22,Example!R$7,3)/100) -> 0.0680174439 | S22: =R22*(1+INDEX(Scenario!$B$3:$D$22,Example!S$7,3)/100) -> 0.06799023693 | T22: =S22*(1+INDEX(Scenario!$B$3:$D$22,Example!T$7,3)/100) -> 0.06797663888 | U22: =T22*(1+INDEX(Scenario!$B$3:$D$22,Example!U$7,3)/100) -> 0.06796984122 | V22: =U22*(1+INDEX(Scenario!$B$3:$D$22,Example!V$7,3)/100) -> 0.06796304423
A24: Значения RUONIA согласно действующим сценариям | B24: =Statistics!K2/100 -> 0.0445 | C24: =B24*(1+INDEX(Scenario!$B$3:$E$22,Example!C$7,4)/100) -> 0.0449984 | D24: =C24*(1+INDEX(Scenario!$B$3:$E$22,Example!D$7,4)/100) -> 0.0472933184 | E24: =D24*(1+INDEX(Scenario!$B$3:$E$22,Example!E$7,4)/100) -> 0.04825337276 | F24: =E24*(1+INDEX(Scenario!$B$3:$E$22,Example!F$7,4)/100) -> 0.0484656876 | G24: =F24*(1+INDEX(Scenario!$B$3:$E$22,Example!G$7,4)/100) -> 0.04799557043 | H24: =G24*(1+INDEX(Scenario!$B$3:$E$22,Example!H$7,4)/100) -> 0.04811555936 | I24: =H24*(1+INDEX(Scenario!$B$3:$E$22,Example!I$7,4)/100) -> 0.04787017001 | J24: =I24*(1+INDEX(Scenario!$B$3:$E$22,Example!J$7,4)/100) -> 0.04780315177 | K24: =J24*(1+INDEX(Scenario!$B$3:$E$22,Example!K$7,4)/100) -> 0.04784139429 | L24: =K24*(1+INDEX(Scenario!$B$3:$E$22,Example!L$7,4)/100) -> 0.04773135908 | M24: =L24*(1+INDEX(Scenario!$B$3:$E$22,Example!M$7,4)/100) -> 0.04762157696 | N24: =M24*(1+INDEX(Scenario!$B$3:$E$22,Example!N$7,4)/100) -> 0.04765967422 | O24: =N24*(1+INDEX(Scenario!$B$3:$E$22,Example!O$7,4)/100) -> 0.04776929147 | P24: =O24*(1+INDEX(Scenario!$B$3:$E$22,Example!P$7,4)/100) -> 0.04790304549 | Q24: =P24*(1+INDEX(Scenario!$B$3:$E$22,Example!Q$7,4)/100) -> 0.04803238371 | R24: =Q24*(1+INDEX(Scenario!$B$3:$E$22,Example!R$7,4)/100) -> 0.04814766143 | S24: =R24*(1+INDEX(Scenario!$B$3:$E$22,Example!S$7,4)/100) -> 0.04823432722 | T24: =S24*(1+INDEX(Scenario!$B$3:$E$22,Example!T$7,4)/100) -> 0.04828738498 | U24: =T24*(1+INDEX(Scenario!$B$3:$E$22,Example!U$7,4)/100) -> 0.04829221372 | V24: =U24*(1+INDEX(Scenario!$B$3:$E$22,Example!V$7,4)/100) -> 0.04828255528
A27: Потоки согласно действующей методологии
A28: =B8 -> 2021-03-31 | B28: =-B9 -> -1104.95
A29: 2021-06-23 | B29: 28.72 | C29: =IF($A29>C$8,(INDEX($B$24:$V$24,1,MATCH($A29,$B$8:$V$8,1))+$C$5)*1000*182/365,0) -> 0 | D29: 0 | E29: 0 | F29: 0 | G29: 0 | H29: 0 | I29: 0 | J29: 0 | K29: 0 | L29: 0 | M29: 0 | N29: 0 | O29: 0 | P29: 0 | Q29: 0 | R29: 0 | S29: 0 | T29: 0 | U29: 0 | V29: 0 | X29: =B29*(A29-A$28)/(1+$B$10)^((A29-A$28)/365)/365 -> 6.528090463
A30: 2021-12-22 | B30: =IF($A30>B$8,(INDEX($B$24:$V$24,1,MATCH($A30,$B$8:$V$8,1))+$C$5)*1000*182/365,0) -> 31.55995602 | C30: 31.55995602 | D30: 31.55995602 | E30: 0 | F30: 0 | G30: 0 | H30: 0 | I30: 0 | J30: 0 | K30: 0 | L30: 0 | M30: 0 | N30: 0 | O30: 0 | P30: 0 | Q30: 0 | R30: 0 | S30: 0 | T30: 0 | U30: 0 | V30: 0 | X30: =B30*(A30-A$28)/(1+$B$10)^((A30-A$28)/365)/365 -> 22.11432222
A31: 2022-06-22 | B31: 32.14453464 | C31: 32.14453464 | D31: 32.14453464 | E31: 32.14453464 | F31: 32.14453464 | G31: 0 | H31: 0 | I31: 0 | J31: 0 | K31: 0 | L31: 0 | M31: 0 | N31: 0 | O31: 0 | P31: 0 | Q31: 0 | R31: 0 | S31: 0 | T31: 0 | U31: 0 | V31: 0 | X31: 36.92954262
A32: 2022-12-21 | B32: 31.96995015 | C32: 31.96995015 | D32: 31.96995015 | E32: 31.96995015 | F32: 31.96995015 | G32: 31.96995015 | H32: 31.96995015 | I32: 0 | J32: 0 | K32: 0 | L32: 0 | M32: 0 | N32: 0 | O32: 0 | P32: 0 | Q32: 0 | R32: 0 | S32: 0 | T32: 0 | U32: 0 | V32: 0 | X32: 50.28106239
A33: 2023-06-21 | B33: 31.81417431 | C33: 31.81417431 | D33: 31.81417431 | E33: 31.81417431 | F33: 31.81417431 | G33: 31.81417431 | H33: 31.81417431 | I33: 31.81417431 | J33: 31.81417431 | K33: 0 | L33: 0 | M33: 0 | N33: 0 | O33: 0 | P33: 0 | Q33: 0 | R33: 0 | S33: 0 | T33: 0 | U33: 0 | V33: 0 | X33: 62.78151435
A34: 2023-12-20 | B34: 31.77837631 | C34: 31.77837631 | D34: 31.77837631 | E34: 31.77837631 | F34: 31.77837631 | G34: 31.77837631 | H34: 31.77837631 | I34: 31.77837631 | J34: 31.77837631 | K34: 31.77837631 | L34: 31.77837631 | M34: 0 | N34: 0 | O34: 0 | P34: 0 | Q34: 0 | R34: 0 | S34: 0 | T34: 0 | U34: 0 | V34: 0 | X34: 74.73195685
A35: 2024-06-19 | B35: 31.74263208 | C35: 31.74263208 | D35: 31.74263208 | E35: 31.74263208 | F35: 31.74263208 | G35: 31.74263208 | H35: 31.74263208 | I35: 31.74263208 | J35: 31.74263208 | K35: 31.74263208 | L35: 31.74263208 | M35: 31.74263208 | N35: 31.74263208 | O35: 0 | P35: 0 | Q35: 0 | R35: 0 | S35: 0 | T35: 0 | U35: 0 | V35: 0 | X35: 85.97490177
A36: 2024-12-18 | B36: 31.86398432 | C36: 31.86398432 | D36: 31.86398432 | E36: 31.86398432 | F36: 31.86398432 | G36: 31.86398432 | H36: 31.86398432 | I36: 31.86398432 | J36: 31.86398432 | K36: 31.86398432 | L36: 31.86398432 | M36: 31.86398432 | N36: 31.86398432 | O36: 31.86398432 | P36: 31.86398432 | Q36: 0 | R36: 0 | S36: 0 | T36: 0 | U36: 0 | V36: 0 | X36: 97.01847543
A37: 2025-06-18 | B37: 31.98595721 | C37: 31.98595721 | D37: 31.98595721 | E37: 31.98595721 | F37: 31.98595721 | G37: 31.98595721 | H37: 31.98595721 | I37: 31.98595721 | J37: 31.98595721 | K37: 31.98595721 | L37: 31.98595721 | M37: 31.98595721 | N37: 31.98595721 | O37: 31.98595721 | P37: 31.98595721 | Q37: 31.98595721 | R37: 31.98595721 | S37: 0 | T37: 0 | U37: 0 | V37: 0 | X37: 107.5146966
A38: 2025-12-17 | B38: 32.05562758 | C38: 32.05562758 | D38: 32.05562758 | E38: 32.05562758 | F38: 32.05562758 | G38: 32.05562758 | H38: 32.05562758 | I38: 32.05562758 | J38: 32.05562758 | K38: 32.05562758 | L38: 32.05562758 | M38: 32.05562758 | N38: 32.05562758 | O38: 32.05562758 | P38: 32.05562758 | Q38: 32.05562758 | R38: 32.05562758 | S38: 32.05562758 | T38: 32.05562758 | U38: 0 | V38: 0 | X38: 117.2892898
A39: 2026-06-17 | B39: 32.05321934 | C39: 32.05321934 | D39: 32.05321934 | E39: 32.05321934 | F39: 32.05321934 | G39: 32.05321934 | H39: 32.05321934 | I39: 32.05321934 | J39: 32.05321934 | K39: 32.05321934 | L39: 32.05321934 | M39: 32.05321934 | N39: 32.05321934 | O39: 32.05321934 | P39: 32.05321934 | Q39: 32.05321934 | R39: 32.05321934 | S39: 32.05321934 | T39: 32.05321934 | U39: 32.05321934 | V39: 32.05321934 | X39: 126.2387513
A40: 2026-12-16 | B40: 32.05321934 | C40: 32.05321934 | D40: 32.05321934 | E40: 32.05321934 | F40: 32.05321934 | G40: 32.05321934 | H40: 32.05321934 | I40: 32.05321934 | J40: 32.05321934 | K40: 32.05321934 | L40: 32.05321934 | M40: 32.05321934 | N40: 32.05321934 | O40: 32.05321934 | P40: 32.05321934 | Q40: 32.05321934 | R40: 32.05321934 | S40: 32.05321934 | T40: 32.05321934 | U40: 32.05321934 | V40: 32.05321934 | X40: 134.6397247
A41: 2027-06-16 | B41: 32.05321934 | C41: 32.05321934 | D41: 32.05321934 | E41: 32.05321934 | F41: 32.05321934 | G41: 32.05321934 | H41: 32.05321934 | I41: 32.05321934 | J41: 32.05321934 | K41: 32.05321934 | L41: 32.05321934 | M41: 32.05321934 | N41: 32.05321934 | O41: 32.05321934 | P41: 32.05321934 | Q41: 32.05321934 | R41: 32.05321934 | S41: 32.05321934 | T41: 32.05321934 | U41: 32.05321934 | V41: 32.05321934 | X41: 142.5066483
A42: 2027-12-15 | B42: 32.05321934 | C42: 32.05321934 | D42: 32.05321934 | E42: 32.05321934 | F42: 32.05321934 | G42: 32.05321934 | H42: 32.05321934 | I42: 32.05321934 | J42: 32.05321934 | K42: 32.05321934 | L42: 32.05321934 | M42: =IF($A42>M$8,(INDEX($B$24:$V$24,1,MATCH($A42,$B$8:$V$8,1))+$C$5)*1000*182/365,0) -> 32.05321934 | N42: 32.05321934 | O42: 32.05321934 | P42: 32.05321934 | Q42: 32.05321934 | R42: 32.05321934 | S42: 32.05321934 | T42: 32.05321934 | U42: 32.05321934 | V42: 32.05321934 | X42: 149.8619312
A43: 2028-06-14 | B43: 32.05321934 | C43: 32.05321934 | D43: 32.05321934 | E43: 32.05321934 | F43: 32.05321934 | G43: 32.05321934 | H43: 32.05321934 | I43: 32.05321934 | J43: 32.05321934 | K43: 32.05321934 | L43: 32.05321934 | M43: 32.05321934 | N43: 32.05321934 | O43: 32.05321934 | P43: 32.05321934 | Q43: 32.05321934 | R43: 32.05321934 | S43: 32.05321934 | T43: 32.05321934 | U43: 32.05321934 | V43: 32.05321934 | X43: 156.7271694
A44: 2028-12-13 | B44: 32.05321934 | C44: 32.05321934 | D44: 32.05321934 | E44: 32.05321934 | F44: 32.05321934 | G44: 32.05321934 | H44: 32.05321934 | I44: 32.05321934 | J44: 32.05321934 | K44: 32.05321934 | L44: 32.05321934 | M44: 32.05321934 | N44: 32.05321934 | O44: 32.05321934 | P44: 32.05321934 | Q44: 32.05321934 | R44: 32.05321934 | S44: 32.05321934 | T44: 32.05321934 | U44: 32.05321934 | V44: 32.05321934 | X44: 163.123174
A45: 2029-06-13 | B45: 32.05321934 | C45: 32.05321934 | D45: 32.05321934 | E45: 32.05321934 | F45: 32.05321934 | G45: 32.05321934 | H45: 32.05321934 | I45: 32.05321934 | J45: 32.05321934 | K45: 32.05321934 | L45: 32.05321934 | M45: 32.05321934 | N45: 32.05321934 | O45: 32.05321934 | P45: 32.05321934 | Q45: 32.05321934 | R45: 32.05321934 | S45: 32.05321934 | T45: 32.05321934 | U45: 32.05321934 | V45: 32.05321934 | X45: 169.0699966
A46: 2029-12-12 | B46: 32.05321934 | C46: 32.05321934 | D46: 32.05321934 | E46: 32.05321934 | F46: 32.05321934 | G46: 32.05321934 | H46: 32.05321934 | I46: 32.05321934 | J46: 32.05321934 | K46: 32.05321934 | L46: 32.05321934 | M46: 32.05321934 | N46: 32.05321934 | O46: 32.05321934 | P46: 32.05321934 | Q46: 32.05321934 | R46: 32.05321934 | S46: 32.05321934 | T46: 32.05321934 | U46: 32.05321934 | V46: 32.05321934 | X46: 174.5869558
A47: 2030-06-12 | B47: 32.05321934 | C47: 32.05321934 | D47: 32.05321934 | E47: 32.05321934 | F47: 32.05321934 | G47: 32.05321934 | H47: 32.05321934 | I47: 32.05321934 | J47: 32.05321934 | K47: 32.05321934 | L47: 32.05321934 | M47: 32.05321934 | N47: 32.05321934 | O47: 32.05321934 | P47: 32.05321934 | Q47: 32.05321934 | R47: 32.05321934 | S47: 32.05321934 | T47: 32.05321934 | U47: 32.05321934 | V47: 32.05321934 | X47: 179.6926617
A48: 2030-12-11 | B48: 32.05321934 | C48: 32.05321934 | D48: 32.05321934 | E48: 32.05321934 | F48: 32.05321934 | G48: 32.05321934 | H48: 32.05321934 | I48: 32.05321934 | J48: 32.05321934 | K48: 32.05321934 | L48: 32.05321934 | M48: 32.05321934 | N48: 32.05321934 | O48: 32.05321934 | P48: 32.05321934 | Q48: 32.05321934 | R48: 32.05321934 | S48: 32.05321934 | T48: 32.05321934 | U48: 32.05321934 | V48: 32.05321934 | X48: 184.4050398
A49: 2031-06-11 | B49: 32.05321934 | C49: 32.05321934 | D49: 32.05321934 | E49: 32.05321934 | F49: 32.05321934 | G49: 32.05321934 | H49: 32.05321934 | I49: 32.05321934 | J49: 32.05321934 | K49: 32.05321934 | L49: 32.05321934 | M49: 32.05321934 | N49: 32.05321934 | O49: 32.05321934 | P49: 32.05321934 | Q49: 32.05321934 | R49: 32.05321934 | S49: 32.05321934 | T49: 32.05321934 | U49: 32.05321934 | V49: 32.05321934 | X49: 188.741354
A50: 2031-12-10 | B50: 32.05321934 | C50: 32.05321934 | D50: 32.05321934 | E50: 32.05321934 | F50: 32.05321934 | G50: 32.05321934 | H50: 32.05321934 | I50: 32.05321934 | J50: 32.05321934 | K50: 32.05321934 | L50: 32.05321934 | M50: 32.05321934 | N50: 32.05321934 | O50: 32.05321934 | P50: 32.05321934 | Q50: 32.05321934 | R50: 32.05321934 | S50: 32.05321934 | T50: 32.05321934 | U50: 32.05321934 | V50: 32.05321934 | X50: 192.7182298
A51: 2032-06-09 | B51: 32.05321934 | C51: 32.05321934 | D51: 32.05321934 | E51: 32.05321934 | F51: 32.05321934 | G51: 32.05321934 | H51: 32.05321934 | I51: 32.05321934 | J51: 32.05321934 | K51: 32.05321934 | L51: 32.05321934 | M51: 32.05321934 | N51: 32.05321934 | O51: 32.05321934 | P51: 32.05321934 | Q51: 32.05321934 | R51: 32.05321934 | S51: 32.05321934 | T51: 32.05321934 | U51: 32.05321934 | V51: 32.05321934 | X51: 196.3516752
A52: 2032-12-08 | B52: 32.05321934 | C52: 32.05321934 | D52: 32.05321934 | E52: 32.05321934 | F52: 32.05321934 | G52: 32.05321934 | H52: 32.05321934 | I52: 32.05321934 | J52: 32.05321934 | K52: 32.05321934 | L52: 32.05321934 | M52: 32.05321934 | N52: 32.05321934 | O52: 32.05321934 | P52: 32.05321934 | Q52: 32.05321934 | R52: 32.05321934 | S52: 32.05321934 | T52: 32.05321934 | U52: 32.05321934 | V52: 32.05321934 | X52: 199.6571022
A53: 2033-06-08 | B53: 32.05321934 | C53: 32.05321934 | D53: 32.05321934 | E53: 32.05321934 | F53: 32.05321934 | G53: 32.05321934 | H53: 32.05321934 | I53: 32.05321934 | J53: 32.05321934 | K53: 32.05321934 | L53: 32.05321934 | M53: 32.05321934 | N53: 32.05321934 | O53: 32.05321934 | P53: 32.05321934 | Q53: 32.05321934 | R53: 32.05321934 | S53: 32.05321934 | T53: 32.05321934 | U53: 32.05321934 | V53: 32.05321934 | X53: 202.6493472
A54: 2033-12-07 | B54: 32.05321934 | C54: 32.05321934 | D54: 32.05321934 | E54: 32.05321934 | F54: 32.05321934 | G54: 32.05321934 | H54: 32.05321934 | I54: 32.05321934 | J54: 32.05321934 | K54: 32.05321934 | L54: 32.05321934 | M54: 32.05321934 | N54: 32.05321934 | O54: 32.05321934 | P54: 32.05321934 | Q54: 32.05321934 | R54: 32.05321934 | S54: 32.05321934 | T54: 32.05321934 | U54: 32.05321934 | V54: 32.05321934 | X54: 205.3426903
A55: 2034-06-07 | B55: 32.05321934 | C55: 32.05321934 | D55: 32.05321934 | E55: 32.05321934 | F55: 32.05321934 | G55: 32.05321934 | H55: =IF($A55>H$8,(INDEX($B$24:$V$24,1,MATCH($A55,$B$8:$V$8,1))+$C$5)*1000*182/365,0) -> 32.05321934 | I55: 32.05321934 | J55: 32.05321934 | K55: 32.05321934 | L55: 32.05321934 | M55: 32.05321934 | N55: 32.05321934 | O55: 32.05321934 | P55: 32.05321934 | Q55: 32.05321934 | R55: 32.05321934 | S55: 32.05321934 | T55: 32.05321934 | U55: 32.05321934 | V55: 32.05321934 | X55: 207.7508748
A56: 2034-12-06 | B56: =IF($A56>B$8,(INDEX($B$24:$V$24,1,MATCH($A56,$B$8:$V$8,1))+$C$5)*1000*182/365,0)+1000 -> 1032.053219 | C56: =IF($A56>C$8,(INDEX($B$24:$V$24,1,MATCH($A56,$B$8:$V$8,1))+$C$5)*1000*182/365,0)+1000 -> 1032.053219 | D56: 1032.053219 | E56: 1032.053219 | F56: 1032.053219 | G56: 1032.053219 | H56: 1032.053219 | I56: 1032.053219 | J56: 1032.053219 | K56: 1032.053219 | L56: 1032.053219 | M56: 1032.053219 | N56: 1032.053219 | O56: 1032.053219 | P56: 1032.053219 | Q56: 1032.053219 | R56: 1032.053219 | S56: 1032.053219 | T56: 1032.053219 | U56: 1032.053219 | V56: 1032.053219 | X56: 6757.969649
X57: =SUM(X29:X56) -> 10393.19683
A59: Потоки согласно предлагаемому алгоритму (только для расчета цены)
A60: =B8 -> 2021-03-31 | B60: =-D5 -> -1104.95
A61: 2021-06-23 | B61: 28.72 | C61: =IF($A61>C$8,((KBD_ZN(($A61-C$8),C$20,C$21,C$22)+C$17)+$C$5)*1000*182/365,0) -> 0 | D61: =IF($A61>D$8,((KBD_ZN(($A61-D$8),D$20,D$21,D$22)+D$17)+$C$5)*1000*182/365,0) -> 0 | E61: 0 | F61: 0 | G61: 0 | H61: 0 | I61: 0 | J61: 0 | K61: 0 | L61: 0 | M61: 0 | N61: 0 | O61: 0 | P61: 0 | Q61: 0 | R61: 0 | S61: 0 | T61: 0 | U61: 0 | V61: 0
A62: 2021-12-22 | B62: =IF($A62>B$8,((KBD_ZN(($A62-B$8),B$20,B$21,B$22)+B$17)+$C$5)*1000*182/365,0) -> 34.0397699 | C62: 34.40241634 | D62: 47.19551163 | E62: 0 | F62: 0 | G62: 0 | H62: 0 | I62: 0 | J62: 0 | K62: 0 | L62: 0 | M62: 0 | N62: 0 | O62: 0 | P62: 0 | Q62: 0 | R62: 0 | S62: 0 | T62: 0 | U62: 0 | V62: 0
A63: 2022-06-22 | B63: 34.0397699 | C63: 34.40241634 | D63: 47.19551163 | E63: 46.01093116 | F63: 41.6098076 | G63: 0 | H63: 0 | I63: 0 | J63: 0 | K63: 0 | L63: 0 | M63: 0 | N63: 0 | O63: 0 | P63: 0 | Q63: 0 | R63: 0 | S63: 0 | T63: 0 | U63: 0 | V63: 0
A64: 2022-12-21 | B64: 34.0397699 | C64: 34.40241634 | D64: 47.19551163 | E64: 46.01093116 | F64: 41.6098076 | G64: 39.34839035 | H64: 37.9498295 | I64: 0 | J64: 0 | K64: 0 | L64: 0 | M64: 0 | N64: 0 | O64: 0 | P64: 0 | Q64: 0 | R64: 0 | S64: 0 | T64: 0 | U64: 0 | V64: 0
A65: 2023-06-21 | B65: 34.41937051 | C65: 34.40241634 | D65: 47.19551163 | E65: 46.01093116 | F65: 41.6098076 | G65: 39.34839035 | H65: 37.9498295 | I65: 37.0927562 | J65: 36.56490552 | K65: 0 | L65: 0 | M65: 0 | N65: 0 | O65: 0 | P65: 0 | Q65: 0 | R65: 0 | S65: 0 | T65: 0 | U65: 0 | V65: 0
A66: 2023-12-20 | B66: 35.26189871 | C66: 35.16833275 | D66: 47.99628631 | E66: 46.01093116 | F66: 41.6098076 | G66: 39.34839035 | H66: 37.9498295 | I66: 37.0927562 | J66: 36.56490552 | K66: 36.24167379 | L66: 36.04175497 | M66: 0 | N66: 0 | O66: 0 | P66: 0 | Q66: 0 | R66: 0 | S66: 0 | T66: 0 | U66: 0 | V66: 0
A67: 2024-06-19 | B67: 36.10442691 | C67: 35.97409451 | D67: 49.79555781 | E67: 47.59031777 | F67: 42.19770941 | G67: 39.34839035 | H67: 37.9498295 | I67: 37.0927562 | J67: 36.56490552 | K67: 36.24167379 | L67: 36.04175497 | M67: 35.91952768 | N67: 35.84344118 | O67: 0 | P67: 0 | Q67: 0 | R67: 0 | S67: 0 | T67: 0 | U67: 0 | V67: 0
A68: 2024-12-18 | B68: 36.9469551 | C68: 36.77985628 | D68: 51.5948293 | E68: 49.27130234 | F68: 43.51867399 | G68: 40.33876759 | H68: 38.31608228 | I68: 37.0927562 | J68: 36.56490552 | K68: 36.24167379 | L68: 36.04175497 | M68: 35.91952768 | N68: 35.84344118 | O68: 35.79790342 | P68: 35.77062175 | Q68: 0 | R68: 0 | S68: 0 | T68: 0 | U68: 0 | V68: 0
A69: 2025-06-18 | B69: 37.7894833 | C69: 37.58561804 | D69: 53.3941008 | E69: 50.95228692 | F69: 44.83963857 | G69: 41.38672489 | H69: 39.14930733 | I69: 37.74759051 | J69: 36.83757917 | K69: 36.24167379 | L69: 36.04175497 | M69: 35.91952768 | N69: 35.84344118 | O69: 35.79790342 | P69: 35.77062175 | Q69: 35.75245033 | R69: 35.74034332 | S69: 0 | T69: 0 | U69: 0 | V69: 0
A70: 2025-12-17 | B70: 38.6320115 | C70: 38.39137981 | D70: 55.19337229 | E70: 52.63327149 | F70: 46.16060315 | G70: 42.43468219 | H70: 39.98253239 | I70: 38.44864842 | J70: 37.4579117 | K70: 36.7777122 | L70: 36.27620515 | M70: 35.91952768 | N70: 35.84344118 | O70: 35.79790342 | P70: 35.77062175 | Q70: 35.75245033 | R70: 35.74034332 | S70: 35.73429224 | T70: 35.73126731 | U70: 0 | V70: 0
A71: 2026-06-17 | B71: 39.21715296 | C71: 39.19714157 | D71: 56.99264379 | E71: 54.31425607 | F71: 47.48156772 | G71: 43.4826395 | H71: 40.81575745 | I71: 39.14970634 | J71: 38.07824424 | K71: 37.3482326 | L71: 36.81633087 | M71: 36.40342686 | N71: 36.06192018 | O71: 35.79790342 | P71: 35.77062175 | Q71: 35.75245033 | R71: 35.74034332 | S71: 35.73429224 | T71: 35.73126731 | U71: 35.72824267 | V71: 35.72521834
A72: 2026-12-16 | B72: 39.4591121 | C72: 39.4659666 | D72: 57.97933086 | E72: 55.99524065 | F72: 48.8025323 | G72: 44.5305968 | H72: 41.6489825 | I72: 39.85076425 | J72: 38.69857678 | K72: 37.91875301 | L72: 37.3564566 | M72: 36.92454905 | N72: 36.57170449 | O72: 36.26437903 | P72: 35.98132716 | Q72: 35.75245033 | R72: 35.74034332 | S72: 35.73429224 | T72: 35.73126731 | U72: 35.72824267 | V72: 35.72521834
A73: 2027-06-16 | B73: 39.70107124 | C73: 39.69348879 | D73: 57.85794827 | E73: 56.05412184 | F73: 49.57884043 | G73: 45.57855411 | H73: 42.48220756 | I73: 40.55182217 | J73: 39.31890931 | K73: 38.48927341 | L73: 37.89658232 | M73: 37.44567124 | N73: 37.0814888 | O73: 36.76673739 | P73: 36.47935813 | Q73: 36.20713193 | R73: 35.94943586 | S73: 35.73429224 | T73: 35.73126731 | U73: 35.72824267 | V73: 35.72521834
A74: 2027-12-15 | B74: 39.94303039 | C74: 39.92101099 | D74: 57.73656568 | E74: 55.96730513 | F74: 49.61243522 | G74: 45.71562634 | H74: 42.99420867 | I74: 41.25288008 | J74: 39.93924185 | K74: 39.05979382 | L74: 38.43670805 | M74: 37.96679344 | N74: 37.59127311 | O74: 37.26909574 | P74: 36.9773891 | Q74: 36.7026532 | R74: 36.44365457 | S74: 36.18938411 | T74: 35.93689127 | U74: 35.72824267 | V74: 35.72521834
A75: 2028-06-14 | B75: 40.18498953 | C75: 40.14853318 | D75: 57.61518309 | E75: 55.88048842 | F75: 49.64603 | G75: =IF($A75>G$8,((KBD_ZN(($A75-G$8),G$20,G$21,G$22)+G$17)+$C$5)*1000*182/365,0) -> 45.77679148 | H75: 43.05818691 | I75: 41.37445095 | J75: 40.32841492 | K75: 39.63031422 | L75: 38.97683377 | M75: 38.48791563 | N75: 38.10105743 | O75: 37.77145409 | P75: 37.47542007 | Q75: 37.19817446 | R75: 36.93787329 | S75: 36.68240031 | T75: 36.42930654 | U75: 36.17732378 | V75: 35.93080118
A76: 2028-12-13 | B76: 40.42694867 | C76: 40.37605538 | D76: 57.49380049 | E76: 55.79367171 | F76: 49.67962479 | G76: 45.83795662 | H76: 43.12216514 | I76: 41.44016765 | J76: 40.39518136 | K76: 39.73912492 | L76: 39.32224896 | M76: 39.00903783 | N76: 38.61084174 | O76: 38.27381244 | P76: 37.97345105 | Q76: 37.69369572 | R76: 37.43209201 | S76: 37.17541651 | T76: 36.92172182 | U76: 36.66968982 | V76: 36.42311798
A77: 2029-06-13 | B77: 40.66890782 | C77: 40.60357758 | D77: 57.3724179 | E77: 55.706855 | F77: 49.71321957 | G77: 45.89912177 | H77: 43.18614338 | I77: 41.50588435 | J77: 40.46194779 | K77: 39.80646468 | L77: 39.38987712 | M77: 39.11953105 | N77: 38.9410947 | O77: 38.77617079 | P77: 38.47148202 | Q77: 38.18921699 | R77: 37.92631072 | S77: 37.6684327 | T77: 37.4141371 | U77: 37.16205585 | V77: 36.91543478
A78: 2029-12-12 | B78: 40.91086696 | C78: 40.83109977 | D78: 57.25103531 | E78: 55.62003829 | F78: 49.74681436 | G78: 45.96028691 | H78: 43.25012162 | I78: 41.57160105 | J78: 40.52871423 | K78: 39.87380444 | L78: 39.45750528 | M78: 39.18771706 | N78: 39.00932895 | O78: 38.88509632 | P78: 38.79714059 | Q78: 38.68473825 | R78: 38.42052944 | S78: 38.1614489 | T78: 37.90655237 | U78: 37.65442189 | V78: 37.40775158
A79: 2030-06-12 | B79: 41.1528261 | C79: 41.05862197 | D79: 57.12965272 | E79: 55.53322157 | F79: 49.78040915 | G79: 46.02145205 | H79: 43.31409986 | I79: 41.63731774 | J79: 40.59548067 | K79: 39.9411442 | L79: 39.52513344 | M79: 39.25590306 | N79: 39.07756319 | O79: 38.95348634 | P79: 38.86542119 | Q79: 38.79755975 | R79: 38.74386104 | S79: 38.65446509 | T79: 38.39896765 | U79: 38.14678792 | V79: 37.90006837
A80: 2030-12-11 | B80: 41.39478524 | C80: 41.28614416 | D80: 57.00827013 | E80: 55.44640486 | F80: 49.81400393 | G80: 46.08261719 | H80: 43.37807809 | I80: 41.70303444 | J80: 40.66224711 | K80: 40.00848396 | L80: 39.5927616 | M80: 39.32408906 | N80: 39.14579744 | O80: 39.02187636 | P80: 38.93370178 | Q80: 38.86577206 | R80: 38.81203243 | S80: 38.76462953 | T80: 38.723534 | U80: 38.63915396 | V80: 38.39238517
A81: 2031-06-11 | B81: 41.54102429 | C81: 41.51366636 | D81: 56.88688753 | E81: 55.35958815 | F81: 49.84759872 | G81: 46.14378234 | H81: 43.44205633 | I81: 41.76875114 | J81: 40.72901354 | K81: 40.07582372 | L81: 39.66038976 | M81: 39.39227506 | N81: 39.21403168 | O81: 39.09026638 | P81: 39.00198238 | Q81: 38.93398438 | R81: 38.88020382 | S81: 38.83277365 | T81: 38.79166449 | U81: 38.75389767 | V81: 38.71688661
A82: 2031-12-10 | B82: 41.54102429 | C82: 41.53741868 | D82: 56.81285749 | E82: 55.27277144 | F82: 49.8811935 | G82: 46.20494748 | H82: 43.50603457 | I82: 41.83446784 | J82: 40.79577998 | K82: 40.14316349 | L82: 39.72801792 | M82: 39.46046106 | N82: 39.28226593 | O82: 39.15865641 | P82: 39.07026298 | Q82: 39.0021967 | R82: 38.94837521 | S82: 38.90091777 | T82: 38.85979499 | U82: 38.82202135 | V82: 38.78500348
A83: 2032-06-09 | B83: 41.54102429 | C83: 41.53741868 | D83: 56.81285749 | E83: 55.26275413 | F83: 49.90168263 | G83: 46.26611262 | H83: 43.5700128 | I83: 41.90018454 | J83: 40.86254642 | K83: 40.21050325 | L83: 39.79564608 | M83: 39.52864706 | N83: 39.35050017 | O83: 39.22704643 | P83: 39.13854358 | Q83: 39.07040901 | R83: 39.0165466 | S83: 38.96906189 | T83: 38.92792548 | U83: 38.89014503 | V83: 38.85312035
A84: 2032-12-08 | B84: 41.54102429 | C84: 41.53741868 | D84: 56.81285749 | E84: 55.26275413 | F84: 49.90168263 | G84: 46.27283406 | H84: 43.60938403 | I84: 41.96590124 | J84: 40.92931285 | K84: 40.27784301 | L84: 39.86327424 | M84: 39.59683307 | N84: 39.41873442 | O84: 39.29543645 | P84: 39.20682418 | Q84: 39.13862133 | R84: 39.08471799 | S84: 39.03720602 | T84: 38.99605597 | U84: 38.95826871 | V84: 38.92123721
A85: 2033-06-08 | B85: 41.54102429 | C85: 41.53741868 | D85: 56.81285749 | E85: 55.26275413 | F85: 49.90168263 | G85: 46.27283406 | H85: 43.60938403 | I85: 41.97384501 | J85: 40.97039989 | K85: 40.34518277 | L85: 39.9309024 | M85: 39.66501907 | N85: 39.48696866 | O85: 39.36382647 | P85: 39.27510477 | Q85: 39.20683365 | R85: 39.15288938 | S85: 39.10535014 | T85: 39.06418646 | U85: 39.02639239 | V85: 38.98935408
A86: 2033-12-07 | B86: 41.54102429 | C86: 41.53741868 | D86: 56.81285749 | E86: 55.26275413 | F86: 49.90168263 | G86: 46.27283406 | H86: 43.60938403 | I86: 41.97384501 | J86: 40.97039989 | K86: 40.35295274 | L86: 39.97289131 | M86: 39.73320507 | N86: 39.55520291 | O86: 39.43221649 | P86: 39.34338537 | Q86: 39.27504597 | R86: 39.22106077 | S86: 39.17349426 | T86: 39.13231696 | U86: 39.09451607 | V86: 39.05747095
A87: 2034-06-07 | B87: 41.54102429 | C87: 41.53741868 | D87: 56.81285749 | E87: 55.26275413 | F87: 49.90168263 | G87: 46.27283406 | H87: 43.60938403 | I87: 41.97384501 | J87: 40.97039989 | K87: 40.35295274 | L87: 39.97289131 | M87: 39.74182198 | N87: 39.59794304 | O87: 39.50060652 | P87: 39.41166597 | Q87: 39.34325828 | R87: 39.28923216 | S87: 39.24163838 | T87: 39.20044745 | U87: 39.16263975 | V87: 39.12558781
A88: 2034-12-06 | B88: =IF($A88>B$8,((KBD_ZN(($A88-B$8),B$20,B$21,B$22)+B$17)+$C$5)*1000*182/365,0)+1000 -> 1041.541024 | C88: =IF($A88>C$8,((KBD_ZN(($A88-C$8),C$20,C$21,C$22)+C$17)+$C$5)*1000*182/365,0)+1000 -> 1041.537419 | D88: =IF($A88>D$8,((KBD_ZN(($A88-D$8),D$20,D$21,D$22)+D$17)+$C$5)*1000*182/365,0)+1000 -> 1056.812857 | E88: 1055.262754 | F88: 1049.901683 | G88: 1046.272834 | H88: 1043.609384 | I88: 1041.973845 | J88: 1040.9704 | K88: 1040.352953 | L88: 1039.972891 | M88: 1039.741822 | N88: 1039.597943 | O88: 1039.509249 | P88: 1039.45481 | Q88: 1039.411471 | R88: 1039.357404 | S88: 1039.309783 | T88: 1039.268578 | U88: 1039.230763 | V88: 1039.193705

Sheet Charts
I1: Динамика ставок
A5: Стоимость ОФЗ RUNIA формируется с учетом ожиданий рынка в отношении будущей динамики ставок, таким образом вмененное значение RUONIA может значительно отличаться от фактического значения.
A7: Дата | B7: RUONIA фактическая | C7: RUONIA вмененная ОФЗ 29006 | D7: RUONIA вмененная ОФЗ 29008 | E7: RUONIA вмененная ОФЗ 29010 | F7: Цена ОФЗ 29010 фактическая | G7: DCF ОФЗ 29010 (RUONIA фактическая)
A8: 2021-03-31 | B8: =INDEX(CalcData!E:E,MATCH(Charts!$A8,CalcData!$A:$A,0),1) -> 0.0445 | C8: =INDEX(CalcData!F:F,MATCH(Charts!$A8,CalcData!$A:$A,0),1) -> 0.05823455065 | D8: =INDEX(CalcData!G:G,MATCH(Charts!$A8,CalcData!$A:$A,0),1) -> 0.06416500811 | E8: =INDEX(CalcData!H:H,MATCH(Charts!$A8,CalcData!$A:$A,0),1) -> 0.06553696903 | F8: =INDEX(CalcData!Y:Y,MATCH(Charts!$A8,CalcData!$A:$A,0),1) -> 1104.95 | G8: =INDEX(CalcData!Z:Z,MATCH(Charts!$A8,CalcData!$A:$A,0),1) -> 924.9032394
A9: 2020-03-31 | B9: =INDEX(CalcData!E:E,MATCH(Charts!$A9,CalcData!$A:$A,0),1) -> 0.0624 | C9: =INDEX(CalcData!F:F,MATCH(Charts!$A9,CalcData!$A:$A,0),1) -> 0.0638024647 | D9: =INDEX(CalcData!G:G,MATCH(Charts!$A9,CalcData!$A:$A,0),1) -> 0.06569952491 | E9: =INDEX(CalcData!H:H,MATCH(Charts!$A9,CalcData!$A:$A,0),1) -> 0.06215687265 | F9: =INDEX(CalcData!Y:Y,MATCH(Charts!$A9,CalcData!$A:$A,0),1) -> 1121.73 | G9: =INDEX(CalcData!Z:Z,MATCH(Charts!$A9,CalcData!$A:$A,0),1) -> 1123.933291
A10: 2019-03-29 | B10: =INDEX(CalcData!E:E,MATCH(Charts!$A10,CalcData!$A:$A,0),1) -> 0.0781 | C10: =INDEX(CalcData!F:F,MATCH(Charts!$A10,CalcData!$A:$A,0),1) -> 0.07503460642 | D10: =INDEX(CalcData!G:G,MATCH(Charts!$A10,CalcData!$A:$A,0),1) -> 0.08083010987 | E10: =INDEX(CalcData!H:H,MATCH(Charts!$A10,CalcData!$A:$A,0),1) -> 0.07853578231 | F10: =INDEX(CalcData!Y:Y,MATCH(Charts!$A10,CalcData!$A:$A,0),1) -> 1121.13 | G10: =INDEX(CalcData!Z:Z,MATCH(Charts!$A10,CalcData!$A:$A,0),1) -> 1117.416218
A11: 2018-03-30 | B11: =INDEX(CalcData!E:E,MATCH(Charts!$A11,CalcData!$A:$A,0),1) -> 0.0719 | C11: =INDEX(CalcData!F:F,MATCH(Charts!$A11,CalcData!$A:$A,0),1) -> 0.06859333047 | D11: =INDEX(CalcData!G:G,MATCH(Charts!$A11,CalcData!$A:$A,0),1) -> 0.07306674761 | E11: =INDEX(CalcData!H:H,MATCH(Charts!$A11,CalcData!$A:$A,0),1) -> 0.07386950512 | F11: =INDEX(CalcData!Y:Y,MATCH(Charts!$A11,CalcData!$A:$A,0),1) -> 1191.99 | G11: =INDEX(CalcData!Z:Z,MATCH(Charts!$A11,CalcData!$A:$A,0),1) -> 1173.242286
I23: Динамика ставок
A27: Наименование показателя | B27: Интервал расчета
B28: Всего 2018- 2020 | C28: 2018 | D28: 2019 | E28: 2020 | F28: 2021 (с 01.01.2021 по 31.03.2021)
A29: Корреляция между изменениями цены ОФЗ 29010 и ставкой КБД в точке 5 лет (ориентир по уровню чуствительности цены ОФЗ) | B29: =_xlfn.COVARIANCE.P(CalcData!W64:W820,CalcData!X64:X820)/_xlfn.STDEV.P(CalcData!W64:W820)^2 -> -1.415062814 | C29: =_xlfn.COVARIANCE.P(CalcData!W567:W820,CalcData!X567:X820)/_xlfn.STDEV.P(CalcData!W567:W820)^2 -> -0.6696912458 | D29: =_xlfn.COVARIANCE.P(CalcData!W315:W566,CalcData!X315:X566)/_xlfn.STDEV.P(CalcData!W315:W566)^2 -> -2.511225058 | E29: =_xlfn.COVARIANCE.P(CalcData!W64:W314,CalcData!X64:X314)/_xlfn.STDEV.P(CalcData!W64:W314)^2 -> -1.61234144 | F29: =_xlfn.COVARIANCE.P(CalcData!W3:W63,CalcData!X3:X63)/_xlfn.STDEV.P(CalcData!W3:W63)^2 -> -0.09854114384
A30: Дюрация ОФЗ 29010 согласно действующей методологии и сценариев на 31.03.2021 | F30: =Example!X57/Example!B9 -> 9.406033601
I36: Динамика разницы между КБД и ожиданиями в отношении RUONIA на дату каждого купонного платежа
B37: 2018- 2020 | C37: 2020 | D37: 2019 | E37: 2018
A38: Средний вмененный спред ОФЗ 29006 | B38: =AVERAGE(CalcData!I64:I820) -> 0.000395882148 | C38: =AVERAGE(CalcData!I64:I314) -> 0.001299673907 | D38: =AVERAGE(CalcData!I315:I566) -> -0.001523455914 | E38: =AVERAGE(CalcData!I567:I820) -> 0.001406990258
A39: Средний вмененный спред ОФЗ 29008 | B39: =AVERAGE(CalcData!J64:J820) -> 0.002541800446 | C39: =AVERAGE(CalcData!J64:J314) -> 0.002941186844 | D39: =AVERAGE(CalcData!J315:J566) -> 0.0003596342703 | E39: =AVERAGE(CalcData!J567:J820) -> 0.004312114977
A40: Средний вмененный спред ОФЗ 29010 | B40: =AVERAGE(CalcData!K64:K820) -> 0.0007036010615 | C40: =AVERAGE(CalcData!K64:K314) -> 0.0003529094263 | D40: =AVERAGE(CalcData!K315:K566) -> -0.001754336609 | E40: =AVERAGE(CalcData!K567:K820) -> 0.0034887345
B41: =AVERAGE(B38:B40) -> 0.001213761219 | C41: 0.001531256726 | D41: -0.0009727194176 | E41: =AVERAGE(E38:E40) -> 0.003069279912
A43: Вмененная RUONIA (ожидания рынка в отношении будущих ставок) в большей степени определяется динамикой ставок КБД, а не фактическими значениями RUONIA
I63: Динамика цены ОФЗ 29010
A64: Дата | B64: RUONIA фактическая | C64: RUONIA вмененная ОФЗ 29010 | D64: Цена ОФЗ 29010 фактическая | E64: DCF ОФЗ 29010 (RUONIA фактическая) | F64: DCF ОФЗ 29010 (RUONIA = КБД в точке периода до даты потока)
A65: 2021-03-31 | B65: =INDEX(CalcData!E:E,MATCH(Charts!$A65,CalcData!$A:$A,0),1) -> 0.0445 | C65: =INDEX(CalcData!H:H,MATCH(Charts!$A65,CalcData!$A:$A,0),1) -> 0.06553696903 | D65: =INDEX(CalcData!Y:Y,MATCH(Charts!$A65,CalcData!$A:$A,0),1) -> 1104.95 | E65: =INDEX(CalcData!Z:Z,MATCH(Charts!$A65,CalcData!$A:$A,0),1) -> 924.9032394 | F65: =INDEX(CalcData!AA:AA,MATCH(Charts!$A65,CalcData!$A:$A,0),1) -> 1107.822986
A66: 2020-03-31 | B66: =INDEX(CalcData!E:E,MATCH(Charts!$A66,CalcData!$A:$A,0),1) -> 0.0624 | C66: =INDEX(CalcData!H:H,MATCH(Charts!$A66,CalcData!$A:$A,0),1) -> 0.06215687265 | D66: =INDEX(CalcData!Y:Y,MATCH(Charts!$A66,CalcData!$A:$A,0),1) -> 1121.73 | E66: =INDEX(CalcData!Z:Z,MATCH(Charts!$A66,CalcData!$A:$A,0),1) -> 1123.933291 | F66: =INDEX(CalcData!AA:AA,MATCH(Charts!$A66,CalcData!$A:$A,0),1) -> 1154.734414
A67: 2019-03-29 | B67: =INDEX(CalcData!E:E,MATCH(Charts!$A67,CalcData!$A:$A,0),1) -> 0.0781 | C67: =INDEX(CalcData!H:H,MATCH(Charts!$A67,CalcData!$A:$A,0),1) -> 0.07853578231 | D67: =INDEX(CalcData!Y:Y,MATCH(Charts!$A67,CalcData!$A:$A,0),1) -> 1121.13 | E67: =INDEX(CalcData!Z:Z,MATCH(Charts!$A67,CalcData!$A:$A,0),1) -> 1117.416218 | F67: =INDEX(CalcData!AA:AA,MATCH(Charts!$A67,CalcData!$A:$A,0),1) -> 1144.801781
A68: 2018-03-30 | B68: =INDEX(CalcData!E:E,MATCH(Charts!$A68,CalcData!$A:$A,0),1) -> 0.0719 | C68: =INDEX(CalcData!H:H,MATCH(Charts!$A68,CalcData!$A:$A,0),1) -> 0.07386950512 | D68: =INDEX(CalcData!Y:Y,MATCH(Charts!$A68,CalcData!$A:$A,0),1) -> 1191.99 | E68: =INDEX(CalcData!Z:Z,MATCH(Charts!$A68,CalcData!$A:$A,0),1) -> 1173.242286 | F68: =INDEX(CalcData!AA:AA,MATCH(Charts!$A68,CalcData!$A:$A,0),1) -> 1137.317595

Sheet CalcData
A1: Формулы находятся в первой строке (за исключением столбца дат), для пересчета необходимо протянуть до конца листа | E1: Дневные | L1: Среднее за 10 торговых дней
A2: TRADEDATE | B2: КБД 2Y | C2: КБД 5Y | D2: КБД 10Y | E2: RUONIA фактическая | F2: RUONIA вмененная ОФЗ 29006 | G2: RUONIA вмененная ОФЗ 29008 | H2: RUONIA вмененная ОФЗ 29010 | I2: Вмененный разница между КБД и RUONIA по ОФЗ 29006 | J2: Вмененный разница между КБД и RUONIA по ОФЗ 29008 | K2: Вмененный разница между КБД и RUONIA по ОФЗ 29010 | L2: КБД 2Y | M2: КБД 5Y | N2: КБД 10Y | O2: RUONIA фактическая | P2: RUONIA вмененная ОФЗ 29006 | Q2: RUONIA вмененная ОФЗ 29008 | R2: RUONIA вмененная ОФЗ 29010 | S2: Цена 29010RMFS (% от номинала) | T2: Вмененный разница между КБД и RUONIA по ОФЗ 29006 | U2: Вмененный разница между КБД и RUONIA по ОФЗ 29008 | V2: Вмененный разница между КБД и RUONIA по ОФЗ 29010 | W2: Изменение ОФЗ 5Y | X2: Изменение цены в процентах | Y2: Цена ОФЗ 29010 фактическая | Z2: DCF ОФЗ 29010 (RUONIA фактическая) | AA2: DCF ОФЗ 29010 (RUONIA = КБД в точке до даты потока) | AB2: Цена ОФЗ 29008 фактическая | AC2: DCF ОФЗ 29008 (RUONIA фактическая) | AD2: DCF ОФЗ 29008 (RUONIA = КБД в точке до даты потока) | AE2: Цена ОФЗ 29006 фактическая | AF2: DCF ОФЗ 29006 (RUONIA фактическая) | AG2: DCF ОФЗ 29008 (RUONIA = КБД в точке до даты потока)
A3: 2021-03-31 | B3: =KBD(2,Statistics!L2:X2) -> 0.05726657149 | C3: =KBD(5,Statistics!L2:X2) -> 0.06744182146 | D3: =KBD(10,Statistics!L2:X2) -> 0.07231029596 | E3: =Statistics!K2/100 -> 0.0445 | F3: =RUONIA_R($E3,$A3,Bonds!$D$8,Bonds!$K$7:$AF$7,Bonds!$K$8:$AF$8,$AE3,Bonds!$J$8/100,Statistics!$L2:$X2,Bonds!$I$8) -> 0.05823455065 | G3: =RUONIA_R($E3,$A3,Bonds!$D$5,Bonds!$K$4:$AO$4,Bonds!$K$5:$AO$5,$AB3,Bonds!$J$5/100,Statistics!$L2:$X2,Bonds!$I$5) -> 0.06416500811 | H3: =RUONIA_R($E3,$A3,Bonds!$D$2,Bonds!$K$1:$AY$1,Bonds!$K$2:$AY$2,$Y3,Bonds!$J$2/100,Statistics!$L2:$X2,Bonds!$I$2) -> 0.06553696903 | I3: =RUONIA_SPR2($A3,Bonds!$D$8,Bonds!$K$7:$AF$7,Bonds!$K$8:$AF$8,CalcData!$AE3,Bonds!$J$8/100,Statistics!$L2:$X2,Bonds!$I$8) -> 0.0002344941312 | J3: =RUONIA_SPR2($A3,Bonds!$D$5,Bonds!$K$4:$AO$4,Bonds!$K$5:$AO$5,CalcData!$AB3,Bonds!$J$5/100,Statistics!$L2:$X2,Bonds!$I$5) -> 0.001318578314 | K3: =RUONIA_SPR2($A3,Bonds!$D$2,Bonds!$K$1:$AY$1,Bonds!$K$2:$AY$2,CalcData!$Y3,Bonds!$J$2/100,Statistics!$L2:$X2,Bonds!$I$2) -> -0.0003356845563 | L3: =AVERAGE(B3:B12) -> 0.05764134777 | M3: 0.06790747771 | N3: 0.07262955286 | O3: 0.04309 | P3: 0.05874918054 | Q3: 0.06499237457 | R3: 0.06593969584 | S3: =AVERAGE(Statistics!B2:B11) -> 108.9903 | T3: =AVERAGE(I3:I12) -> 0.00021032671 | U3: =AVERAGE(J3:J12) -> 0.001618501401 | V3: -0.0003807449327 | W3: =M3-M4 -> 0.0001465649643 | X3: =S3/S4-1 -> -0.0002733440898 | Y3: =Statistics!H2 -> 1104.95 | Z3: =RUONIA_PR($E3,$A3,Bonds!$D$2,Bonds!$K$1:$AY$1,Bonds!$K$2:$AY$2,Bonds!$J$2/100,Statistics!$L2:$X2) -> 924.9032394 | AA3: =RUONIA_PR2($E3,$A3,Bonds!$D$2,Bonds!$K$1:$AY$1,Bonds!$K$2:$AY$2,Bonds!$J$2/100,Statistics!$L2:$X2,0) -> 1107.822986 | AB3: =Statistics!I2 -> 1085.98 | AC3: =RUONIA_PR($E3,$A3,Bonds!$D$5,Bonds!$K$4:$AO$4,Bonds!$K$5:$AO$5,Bonds!$J$5/100,Statistics!$L2:$X2) -> 960.0865091 | AD3: =RUONIA_PR2($E3,$A3,Bonds!$D$5,Bonds!$K$4:$AO$4,Bonds!$K$5:$AO$5,Bonds!$J$5/100,Statistics!$L2:$X2,0) -> 1077.538588 | AE3: =Statistics!J2 -> 1027.06 | AF3: =RUONIA_PR($E3,$A3,Bonds!$D$8,Bonds!$K$7:$AF$7,Bonds!$K$8:$AF$8,Bonds!$J$8/100,Statistics!$L2:$X2) -> 985.1680185 | AG3: =RUONIA_PR2($E3,$A3,Bonds!$D$8,Bonds!$K$7:$AF$7,Bonds!$K$8:$AF$8,Bonds!$J$8/100,Statistics!$L2:$X2,0) -> 1026.344766
A4: 2021-03-30 | B4: 0.05780541306 | C4: 0.06799196649 | D4: 0.07285114846 | E4: 0.0448 | F4: 0.05877225655 | G4: 0.06474588179 | H4: 0.06609598785 | I4: 0.0003325950124 | J4: 0.001435639432 | K4: -0.0002612319902 | L4: 0.05749535048 | M4: 0.06776091275 | N4: 0.07250401999 | O4: 0.04276 | P4: 0.05869514426 | Q4: 0.06496712931 | R4: 0.06586233454 | S4: 109.0201 | T4: 0.0002689378821 | U4: 0.001710810918 | V4: -0.0003384938282 | W4: 0.0002647274965 | X4: -0.000315438611 | Y4: 1105.3 | Z4: 923.617625 | AA4: 1107.528647 | AB4: 1085.97 | AC4: 958.5682296 | AD4: 1076.800037 | AE4: 1026.71 | AF4: 984.1465989 | AG4: 1025.696823
A5: 2021-03-29 | B5: 0.05701923413 | C5: 0.06718135074 | D5: 0.07164106768 | E5: 0.0445 | F5: 0.05765284583 | G5: 0.06376106661 | H5: 0.06477752689 | I5: -9.582574975e-05 | J5: 0.00122189931 | K5: -0.0006853653637 | L5: 0.05724917801 | M5: 0.06749618525 | N5: 0.07225027819 | O5: 0.04241 | P5: 0.05852518722 | Q5: 0.06480581161 | R5: 0.06566543384 | S5: 109.0545 | T5: 0.000299935369 | U5: 0.001765413183 | V5: -0.0003089251775 | W5: 0.0001780058815 | X5: -0.0003025094534 | Y5: 1104.35 | Z5: 930.3253259 | AA5: 1110.231905 | AB5: 1086.13 | AC5: 962.7023688 | AD5: 1078.299897 | AE5: 1025.48 | AF5: 985.3573652 | AG5: 1025.772316
A6: 2021-03-26 | B6: 0.0573580249 | C6: 0.06718545073 | D6: 0.07159490792 | E6: 0.0431 | F6: 0.05799756057 | G6: 0.0638557002 | H6: 0.06485208644 | I6: -6.9119239e-05 | J6: 0.001147497475 | K6: -0.0007237334208 | L6: 0.05706473086 | M6: 0.06731817937 | N6: 0.0721244942 | O6: 0.04209 | P6: 0.05849158789 | Q6: 0.06472698524 | R6: 0.06560201526 | S6: 109.0875 | T6: 0.0004053679415 | U6: 0.001826509622 | V6: -0.0002367469132 | W6: 0.0002256535683 | X6: -0.0003134115396 | Y6: 1103.98 | Z6: 917.4238659 | AA6: 1110.187079 | AB6: 1086.31 | AC6: 953.3987428 | AD6: 1078.961882 | AE6: 1025.62 | AF6: 980.2214453 | AG6: 1025.830633
A7: 2021-03-25 | B7: 0.05799855184 | C7: 0.06839207786 | D7: 0.07276816259 | E7: 0.0441 | F7: 0.05916294663 | G7: 0.06517648258 | H7: 0.06605404293 | I7: 0.0002185251883 | J7: 0.001421031454 | K7: -0.0005752222347 | L7: 0.05676838955 | M7: 0.0670925258 | N7: 0.07198333796 | O7: 0.04192 | P7: 0.05835445047 | Q7: 0.06461993761 | R7: 0.06551448393 | S7: 109.1217 | T7: 0.000513866971 | U7: 0.001935743878 | V7: -0.0001312770207 | W7: 0.0003797740773 | X7: -0.0005760885693 | Y7: 1104.23 | Z7: 917.2009362 | AA7: 1109.130386 | AB7: 1086.99 | AC7: 952.6376833 | AD7: 1077.931616 | AE7: 1025.43 | AF7: 979.6234255 | AG7: 1024.765463
A8: 2021-03-24 | B8: 0.05889997888 | C8: 0.06922338877 | D8: 0.07375152405 | E8: 0.0428 | F8: 0.05986126659 | G8: 0.06628904346 | H8: 0.06702375287 | I8: 2.950091959e-05 | J8: 0.00164923404 | K8: -0.0005034016422 | L8: 0.05636735365 | M8: 0.06671275173 | N8: 0.07168445441 | O8: 0.04162 | P8: 0.05806480098 | Q8: 0.06432707364 | R8: 0.06530727866 | S8: 109.1846 | T8: 0.0005886439929 | U8: 0.001995846078 | V8: -5.983189186e-06 | W8: 0.0005006708167 | X8: -0.0004623056142 | Y8: 1103.94 | Z8: 898.7151959 | AA8: 1108.204843 | AB8: 1087.83 | AC8: 938.6414375 | AD8: 1077.355037 | AE8: 1024.8 | AF8: 973.0194771 | AG8: 1024.710465
A9: 2021-03-23 | B9: 0.05933057588 | C9: 0.06965074682 | D9: 0.07390825409 | E9: 0.0422 | F9: 0.05998300951 | G9: 0.06666196675 | H9: 0.06727999048 | I9: -0.0003145039632 | J9: 0.001598762837 | K9: -0.0005879477809 | L9: 0.05577776905 | M9: 0.06621208091 | N9: 0.0712818765 | O9: 0.04143 | P9: 0.05763235995 | Q9: 0.06392573793 | R9: 0.06497619985 | S9: 109.2351 | T9: 0.0006942586014 | U9: 0.002091745089 | V9: 0.0001262766921 | W9: 0.0006230440123 | X9: -0.0004273355673 | Y9: 1104.2 | Z9: 892.0753613 | AA9: 1109.172817 | AB9: 1088.27 | AC9: 933.153689 | AD9: 1078.13205 | AE9: 1023.46 | AF9: 969.5513372 | AG9: 1024.413409
A10: 2021-03-22 | B10: 0.05770446731 | C10: 0.06791020664 | D10: 0.07301070129 | E10: 0.0424 | F10: 0.059140168 | G10: 0.06560739095 | H10: 0.06639723287 | I10: 0.0004313021581 | J10: 0.002044161442 | K10: -0.0001489689111 | L10: 0.05507057173 | M10: 0.0655890369 | N10: 0.07080481655 | O10: 0.04156 | P10: 0.05710011973 | Q10: 0.06342805838 | R10: 0.06455768641 | S10: 109.2818 | T10: 0.0008177199121 | U10: 0.002202338169 | V10: 0.0002711131365 | W10: 0.0004695082004 | X10: -0.0005021186848 | Y10: 1104.08 | Z10: 899.8025175 | AA10: 1105.348104 | AB10: 1089.27 | AC10: 941.2664076 | AD10: 1076.233496 | AE10: 1026.76 | AF10: 975.8336214 | AG10: 1025.447907
A11: 2021-03-19 | B11: 0.0566168789 | C11: 0.06746157221 | D11: 0.07246884021 | E11: 0.0414 | F11: 0.05852395514 | G11: 0.06513198889 | H11: 0.06586229548 | I11: 0.0006924788889 | J11: 0.002218510036 | K11: -6.428028937e-05 | L11: 0.05451286342 | M11: 0.0651195287 | N11: 0.07039869613 | O11: 0.04136 | P11: 0.05664628147 | Q11: 0.06302316054 | R11: 0.06422117083 | S11: 109.3367 | T11: 0.0008655831727 | U11: 0.002265823058 | V11: 0.0003786211622 | W11: 0.0004996521422 | X11: -0.0005283629433 | Y11: 1104.27 | Z11: 895.4803443 | AA11: 1104.818643 | AB11: 1088.64 | AC11: 937.0611666 | AD11: 1074.470131 | AE11: 1026.47 | AF11: 974.3063373 | AG11: 1024.360544
A12: 2021-03-18 | B12: 0.05641378126 | C12: 0.06663619542 | D12: 0.07199062638 | E12: 0.0411 | F12: 0.05816324594 | G12: 0.06452921641 | H12: 0.06551707352 | I12: 0.000643819753 | J12: 0.002129699674 | K12: 7.838686226e-05 | L12: 0.05403581946 | M12: 0.06461987655 | N12: 0.06995234343 | O12: 0.04129 | P12: 0.05617453458 | Q12: 0.06255736827 | R12: 0.06385426282 | S12: 109.3945 | T12: 0.0008453744936 | U12: 0.002260154801 | V12: 0.0004604920633 | W12: 0.0004018497532 | X12: -0.0007371532548 | Y12: 1104.43 | Z12: 895.4290034 | AA12: 1103.759038 | AB12: 1088.72 | AC12: 938.710011 | AD12: 1075.084195 | AE12: 1027.37 | AF12: 975.3525376 | AG12: 1025.40731
A13: 2021-03-17 | B13: 0.05580659867 | C13: 0.06597617182 | D13: 0.07105496728 | E13: 0.0412 | F13: 0.05769418789 | G13: 0.06391255551 | H13: 0.06476335609 | I13: 0.0008206058529 | J13: 0.002241673485 | K13: 8.682648893e-05 | L13: 0.05356679076 | M13: 0.0642180268 | N13: 0.06961907939 | O13: 0.04124 | P13: 0.05575039911 | Q13: 0.06222678265 | R13: 0.06362120041 | S13: 109.4752 | T13: 0.0008472556863 | U13: 0.002325150074 | V13: 0.0005995236881 | W13: 0.0002437963062 | X13: -0.0005067072519 | Y13: 1105.73 | Z13: 903.0902278 | AA13: 1104.983311 | AB13: 1090.19 | AC13: 944.3689268 | AD13: 1075.797818 | AE13: 1027.4 | AF13: 977.0640935 | AG13: 1024.895728
A14: 2021-03-16 | B14: 0.05534368836 | C14: 0.06534469152 | D14: 0.07031373042 | E14: 0.0413 | F14: 0.05707268613 | G14: 0.06313270473 | H14: 0.06412698079 | I14: 0.0006425698811 | J14: 0.001981662082 | K14: 3.445451699e-05 | L14: 0.05321868901 | M14: 0.0639742305 | N14: 0.06945547693 | O14: 0.04113 | P14: 0.05546199807 | Q14: 0.06203750517 | R14: 0.06353644761 | S14: 109.5307 | T14: 0.0008555919287 | U14: 0.002388532423 | V14: 0.000737858732 | W14: 0.0001709894897 | X14: -0.0003787457037 | Y14: 1106.53 | Z14: 909.4769976 | AA14: 1106.232573 | AB14: 1089.41 | AC14: 948.9221287 | AD14: 1076.658511 | AE14: 1027.25 | AF14: 979.0711616 | AG14: 1025.287223
A15: 2021-03-15 | B15: 0.05517476264 | C15: 0.06540129193 | D15: 0.07038322775 | E15: 0.0413 | F15: 0.05731685254 | G15: 0.0629728029 | H15: 0.06414334112 | I15: 0.0009584999756 | J15: 0.001832863698 | K15: 3.641727863e-05 | L15: 0.05287143924 | M15: 0.06380324101 | N15: 0.06944281171 | O15: 0.04106 | P15: 0.05521554043 | Q15: 0.0619452678 | R15: 0.06357961374 | S15: 109.5722 | T15: 0.0008985173415 | U15: 0.00250105655 | V15: 0.0009273960828 | W15: 0.0001438795828 | X15: -0.0004752595912 | Y15: 1105.44 | Z15: 908.3490824 | AA15: 1105.125794 | AB15: 1087.98 | AC15: 948.5535552 | AD15: 1076.188739 | AE15: 1027.62 | AF15: 978.6987859 | AG15: 1024.692397
A16: 2021-03-12 | B16: 0.05439461177 | C16: 0.06492891504 | D16: 0.0701833456 | E16: 0.0414 | F16: 0.05662618631 | G16: 0.0627852239 | H16: 0.06397677316 | I16: 0.001015871056 | J16: 0.002239840028 | K16: 0.0003309655046 | L16: 0.0525677809 | M16: 0.06365936142 | N16: 0.06946763759 | O16: 0.04111 | P16: 0.05496831885 | Q16: 0.06194989954 | R16: 0.06367603014 | S16: 109.6243 | T16: 0.0008979248643 | U16: 0.002673522936 | V16: 0.001133224621 | W16: 0.0001722732102 | X16: -0.0005743600216 | Y16: 1105.19 | Z16: 910.154642 | AA16: 1102.330868 | AB16: 1088.25 | AC16: 950.4979659 | AD16: 1073.822163 | AE16: 1026.87 | AF16: 980.3162701 | AG16: 1023.763997
A17: 2021-03-11 | B17: 0.05398819281 | C17: 0.06459433708 | D17: 0.06977932707 | E17: 0.0411 | F17: 0.05626645177 | G17: 0.06224784294 | H17: 0.0639819902 | I17: 0.0009662954071 | J17: 0.002022053459 | K17: 0.0006777160804 | L17: 0.05233504262 | M17: 0.06348708821 | N17: 0.06946225498 | O17: 0.04113 | P17: 0.05473103988 | Q17: 0.06187495348 | R17: 0.06375947102 | S17: 109.6873 | T17: 0.0008549254107 | U17: 0.00274768607 | V17: 0.001322848825 | W17: 0.000258752702 | X17: -0.0002880087205 | Y17: 1108.31 | Z17: 910.2410221 | AA17: 1102.443616 | AB17: 1087.16 | AC17: 950.7657467 | AD17: 1074.118648 | AE17: 1026.58 | AF17: 980.1832033 | AG17: 1023.623935
A18: 2021-03-10 | B18: 0.05300413292 | C18: 0.0642166806 | D18: 0.06972574493 | E18: 0.0409 | F18: 0.05553685631 | G18: 0.06227568634 | H18: 0.06371296483 | I18: 0.001085647005 | J18: 0.002608224151 | K18: 0.0008191971704 | L18: 0.05206801795 | M18: 0.06322833551 | N18: 0.06943033543 | O18: 0.04108 | P18: 0.0544192287 | Q18: 0.06176718244 | R18: 0.06377922864 | S18: 109.7189 | T18: 0.0007839273085 | U18: 0.002841683053 | V18: 0.001494200089 | W18: 0.0002006344123 | X18: -0.0004627870897 | Y18: 1106.78 | Z18: 909.1054848 | AA18: 1099.68165 | AB18: 1088.18 | AC18: 950.1393357 | AD18: 1071.336518 | AE18: 1026.29 | AF18: 981.4403219 | AG18: 1022.963403
A19: 2021-03-09 | B19: 0.05225860267 | C19: 0.0634203067 | D19: 0.06913765457 | E19: 0.0435 | F19: 0.05466060724 | G19: 0.06168517118 | H19: 0.06309485602 | I19: 0.0009201091431 | J19: 0.002704693634 | K19: 0.0008604166632 | L19: 0.05184730585 | M19: 0.0630277011 | N19: 0.06941307931 | O19: 0.04105 | P19: 0.05417882565 | Q19: 0.06168717368 | R19: 0.0638402729 | S19: 109.7697 | T19: 0.000735993534 | U19: 0.002921679617 | V19: 0.001671869693 | W19: 0.0001604230891 | X19: -0.0005517603066 | Y19: 1106.66 | Z19: 936.255924 | AA19: 1099.1775 | AB19: 1088.39 | AC19: 970.6390566 | AD19: 1070.876817 | AE19: 1026.25 | AF19: 991.998649 | AG19: 1023.426231
A20: 2021-03-05 | B20: 0.05212738423 | C20: 0.06321512463 | D20: 0.06894949709 | E20: 0.0404 | F20: 0.05460178542 | G20: 0.0615584126 | H20: 0.06303207705 | I20: 0.0009099347643 | J20: 0.00267901033 | K20: 0.0009261113458 | L20: 0.05168791931 | M20: 0.06286727801 | N20: 0.06944349388 | O20: 0.04076 | P20: 0.05400989775 | Q20: 0.06163005122 | R20: 0.06396771208 | S20: 109.8303 | T20: 0.0006991218025 | U20: 0.002971878725 | V20: 0.001865276103 | W20: 0.0001160785318 | X20: -0.000146568299 | Y20: 1106.89 | Z20: 910.0060343 | AA20: 1098.833449 | AB20: 1088.05 | AC20: 951.0435448 | AD20: 1070.702682 | AE20: 1025.89 | AF20: 982.3219032 | AG20: 1023.098511
A21: 2021-03-04 | B21: 0.05184643923 | C21: 0.06246505079 | D21: 0.06800531319 | E21: 0.0407 | F21: 0.05380648625 | G21: 0.06047406615 | H21: 0.0621932154 | I21: 0.0004903920978 | J21: 0.00216182747 | K21: 0.0007544287216 | L21: 0.0515908754 | M21: 0.06275119948 | N21: 0.06949928352 | O21: 0.04074 | P21: 0.05387276296 | Q21: 0.06160062602 | R21: 0.06407049177 | S21: 109.8464 | T21: 0.0006459822868 | U21: 0.00300979902 | V21: 0.001997640513 | W21: 0.0001189082154 | X21: -0.0002248088897 | Y21: 1107.68 | Z21: 919.8127952 | AA21: 1101.085714 | AB21: 1086.4 | AC21: 958.012787 | AD21: 1072.363888 | AE21: 1025.37 | AF21: 985.1282878 | AG21: 1023.864317
A22: 2021-03-03 | B22: 0.05172349434 | C22: 0.06261769789 | D22: 0.06865798602 | E22: 0.0406 | F22: 0.05392189129 | G22: 0.06122336023 | H22: 0.0631864494 | I22: 0.0006626316805 | J22: 0.002779652406 | K22: 0.001468703111 | L22: 0.05150074645 | M22: 0.06263229126 | N22: 0.06959009171 | O22: 0.04072 | P22: 0.05373009888 | Q22: 0.06161439823 | R22: 0.06422066767 | S22: 109.8711 | T22: 0.0005828240199 | U22: 0.003084768746 | V22: 0.002162962278 | W22: 4.598601928e-05 | X22: -8.190746095e-05 | Y22: 1110.14 | Z22: 913.3079277 | AA22: 1097.340827 | AB22: 1087.96 | AC22: 954.2123515 | AD22: 1069.933259 | AE22: 1025.69 | AF22: 984.785719 | AG22: 1023.655419
A23: 2021-03-02 | B23: 0.05232558114 | C23: 0.06353820876 | D23: 0.06941894268 | E23: 0.0401 | F23: 0.05481017748 | G23: 0.06201978076 | H23: 0.06391582815 | I23: 0.0009039682771 | J23: 0.002875496975 | K23: 0.001470176928 | L23: 0.05149042826 | M23: 0.06258630524 | N23: 0.06969513782 | O23: 0.04066 | P23: 0.05368838822 | Q23: 0.06164041726 | R23: 0.06436756763 | S23: 109.8801 | T23: 0.0005423589182 | U23: 0.003107469982 | V23: 0.002275439963 | W23: 0.0001986476557 | X23: -0.0003347983795 | Y23: 1108.91 | Z23: 902.3656124 | AA23: 1096.159791 | AB23: 1087.9 | AC23: 946.220178 | AD23: 1069.314052 | AE23: 1024.99 | AF23: 979.9077195 | AG23: 1022.219608
A24: 2021-03-01 | B24: 0.05187119068 | C24: 0.06363479662 | D24: 0.07018707818 | E24: 0.0406 | F24: 0.05460810969 | G24: 0.06221033099 | H24: 0.0645586421 | I24: 0.001071824009 | J24: 0.003106903344 | K24: 0.001929828024 | L24: 0.05133659384 | M24: 0.06238765759 | N24: 0.06971741033 | O24: 0.04056 | P24: 0.05350109409 | Q24: 0.06161972394 | R24: 0.06446070793 | S24: 109.9169 | T24: 0.0005011157906 | U24: 0.003216496312 | V24: 0.002451858675 | W24: 0.0002837929301 | X24: -0.0004783144417 | Y24: 1108.31 | Z24: 901.1634035 | AA24: 1091.624693 | AB24: 1085.43 | AC24: 945.8851423 | AD24: 1065.367726 | AE24: 1024.88 | AF24: 981.9231825 | AG24: 1021.593179
A25: 2021-02-26 | B25: 0.0521381792 | C25: 0.0639624961 | D25: 0.07063148655 | E25: 0.0418 | F25: 0.05484463679 | G25: 0.06301912032 | H25: 0.0651075051 | I25: 0.0009525752032 | J25: 0.003557527567 | K25: 0.002094702662 | L25: 0.05118048205 | M25: 0.06210386466 | N25: 0.06958359514 | O25: 0.04044 | P25: 0.05327567404 | Q25: 0.06148445529 | R25: 0.06441915993 | S25: 109.9695 | T25: 0.0004371434276 | U25: 0.003268341465 | V25: 0.002578270323 | W25: 0.0004067853617 | X25: -0.0004835365793 | Y25: 1107.97 | Z25: 907.0552071 | AA25: 1089.913295 | AB25: 1087.53 | AC25: 950.7719905 | AD25: 1064.601604 | AE25: 1023.94 | AF25: 983.9855052 | AG25: 1021.022352
A26: 2021-02-25 | B26: 0.052067229 | C26: 0.06320618294 | D26: 0.07012951952 | E26: 0.0416 | F26: 0.05425339656 | G26: 0.06203576329 | H26: 0.06481118198 | I26: 0.0005858765211 | J26: 0.002981471362 | K26: 0.002227207548 | L26: 0.05096100296 | M26: 0.0616970793 | N26: 0.06931539558 | O26: 0.04026 | P26: 0.05300577328 | Q26: 0.06119503254 | R26: 0.06424418246 | S26: 110.0227 | T26: 0.0004122537423 | U26: 0.003270697196 | V26: 0.002681725899 | W26: 0.0004360420231 | X26: -0.0004015739518 | Y26: 1109.12 | Z26: 908.4680923 | AA26: 1089.866631 | AB26: 1084.65 | AC26: 952.6611247 | AD26: 1065.393511 | AE26: 1024.29 | AF26: 985.5066143 | AG26: 1022.494255
A27: 2021-02-24 | B27: 0.05131794609 | C27: 0.06200681006 | D27: 0.06946013159 | E27: 0.0406 | F27: 0.05314834 | G27: 0.06117013257 | H27: 0.06417956638 | I27: 0.0002563143852 | J27: 0.002962023287 | K27: 0.002391228714 | L27: 0.0506138572 | M27: 0.06126103727 | N27: 0.06901921599 | O27: 0.04012 | P27: 0.05267723037 | Q27: 0.0609072187 | R27: 0.06402261506 | S27: 110.0669 | T27: 0.0004275340072 | U27: 0.003339806634 | V27: 0.002792758269 | W27: 0.0003928009383 | X27: -0.0003868875983 | Y27: 1109.1 | Z27: 904.3533961 | AA27: 1088.336431 | AB27: 1084.36 | AC27: 951.006037 | AD27: 1065.157521 | AE27: 1024.8 | AF27: 986.2623505 | AG27: 1024.012824
A28: 2021-02-22 | B28: 0.05079701191 | C28: 0.06221033648 | D28: 0.06955318368 | E28: 0.0406 | F28: 0.05313282579 | G28: 0.06147559876 | H28: 0.06432340748 | I28: 0.0006063092594 | J28: 0.003408189794 | K28: 0.002595893211 | L28: 0.0502813125 | M28: 0.06086823633 | N28: 0.06870558788 | O28: 0.04015 | P28: 0.05240793258 | Q28: 0.06061433428 | R28: 0.06378547412 | S28: 110.1095 | T28: 0.0004872960176 | U28: 0.003391653418 | V28: 0.002881691037 | W28: 0.000436354748 | X28: -0.0001171423798 | Y28: 1109.34 | Z28: 903.503704 | AA28: 1086.816716 | AB28: 1085.31 | AC28: 950.0522383 | AD28: 1063.227562 | AE28: 1024.01 | AF28: 985.5140385 | AG28: 1022.147654
A29: 2021-02-20 | B29: 0.05066473724 | C29: 0.06181607581 | D29: 0.06944180031 | E29: 0.0406 | F29: 0.05297132824 | G29: 0.06111394648 | H29: 0.06436924774 | I29: 0.0005513918275 | J29: 0.003206684715 | K29: 0.002794480765 | L29: 0.0499427029 | M29: 0.06043188159 | N29: 0.06836523243 | O29: 0.04025 | P29: 0.05215370752 | Q29: 0.06028179427 | R29: 0.06347635977 | S29: 110.1224 | T29: 0.0005739051889 | U29: 0.00342012366 | V29: 0.002920758115 | W29: 0.0004669980609 | X29: 4.540422931e-06 | Y29: 1110.04 | Z29: 903.6771001 | AA29: 1085.778519 | AB29: 1083.84 | AC29: 950.8313058 | AD29: 1063.04844 | AE29: 1024.51 | AF29: 986.5013761 | AG29: 1022.81595
A30: 2021-02-19 | B30: 0.05115694521 | C30: 0.06205433932 | D30: 0.06950739343 | E30: 0.0402 | F30: 0.05323043757 | G30: 0.0612641606 | H30: 0.06405987401 | I30: 0.000378539608 | J30: 0.003058213278 | K30: 0.002249755443 | L30: 0.04960406677 | M30: 0.05996488352 | N30: 0.06796605446 | O30: 0.03947 | P30: 0.05186339847 | Q30: 0.0599069641 | R30: 0.0630982349 | S30: 110.1219 | T30: 0.0006422297937 | U30: 0.003440475338 | V30: 0.002928687871 | W30: 0.0005004731779 | X30: -0.0002714435897 | Y30: 1106.29 | Z30: 899.3517639 | AA30: 1086.777725 | AB30: 1083.81 | AC30: 947.3792061 | AD30: 1064.00221 | AE30: 1023.93 | AF30: 983.9405881 | AG30: 1022.768291
A31: 2021-02-18 | B31: 0.05094514968 | C31: 0.06127596864 | D31: 0.06891339513 | E31: 0.0405 | F31: 0.05237984539 | G31: 0.06061178829 | H31: 0.06369497438 | I31: -0.000141190572 | J31: 0.002911524731 | K31: 0.002407646371 | L31: 0.04922061636 | M31: 0.05946441035 | N31: 0.06756273499 | O31: 0.03918 | P31: 0.05154899109 | Q31: 0.05952989367 | R31: 0.06275856499 | S31: 110.1518 | T31: 0.0007279208753 | U31: 0.003491265682 | V31: 0.002997990955 | W31: 0.0003451925918 | X31: -0.0002151113451 | Y31: 1107.94 | Z31: 906.0867889 | AA31: 1086.987567 | AB31: 1083.69 | AC31: 953.1096878 | AD31: 1064.78627 | AE31: 1023.4 | AF31: 986.911391 | AG31: 1023.833663
A32: 2021-02-17 | B32: 0.05162031242 | C32: 0.0621578377 | D32: 0.06970844709 | E32: 0.04 | F32: 0.05350478465 | G32: 0.06148355057 | H32: 0.06465544904 | I32: 0.0002579806638 | J32: 0.003006664767 | K32: 0.002593479962 | L32: 0.04889803923 | M32: 0.05911921775 | N32: 0.06731875758 | O32: 0.03913 | P32: 0.05141758998 | Q32: 0.05931203761 | R32: 0.06257318418 | S32: 110.1755 | T32: 0.0009153365535 | U32: 0.003587329609 | V32: 0.003096033424 | W32: 0.0003955149482 | X32: -0.0001107201621 | Y32: 1108.83 | Z32: 895.3282979 | AA32: 1086.371987 | AB32: 1083.72 | AC32: 944.7216496 | AD32: 1064.26691 | AE32: 1023.77 | AF32: 982.3684526 | AG32: 1022.97911
A33: 2021-02-16 | B33: 0.05078723697 | C33: 0.0615517322 | D33: 0.06964166778 | E33: 0.0391 | F33: 0.05293723621 | G33: 0.06181284749 | H33: 0.06484723107 | I33: 0.0004915370016 | J33: 0.00396576027 | K33: 0.003234364046 | L33: 0.0485030196 | M33: 0.05872370281 | N33: 0.06701318505 | O33: 0.03913 | P33: 0.05118648334 | Q33: 0.05903967876 | R33: 0.06230134162 | S33: 110.1877 | T33: 0.001072940457 | U33: 0.003689464235 | V33: 0.00316833851 | W33: 0.0003706676567 | X33: 0.0001615686317 | Y33: 1110.38 | Z33: 887.1499879 | AA33: 1082.337873 | AB33: 1087.51 | AC33: 940.2832038 | AD33: 1061.803572 | AE33: 1024.39 | AF33: 981.8993516 | AG33: 1022.880614
A34: 2021-02-15 | B34: 0.05031007284 | C34: 0.06079686732 | D34: 0.06884892632 | E34: 0.0394 | F34: 0.05235390917 | G34: 0.06085764457 | H34: 0.06414316216 | I34: 0.0004321003781 | J34: 0.003625354873 | K34: 0.003193944511 | L34: 0.04817062509 | M34: 0.05835303515 | N34: 0.06668248013 | O34: 0.03932 | P34: 0.05086815384 | Q34: 0.05869704157 | R34: 0.06196208117 | S34: 110.1699 | T34: 0.001170270712 | U34: 0.003679882143 | V34: 0.00315391303 | W34: 0.0003107302196 | X34: 0.0003377743395 | Y34: 1111.36 | Z34: 895.9073964 | AA34: 1083.548532 | AB34: 1086.14 | AC34: 946.672605 | AD34: 1062.576426 | AE34: 1024.79 | AF34: 984.9654112 | AG34: 1023.461581
A35: 2021-02-12 | B35: 0.04994338827 | C35: 0.05989464248 | D35: 0.06794949095 | E35: 0.04 | F35: 0.0521456292 | G35: 0.06012489276 | H35: 0.06335773038 | I35: 0.0007036783502 | J35: 0.003581084886 | K35: 0.003129258418 | L35: 0.04787059534 | M35: 0.05804230493 | N35: 0.06637323266 | O35: 0.03961 | P35: 0.05056781866 | Q35: 0.05839480513 | R35: 0.06161574098 | S35: 110.1327 | T35: 0.00124340594 | U35: 0.003667818743 | V35: 0.003096625927 | W35: 0.0002108651796 | X35: 0.0002533949474 | Y35: 1111.08 | Z35: 906.7891376 | AA35: 1083.71095 | AB35: 1086.86 | AC35: 955.6772868 | AD35: 1063.516947 | AE35: 1026.13 | AF35: 988.7608009 | AG35: 1023.96495
A36: 2021-02-11 | B36: 0.04859577142 | C36: 0.05884576271 | D36: 0.0671677236 | E36: 0.0402 | F36: 0.05096796748 | G36: 0.0591576249 | H36: 0.06259550797 | I36: 0.0007386791705 | J36: 0.003672565734 | K36: 0.003337531252 | L36: 0.04761822684 | M36: 0.05783143975 | N36: 0.06616613884 | O36: 0.04004 | P36: 0.05027894117 | Q36: 0.05818852409 | R36: 0.06137636081 | S36: 110.1048 | T36: 0.00127512098 | U36: 0.003673625153 | V36: 0.003063340104 | W36: 8.980181599e-05 | X36: 0.0002716332243 | Y36: 1111.33 | Z36: 914.4653965 | AA36: 1081.991895 | AB36: 1086.19 | AC36: 962.1311979 | AD36: 1062.15671 | AE36: 1026.3 | AF36: 993.0814706 | AG36: 1024.021219
A37: 2021-02-10 | B37: 0.04799249906 | C37: 0.05807880068 | D37: 0.06632385053 | E37: 0.0409 | F37: 0.05045536205 | G37: 0.0582412884 | H37: 0.06180815697 | I37: 0.0008539344887 | J37: 0.003480491128 | K37: 0.003280556391 | L37: 0.04751832068 | M37: 0.05774163793 | N37: 0.06606327818 | O37: 0.04029 | P37: 0.05013576496 | Q37: 0.05810820497 | R37: 0.06124654236 | S37: 110.0749 | T37: 0.001307422 | U37: 0.003678630456 | V37: 0.003020495597 | W37: -3.211230463e-06 | X37: 0.0002453477077 | Y37: 1111.15 | Z37: 926.5259773 | AA37: 1082.181903 | AB37: 1085.65 | AC37: 971.825756 | AD37: 1062.804854 | AE37: 1026.81 | AF37: 997.2945064 | AG37: 1024.172287
A38: 2021-02-09 | B38: 0.04741091585 | C38: 0.057846789 | D38: 0.06614962911 | E38: 0.0416 | F38: 0.05059057528 | G38: 0.05815019868 | H38: 0.06123226401 | I38: 0.001472400973 | J38: 0.003692892212 | K38: 0.002986563994 | L38: 0.04746821733 | M38: 0.05774484917 | N38: 0.06605146529 | O38: 0.04045 | P38: 0.0500667568 | Q38: 0.05811789913 | R38: 0.0611928791 | S38: 110.0479 | T38: 0.001363900511 | U38: 0.00369880733 | V38: 0.00297775427 | W38: 2.675188275e-05 | X38: 8.906006192e-05 | Y38: 1108.57 | Z38: 935.0016532 | AA38: 1082.165864 | AB38: 1085.79 | AC38: 977.0774366 | AD38: 1061.532661 | AE38: 1028.51 | AF38: 1000.711488 | AG38: 1023.957393
A39: 2021-02-08 | B39: 0.04727837596 | C39: 0.0571460952 | D39: 0.06545002068 | E39: 0.0328 | F39: 0.05006823767 | G39: 0.05736564477 | H39: 0.06058799899 | I39: 0.001234637875 | J39: 0.003410201501 | K39: 0.002873778326 | L39: 0.04744204027 | M39: 0.05771809728 | N39: 0.0660089087 | O39: 0.04064 | P39: 0.04992417297 | Q39: 0.05808431253 | R39: 0.06114919925 | S39: 110.0381 | T39: 0.001337423507 | U39: 0.003690190573 | V39: 0.002960439901 | W39: -0.0001075519232 | X39: 0.0001536067594 | Y39: 1108.1 | Z39: 861.5331071 | AA39: 1082.600554 | AB39: 1085.23 | AC39: 923.474789 | AD39: 1062.77515 | AE39: 1028.56 | AF39: 975.1334859 | AG39: 1024.740131
A40: 2021-02-05 | B40: 0.04732244117 | C40: 0.05704960754 | D40: 0.06547419865 | E40: 0.0373 | F40: 0.0500863638 | G40: 0.05749345628 | H40: 0.06066317494 | I40: 0.001235450424 | J40: 0.003566116718 | K40: 0.002942786283 | L40: 0.04746233353 | M40: 0.05782564921 | N40: 0.06606771315 | O40: 0.04163 | P40: 0.04989659767 | Q40: 0.05814481487 | R40: 0.06119218476 | S40: 110.0212 | T40: 0.001360054105 | U40: 0.003679893427 | V40: 0.002934912105 | W40: -0.0001096996528 | X40: 0.0002090943306 | Y40: 1107.07 | Z40: 899.8973584 | AA40: 1080.974882 | AB40: 1085.69 | AC40: 952.7603317 | AD40: 1062.214934 | AE40: 1028.38 | AF40: 988.8356573 | AG40: 1024.559127
A41: 2021-02-04 | B41: 0.04771937839 | C41: 0.05782404272 | D41: 0.06647362107 | E41: 0.04 | F41: 0.05106583429 | G41: 0.05843322767 | H41: 0.06184116632 | I41: 0.001732966209 | J41: 0.003872164002 | K41: 0.003388071054 | L41: 0.04744874241 | M41: 0.05793534886 | N41: 0.06614829055 | O41: 0.04217 | P41: 0.04981513993 | Q41: 0.05820620898 | R41: 0.06124076269 | S41: 109.9982 | T41: 0.001351199877 | U41: 0.003676521885 | V41: 0.002914763903 | W41: 7.594813337e-05 | X41: 8.546324717e-05 | Y41: 1108.11 | Z41: 915.5038568 | AA41: 1078.232324 | AB41: 1085.71 | AC41: 964.7648225 | AD41: 1060.30373 | AE41: 1028.81 | AF41: 994.6349221 | AG41: 1023.458008
A42: 2021-02-03 | B42: 0.0476701161 | C42: 0.05820268822 | D42: 0.06665272185 | E42: 0.04 | F42: 0.0511937182 | G42: 0.05875996212 | H42: 0.06193702335 | I42: 0.001834019702 | J42: 0.004028011022 | K42: 0.003316530824 | L42: 0.04735292191 | M42: 0.05785940073 | N42: 0.06600007758 | O42: 0.04252 | P42: 0.04957624155 | Q42: 0.05807064447 | R42: 0.06106798697 | S42: 109.9888 | T42: 0.001279485092 | U42: 0.00361930812 | V42: 0.002839986253 | W42: 0.0001494589206 | X42: 0.0001509472394 | Y42: 1107.84 | Z42: 914.6509121 | AA42: 1078.632867 | AB42: 1085.82 | AC42: 962.8928804 | AD42: 1059.425928 | AE42: 1028.16 | AF42: 993.6024749 | AG42: 1022.497969
A43: 2021-02-02 | B43: 0.04746329184 | C43: 0.05784505563 | D43: 0.06633461852 | E43: 0.041 | F43: 0.04975394127 | G43: 0.05838647555 | H43: 0.06145462664 | I43: 0.001464839549 | J43: 0.003869939352 | K43: 0.003090109253 | L43: 0.04728899092 | M43: 0.0577099418 | N43: 0.06579302722 | O43: 0.04283 | P43: 0.04927810314 | Q43: 0.05784235091 | R43: 0.06084590142 | S43: 109.9722 | T43: 0.001142605929 | U43: 0.003499989252 | V43: 0.002752098585 | W43: 0.0001402748002 | X43: 0.0003311023343 | Y43: 1106.39 | Z43: 925.9468062 | AA43: 1079.130193 | AB43: 1085.26 | AC43: 971.2096662 | AD43: 1059.874299 | AE43: 1061.33 | AF43: 1030.017918 | AG43: 1056.090397
A44: 2021-02-01 | B44: 0.04730977533 | C44: 0.05768956513 | D44: 0.06575645164 | E44: 0.0423 | F44: 0.04935055737 | G44: 0.05783528017 | H44: 0.06067976025 | I44: 0.001163452661 | J44: 0.003504720872 | K44: 0.002621073479 | L44: 0.04723971439 | M44: 0.057569667 | N44: 0.06562961185 | O44: 0.04303 | P44: 0.04911900006 | Q44: 0.05765568629 | R44: 0.06065063685 | S44: 109.9358 | T44: 0.001037709826 | U44: 0.003408401808 | V44: 0.002668172078 | W44: 8.111236153e-05 | X44: 0.0004049456144 | Y44: 1105.43 | Z44: 942.8694819 | AA44: 1082.247812 | AB44: 1084.2 | AC44: 982.2046731 | AD44: 1061.190106 | AE44: 1060.02 | AF44: 1034.798932 | AG44: 1055.858128
A45: 2021-01-29 | B45: 0.04741970331 | C45: 0.05778599069 | D45: 0.06587855274 | E45: 0.0443 | F45: 0.04925685426 | G45: 0.05806208235 | H45: 0.06096392869 | I45: 0.001020828745 | J45: 0.003639148985 | K45: 0.002796400187 | L45: 0.04722335081 | M45: 0.05748855464 | N45: 0.06555750414 | O45: 0.0431 | P45: 0.04904665372 | Q45: 0.05758556728 | R45: 0.06054365006 | S45: 109.8913 | T45: 0.0009873834343 | U45: 0.003382808548 | V45: 0.002610472088 | W45: 0.0001047942212 | X45: 0.0007412810685 | Y45: 1106.08 | Z45: 958.8779286 | AA45: 1081.377788 | AB45: 1084.33 | AC45: 994.0598124 | AD45: 1060.459582 | AE45: 1058.85 | AF45: 1041.129024 | AG45: 1055.200492
A46: 2021-01-28 | B46: 0.04759670978 | C46: 0.05794774455 | D46: 0.06613911697 | E46: 0.0427 | F46: 0.04953620538 | G46: 0.05835443376 | H46: 0.06129732345 | I46: 0.001061689373 | J46: 0.003722618771 | K46: 0.002909086177 | L46: 0.04720871484 | M46: 0.05738376042 | N46: 0.06544418342 | O46: 0.04292 | P46: 0.04900998219 | Q46: 0.05745456013 | R46: 0.06036002087 | S46: 109.8099 | T46: 0.0009681322485 | U46: 0.003310587133 | V46: 0.002497391474 | W46: 0.0002182406154 | X46: 0.0008759153361 | Y46: 1106.13 | Z46: 942.1138047 | AA46: 1080.473768 | AB46: 1084.57 | AC46: 981.9844961 | AD46: 1060.175204 | AE46: 1059.12 | AF46: 1034.69321 | AG46: 1055.326424
A47: 2021-01-27 | B47: 0.0474914656 | C47: 0.05811091299 | D47: 0.06620572165 | E47: 0.0425 | F47: 0.04976528048 | G47: 0.05833822992 | H47: 0.06127152441 | I47: 0.0014187196 | J47: 0.003682259866 | K47: 0.002853143121 | L47: 0.04711956416 | M47: 0.05716551981 | N47: 0.06522160333 | O47: 0.04289 | P47: 0.04886539649 | Q47: 0.05722780699 | R47: 0.06004220665 | S47: 109.7138 | T47: 0.0009166873625 | U47: 0.003235783252 | V47: 0.002347929705 | W47: 0.0002290773314 | X47: 0.001068462828 | Y47: 1106.24 | Z47: 940.7645331 | AA47: 1081.088863 | AB47: 1083.49 | AC47: 979.7634137 | AD47: 1059.374411 | AE47: 1059.39 | AF47: 1033.432647 | AG47: 1054.321207
A48: 2021-01-26 | B48: 0.04714914517 | C48: 0.05757927017 | D48: 0.06572406325 | E48: 0.0435 | F48: 0.04916473698 | G48: 0.05781433277 | H48: 0.06079546542 | I48: 0.001207630934 | J48: 0.003606724638 | K48: 0.00281342031 | L48: 0.0469960384 | M48: 0.05693644247 | N48: 0.06498488118 | O48: 0.04287 | P48: 0.04871241321 | Q48: 0.05700899704 | R48: 0.0596875301 | S48: 109.5967 | T48: 0.0008788455503 | U48: 0.00318638613 | V48: 0.002178174687 | W48: 0.0002321442284 | X48: 0.001192148809 | Y48: 1105.39 | Z48: 952.5315552 | AA48: 1080.524809 | AB48: 1083.32 | AC48: 989.3962594 | AD48: 1059.654414 | AE48: 1058.73 | AF48: 1038.476711 | AG48: 1054.412324
A49: 2021-01-25 | B49: 0.04748130857 | C49: 0.05822161443 | D49: 0.06603806512 | E49: 0.0427 | F49: 0.04979248464 | G49: 0.0579706681 | H49: 0.06101785413 | I49: 0.00146094385 | J49: 0.003307230047 | K49: 0.002618500361 | L49: 0.04687597213 | M49: 0.05670429825 | N49: 0.06473806569 | O49: 0.0427 | P49: 0.04861848557 | Q49: 0.0567789642 | R49: 0.05930235293 | S49: 109.4662 | T49: 0.0008800199164 | U49: 0.003119564228 | V49: 0.001978732557 | W49: 0.0003062614717 | X49: 0.0009564600372 | Y49: 1104.2 | Z49: 942.7183641 | AA49: 1081.116525 | AB49: 1081.41 | AC49: 981.4339154 | AD49: 1059.757777 | AE49: 1058.48 | AF49: 1033.151832 | AG49: 1053.262783
A50: 2021-01-22 | B50: 0.04718652998 | C50: 0.05814660406 | D50: 0.06627997267 | E50: 0.0427 | F50: 0.04927178648 | G50: 0.05810739745 | H50: 0.06114895421 | I50: 0.001146908152 | J50: 0.003532401299 | K50: 0.002741304265 | L50: 0.04668297746 | M50: 0.05639803677 | N50: 0.06447093323 | O50: 0.0427 | P50: 0.04845825963 | Q50: 0.05653722145 | R50: 0.05892459766 | S50: 109.3616 | T50: 0.000883997466 | U50: 0.003104584374 | V50: 0.001837268459 | W50: 0.0003666444642 | X50: 0.0008987456001 | Y50: 1102.56 | Z50: 940.1353035 | AA50: 1078.425542 | AB50: 1080.88 | AC50: 980.0514634 | AD50: 1057.763386 | AE50: 1056.65 | AF50: 1033.180688 | AG50: 1052.554136
A51: 2021-01-21 | B51: 0.04676117347 | C51: 0.05706456138 | D51: 0.06499149144 | E51: 0.0435 | F51: 0.04867685045 | G51: 0.05707758247 | H51: 0.06011340914 | I51: 0.001015818356 | J51: 0.003300026345 | K51: 0.002640294557 | L51: 0.04642225622 | M51: 0.05603139231 | N51: 0.06408790189 | O51: 0.0427 | P51: 0.04829632754 | Q51: 0.05620400452 | R51: 0.05842287162 | S51: 109.2634 | T51: 0.0009876738176 | U51: 0.003080315538 | V51: 0.00166030621 | W51: 0.0003065870366 | X51: 0.001038937242 | Y51: 1104.96 | Z51: 957.6866227 | AA51: 1081.554503 | AB51: 1081.9 | AC51: 992.6844921 | AD51: 1060.216204 | AE51: 1057.6 | AF51: 1039.089834 | AG51: 1053.967875
A52: 2021-01-20 | B52: 0.04703080618 | C52: 0.05670809901 | D52: 0.06458221824 | E52: 0.0431 | F52: 0.04821233408 | G52: 0.0564770266 | H52: 0.05971616787 | I52: 0.0004652280674 | J52: 0.00283482234 | K52: 0.002437654136 | L52: 0.04616809588 | M52: 0.05572480527 | N52: 0.06382440353 | O52: 0.04262 | P52: 0.0481272931 | Q52: 0.05595116483 | R52: 0.05804273079 | S52: 109.15 | T52: 0.00105665201 | U52: 0.003084533063 | V52: 0.001533269391 | W52: 0.0002911469849 | X52: 0.000765587967 | Y52: 1103.97 | Z52: 956.4087445 | AA52: 1082.32221 | AB52: 1080.45 | AC52: 992.45937 | AD52: 1061.80327 | AE52: 1056.47 | AF52: 1038.194015 | AG52: 1054.806865
A53: 2021-01-19 | B53: 0.04697052651 | C53: 0.05644230763 | D53: 0.06470046476 | E53: 0.043 | F53: 0.04816291052 | G53: 0.05651982927 | H53: 0.05950198097 | I53: 0.0004158785211 | J53: 0.002954064918 | K53: 0.002250844185 | L53: 0.04594672577 | M53: 0.05543365829 | N53: 0.06358625669 | O53: 0.04258 | P53: 0.04800301643 | Q53: 0.05573939503 | R53: 0.05772418758 | S53: 109.0665 | T53: 0.001132772484 | U53: 0.003105749818 | V53: 0.001444616179 | W53: 0.0002050096422 | X53: 0.0006339600761 | Y53: 1100.54 | Z53: 954.0384992 | AA53: 1080.557426 | AB53: 1080.52 | AC53: 991.5606252 | AD53: 1061.082494 | AE53: 1057.21 | AF53: 1038.749586 | AG53: 1055.722992
A54: 2021-01-18 | B54: 0.04714613953 | C54: 0.05687844151 | D54: 0.06503537455 | E54: 0.043 | F54: 0.04862709395 | G54: 0.05713409011 | H54: 0.05960989236 | I54: 0.0006601887446 | J54: 0.003248788273 | K54: 0.002044073585 | L54: 0.04575107525 | M54: 0.05522864865 | N54: 0.06336427863 | O54: 0.04255 | P54: 0.04792023071 | Q54: 0.05555584363 | R54: 0.05743991316 | S54: 108.9974 | T54: 0.001211997522 | U54: 0.003106013337 | V54: 0.001349917627 | W54: 0.0002162223817 | X54: 0.0004405714947 | Y54: 1098.77 | Z54: 951.6343358 | AA54: 1080.662952 | AB54: 1081.81 | AC54: 988.9699841 | AD54: 1060.470278 | AE54: 1057.36 | AF54: 1037.254267 | AG54: 1055.001131
A55: 2021-01-15 | B55: 0.04727334363 | C55: 0.05673804848 | D55: 0.06474534556 | E55: 0.0425 | F55: 0.04889013888 | G55: 0.05675201089 | H55: 0.05912763679 | I55: 0.0008283168865 | J55: 0.002916934834 | K55: 0.001665594041 | L55: 0.04560374598 | M55: 0.05501242627 | N55: 0.06312828248 | O55: 0.04252 | P55: 0.04780625089 | Q55: 0.05538214068 | R55: 0.0571511181 | S55: 108.9494 | T55: 0.001265070973 | U55: 0.003115358777 | V55: 0.00125276242 | W55: 0.0002139032547 | X55: 8.904008364e-05 | Y55: 1095.73 | Z55: 948.3317753 | AA55: 1080.965087 | AB55: 1080.48 | AC55: 986.8502536 | AD55: 1061.316959 | AE55: 1057.81 | AF55: 1034.990945 | AG55: 1054.852097
A56: 2021-01-14 | B56: 0.046705203 | C56: 0.0557653384 | D56: 0.06391331604 | E56: 0.0424 | F56: 0.04809034843 | G56: 0.05608690234 | H56: 0.05811918116 | I56: 0.0005472405133 | J56: 0.002974579961 | K56: 0.00141446849 | L56: 0.04547429369 | M56: 0.05479852301 | N56: 0.06289521074 | O56: 0.04247 | P56: 0.04763466581 | Q56: 0.0551482782 | R56: 0.05692748933 | S56: 108.9397 | T56: 0.001236455516 | U56: 0.003056764685 | V56: 0.001213535705 | W56: 9.133166002e-05 | X56: -0.0001459310031 | Y56: 1094.31 | Z56: 954.2744597 | AA56: 1081.709098 | AB56: 1081.7 | AC56: 991.4766996 | AD56: 1062.091734 | AE56: 1058.1 | AF56: 1037.751849 | AG56: 1056.143119
A57: 2021-01-13 | B57: 0.04625620795 | C57: 0.05582013967 | D57: 0.06383850019 | E57: 0.0423 | F57: 0.04823544769 | G57: 0.05615013035 | H57: 0.05772475897 | I57: 0.001040301478 | J57: 0.003188288651 | K57: 0.001155592939 | L57: 0.04544991837 | M57: 0.05470719135 | N57: 0.06276350814 | O57: 0.04247 | P57: 0.04759050638 | Q57: 0.05497608378 | R57: 0.05682120734 | S57: 108.9556 | T57: 0.001218257047 | U57: 0.002944839993 | V57: 0.001185231045 | W57: 7.213205894e-05 | X57: -0.0003440584771 | Y57: 1092.32 | Z57: 954.8550096 | AA57: 1082.02139 | AB57: 1082.02 | AC57: 990.7226922 | AD57: 1061.003435 | AE57: 1058.65 | AF57: 1037.416833 | AG57: 1054.928479
A58: 2021-01-12 | B58: 0.04594848244 | C58: 0.05525782789 | D58: 0.06325590838 | E58: 0.0418 | F58: 0.04822546054 | G58: 0.0555140044 | H58: 0.05694369374 | I58: 0.001219374595 | J58: 0.002938505616 | K58: 0.0008189990097 | L58: 0.04550484315 | M58: 0.05463505929 | N58: 0.06263774711 | O58: 0.04243 | P58: 0.04753876023 | Q58: 0.05478198798 | R58: 0.05675343054 | S58: 108.9931 | T58: 0.001119400301 | U58: 0.002768467938 | V58: 0.001163917378 | W58: -1.096510508e-05 | X58: -0.0006409139672 | Y58: 1090.13 | Z58: 954.7486459 | AA58: 1082.808326 | AB58: 1081.47 | AC58: 990.8906505 | AD58: 1062.061524 | AE58: 1060.22 | AF58: 1037.219826 | AG58: 1055.855204
A59: 2021-01-11 | B59: 0.04555136194 | C59: 0.05515899971 | D59: 0.06336674047 | E59: 0.0427 | F59: 0.04819022527 | G59: 0.05555324066 | H59: 0.05724030134 | I59: 0.001500719346 | J59: 0.003157431502 | K59: 0.001203859384 | L59: 0.04560776541 | M59: 0.0546460244 | N59: 0.06258331385 | O59: 0.04245 | P59: 0.04754703412 | Q59: 0.05466102674 | R59: 0.05680469513 | S59: 109.063 | T59: 0.00103301503 | U59: 0.002604262284 | V59: 0.001196161686 | W59: 4.206721763e-06 | X59: -0.0006102835528 | Y59: 1091.53 | Z59: 961.5850232 | AA59: 1080.771249 | AB59: 1081.45 | AC59: 996.5361717 | AD59: 1060.590701 | AE59: 1060.44 | AF59: 1040.779254 | AG59: 1055.065856
A60: 2021-01-08 | B60: 0.04457931752 | C60: 0.05448015942 | D60: 0.06244965927 | E60: 0.0427 | F60: 0.04765246558 | G60: 0.05477522815 | H60: 0.05613169389 | I60: 0.002183671668 | J60: 0.003289712945 | K60: 0.0009716817693 | L60: 0.0457772853 | M60: 0.05464181767 | N60: 0.06252760993 | O60: 0.04238 | P60: 0.04751514225 | Q60: 0.05456373441 | R60: 0.05686104795 | S60: 109.1296 | T60: 0.0008635002655 | U60: 0.002445873298 | V60: 0.001221127127 | W60: -2.254629831e-05 | X60: -0.0006538401663 | Y60: 1090.53 | Z60: 969.9014009 | AA60: 1081.80343 | AB60: 1081.4 | AC60: 1001.401272 | AD60: 1059.605559 | AE60: 1060.66 | AF60: 1042.896625 | AG60: 1052.827663
A61: 2021-01-06 | B61: 0.0442195701 | C61: 0.05399869102 | D61: 0.06235650781 | E61: 0.0427 | F61: 0.04698650607 | G61: 0.05454918548 | H61: 0.05631200075 | I61: 0.001705600279 | J61: 0.003342201593 | K61: 0.001369926375 | L61: 0.04600671522 | M61: 0.05466436397 | N61: 0.06252986783 | O61: 0.04239 | P61: 0.04749518244 | Q61: 0.05450456159 | R61: 0.05691318078 | S61: 109.201 | T61: 0.0006096061628 | U61: 0.002267616733 | V61: 0.001253960744 | W61: -5.427779887e-05 | X61: -0.000683592052 | Y61: 1091.25 | Z61: 968.9263333 | AA61: 1078.939215 | AB61: 1080.99 | AC61: 1002.403004 | AD61: 1058.823617 | AE61: 1059.86 | AF61: 1044.476319 | AG61: 1053.738835
A62: 2021-01-05 | B62: 0.04481710506 | C62: 0.05379662916 | D62: 0.06220074991 | E62: 0.0427 | F62: 0.04696956738 | G62: 0.05435932862 | H62: 0.05653073583 | I62: 0.001226432809 | J62: 0.003046989886 | K62: 0.001551122015 | L62: 0.04627015521 | M62: 0.05471864177 | N62: 0.06255905192 | O62: 0.04239 | P62: 0.0475275913 | Q62: 0.05447603904 | R62: 0.05697975875 | S62: 109.2757 | T62: 0.0003919362643 | U62: 0.00209659801 | V62: 0.001276262319 | W62: -8.77476331e-06 | X62: -0.0004628346519 | Y62: 1093.25 | Z62: 968.9124798 | AA62: 1079.305502 | AB62: 1080.88 | AC62: 1003.531084 | AD62: 1060.666026 | AE62: 1059.59 | AF62: 1044.279513 | AG62: 1055.192064
A63: 2021-01-04 | B63: 0.04501402132 | C63: 0.05439221121 | D63: 0.06248068412 | E63: 0.0427 | F63: 0.04733505332 | G63: 0.05468431531 | H63: 0.05665923678 | I63: 0.001208128902 | J63: 0.002956700105 | K63: 0.001303858665 | L63: 0.0464428961 | M63: 0.05472741654 | N63: 0.06252397367 | O63: 0.04239 | P63: 0.04750517542 | Q63: 0.05438752901 | R63: 0.05694735217 | S63: 109.3263 | T63: 0.0002009528489 | U63: 0.001927239035 | V63: 0.001260057752 | W63: 0.0001059233388 | X63: -0.0007348727272 | Y63: 1091.26 | Z63: 966.0636744 | AA63: 1079.566072 | AB63: 1080.47 | AC63: 1001.124222 | AD63: 1060.894274 | AE63: 1058.42 | AF63: 1041.817608 | AG63: 1054.092579
A64: 2020-12-30 | B64: 0.0456728469 | C64: 0.05471621769 | D64: 0.06267541306 | E64: 0.0427 | F64: 0.04748729578 | G64: 0.05539706057 | H64: 0.05672194176 | I64: 0.001190923253 | J64: 0.003342242674 | K64: 0.001072521511 | L64: 0.04656308126 | M64: 0.0546214932 | N64: 0.06241459995 | O64: 0.04243 | P64: 0.04737645092 | Q64: 0.0542139404 | R64: 0.05687532952 | S64: 109.4067 | T64: -2.554708891e-05 | U64: 0.001757933379 | V64: 0.001281918804 | W64: 0.0001141299245 | X64: -0.0008182924902 | Y64: 1090.97 | Z64: 965.4712074 | AA64: 1081.370748 | AB64: 1082.26 | AC64: 998.3820011 | AD64: 1060.180825 | AE64: 1057.08 | AF64: 1039.957079 | AG64: 1052.820375
A65: 2020-12-29 | B65: 0.04597882063 | C65: 0.05459901593 | D65: 0.06241462815 | E65: 0.042 | F65: 0.04717428801 | G65: 0.05441338615 | H65: 0.05689134906 | I65: 0.0005421623171 | J65: 0.002330993919 | K65: 0.001273326892 | L65: 0.0466211172 | M65: 0.05450736327 | N65: 0.06230779573 | O65: 0.04248 | P65: 0.0472582306 | Q65: 0.05401645148 | R65: 0.05682677456 | S65: 109.4963 | T65: -0.0002359112942 | U65: 0.001579576129 | V65: 0.001339387304 | W65: 0.0001072738121 | X65: -0.0006762775348 | Y65: 1092.08 | Z65: 958.7230088 | AA65: 1080.676934 | AB65: 1077.38 | AC65: 995.3436196 | AD65: 1061.975154 | AE65: 1055.46 | AF65: 1036.964726 | AG65: 1053.522064
A66: 2020-12-28 | B66: 0.04646144982 | C66: 0.0548520218 | D66: 0.06259629 | E66: 0.0424 | F66: 0.04764875417 | G66: 0.05436495807 | H66: 0.05705636124 | I66: 0.0003652558274 | J66: 0.00185533304 | K66: 0.001131421891 | L66: 0.04665346927 | M66: 0.05440008946 | N66: 0.06223753852 | O66: 0.04253 | P66: 0.04718724863 | Q66: 0.05394460062 | R66: 0.05676384904 | S66: 109.5704 | T66: -0.0003633749368 | U66: 0.001529398354 | V66: 0.001376803041 | W66: 0.0001413693619 | X66: -0.0006083707066 | Y66: 1093.22 | Z66: 962.1357603 | AA66: 1083.100737 | AB66: 1075.13 | AC66: 996.1701049 | AD66: 1062.886171 | AE66: 1056.01 | AF66: 1037.268829 | AG66: 1054.70582
A67: 2020-12-25 | B67: 0.04680545577 | C67: 0.05509881908 | D67: 0.06258088992 | E67: 0.0419 | F67: 0.0477179862 | G67: 0.05420917242 | H67: 0.05704699099 | I67: 5.173400988e-05 | J67: 0.001424568102 | K67: 0.0009424562689 | L67: 0.04659324388 | M67: 0.0542587201 | N67: 0.06214462931 | O67: 0.04246 | P67: 0.04706547382 | Q67: 0.05387569991 | R67: 0.05668405616 | S67: 109.6371 | T67: -0.0004370991181 | U67: 0.001547424383 | V67: 0.001447332162 | W67: 0.0001776788034 | X67: -0.0005351162032 | Y67: 1093.08 | Z67: 957.7286573 | AA67: 1084.658346 | AB67: 1072.97 | AC67: 991.844704 | AD67: 1063.581188 | AE67: 1054.65 | AF67: 1033.900485 | AG67: 1054.465494
A68: 2020-12-24 | B68: 0.04697770503 | C68: 0.05536747894 | D68: 0.06271157583 | E68: 0.042 | F68: 0.04830819946 | G68: 0.05430439201 | H68: 0.05745633966 | I68: 0.0003555218902 | J68: 0.00129644907 | K68: 0.001141442089 | L68: 0.04650807185 | M68: 0.05408104129 | N68: 0.06202550122 | O68: 0.04246 | P68: 0.04695625127 | Q68: 0.05378423981 | R68: 0.05657622398 | S68: 109.6958 | T68: -0.000467853457 | U68: 0.001575167747 | V68: 0.001517240422 | W68: 0.0001936094873 | X68: -0.0004555983008 | Y68: 1094.12 | Z68: 956.192062 | AA68: 1083.934098 | AB68: 1072.58 | AC68: 991.5632766 | AD68: 1064.043694 | AE68: 1055.23 | AF68: 1032.750673 | AG68: 1053.963094
A69: 2020-12-23 | B69: 0.04724656087 | C69: 0.0551169325 | D69: 0.06280970124 | E69: 0.042 | F69: 0.0478713065 | G69: 0.05458031731 | H69: 0.05780382954 | I69: -0.0001944282995 | J69: 0.001573541647 | K69: 0.001453513789 | L69: 0.04638414256 | M69: 0.05388743181 | N69: 0.06191763514 | O69: 0.04237 | P69: 0.04679850376 | Q69: 0.05369892676 | R69: 0.05644577514 | S69: 109.7458 | T69: -0.0005046917236 | U69: 0.001628705038 | V69: 0.00157902944 | W69: 0.0002037153975 | X69: -0.0003980344204 | Y69: 1095.19 | Z69: 954.2313203 | AA69: 1082.225713 | AB69: 1074.16 | AC69: 991.3138387 | AD69: 1063.797631 | AE69: 1054.48 | AF69: 1033.559146 | AG69: 1055.172794
A70: 2020-12-22 | B70: 0.04687361672 | C70: 0.05470562241 | D70: 0.06247223831 | E70: 0.0428 | F70: 0.04745286748 | G70: 0.05418350001 | H70: 0.0566530222 | I70: -0.0003552693594 | J70: 0.001507147292 | K70: 0.001300017947 | L70: 0.0462316661 | M70: 0.05368371641 | N70: 0.06176916894 | O70: 0.04222 | P70: 0.0466677889 | Q70: 0.05355433542 | R70: 0.05625864529 | S70: 109.7895 | T70: -0.0004965835761 | U70: 0.001642952357 | V70: 0.001608356992 | W70: 0.0001773544628 | X70: -0.0003232415206 | Y70: 1131.75 | Z70: 1001.186444 | AA70: 1119.497441 | AB70: 1073.83 | AC70: 998.757816 | AD70: 1063.890628 | AE70: 1054.3 | AF70: 1037.710162 | AG70: 1055.566716
A71: 2020-12-21 | B71: 0.04685396995 | C71: 0.05454146901 | D71: 0.06264834867 | E71: 0.0427 | F71: 0.04731059475 | G71: 0.05426396 | H71: 0.0569777805 | I71: -0.0004710987066 | J71: 0.001632014368 | K71: 0.001592942117 | L71: 0.04610829286 | M71: 0.05350636195 | N71: 0.06162475802 | O71: 0.04152 | P71: 0.04657880086 | Q71: 0.05341986187 | R71: 0.05615483499 | S71: 109.825 | T71: -0.000464747928 | U71: 0.001649528219 | V71: 0.001638982667 | W71: 0.0001307832824 | X71: -0.0002949277882 | Y71: 1132.91 | Z71: 998.4313626 | AA71: 1117.9065 | AB71: 1073.72 | AC71: 997.4540712 | AD71: 1062.956638 | AE71: 1054.32 | AF71: 1037.879384 | AG71: 1055.99986
A72: 2020-12-18 | B72: 0.04654451403 | C72: 0.0538843768 | D72: 0.06184996736 | E72: 0.0427 | F72: 0.04674540854 | G72: 0.05347422824 | H72: 0.05620666994 | I72: -0.0006834013444 | J72: 0.001353400135 | K72: 0.001389076352 | L72: 0.04596245095 | M72: 0.05337557866 | N72: 0.06146826728 | O72: 0.04089 | P72: 0.04655943816 | Q72: 0.05329358602 | R72: 0.05601421038 | S72: 109.8574 | T72: -0.0003544973401 | U72: 0.001651908598 | V72: 0.001633213547 | W72: 6.639426316e-05 | X72: -0.0003421447746 | Y72: 1132.05 | Z72: 1004.364433 | AA72: 1118.91834 | AB72: 1072.99 | AC72: 1001.774174 | AD72: 1064.044254 | AE72: 1053.95 | AF72: 1039.516701 | AG72: 1056.388255
A73: 2020-12-17 | B73: 0.04621587291 | C73: 0.05333297782 | D73: 0.06138694696 | E73: 0.0431 | F73: 0.04604780834 | G73: 0.05294842925 | H73: 0.05593901035 | I73: -0.001056870477 | J73: 0.001263643546 | K73: 0.001522469177 | L73: 0.04585017409 | M73: 0.0533091844 | N73: 0.06139825447 | O73: 0.04063 | P73: 0.04659619471 | Q73: 0.05328403222 | R73: 0.05595654899 | S73: 109.895 | T73: -0.0002259804871 | U73: 0.001716964329 | V73: 0.001649903681 | W73: -1.191925797e-05 | X73: -0.0002465382303 | Y73: 1133 | Z73: 1011.321707 | AA73: 1118.571205 | AB73: 1072.75 | AC73: 1007.525629 | AD73: 1064.381117 | AE73: 1053.15 | AF73: 1042.624742 | AG73: 1056.923595
A74: 2020-12-16 | B74: 0.04625320623 | C74: 0.05357491845 | D74: 0.06160737083 | E74: 0.0432 | F74: 0.04630509259 | G74: 0.05342217133 | H74: 0.05623639213 | I74: -0.0009127188007 | J74: 0.001558670166 | K74: 0.001647206513 | L74: 0.04578146232 | M74: 0.05332110366 | N74: 0.06139608294 | O74: 0.04034 | P74: 0.046740538 | Q74: 0.05332143648 | R74: 0.05594970317 | S74: 109.9221 | T74: -3.960707664e-05 | U74: 0.001765577222 | V74: 0.001657053825 | W74: 1.678207797e-05 | X74: -0.0003392161107 | Y74: 1134.21 | Z74: 1010.823459 | AA74: 1118.619558 | AB74: 1074.1 | AC74: 1006.472578 | AD74: 1063.788214 | AE74: 1053.14 | AF74: 1042.05798 | AG74: 1056.397477
A75: 2020-12-15 | B75: 0.04630234139 | C75: 0.05352627781 | D75: 0.06171205607 | E75: 0.0425 | F75: 0.04646446828 | G75: 0.05369487761 | H75: 0.05626209385 | I75: -0.0007324741089 | J75: 0.001829216171 | K75: 0.001647484265 | L75: 0.04572252561 | M75: 0.05330432158 | N75: 0.06138558974 | O75: 0.04004 | P75: 0.04688310895 | Q75: 0.05332362886 | R75: 0.0559555069 | S75: 109.9594 | T75: 0.0001446593881 | U75: 0.001790625431 | V75: 0.001684380607 | W75: 6.372472453e-06 | X75: -0.0003863569629 | Y75: 1133.72 | Z75: 1003.526399 | AA75: 1118.134297 | AB75: 1075.21 | AC75: 1001.163853 | AD75: 1063.111037 | AE75: 1053.85 | AF75: 1039.701594 | AG75: 1056.464056
A76: 2020-12-14 | B76: 0.04585919592 | C76: 0.05343832818 | D76: 0.06166719793 | E76: 0.0417 | F76: 0.04643100603 | G76: 0.05367595094 | H76: 0.0562584324 | I76: -0.0003719859854 | J76: 0.002035593331 | K76: 0.001836713106 | L76: 0.04565526564 | M76: 0.05329794911 | N76: 0.06137080373 | O76: 0.03985 | P76: 0.04702654394 | Q76: 0.05329760593 | R76: 0.05596797815 | S76: 110.0019 | T76: 0.0003283479315 | U76: 0.001784748036 | V76: 0.001717338481 | W76: 8.010420023e-06 | X76: -0.0001681506339 | Y76: 1134.08 | Z76: 996.3035442 | AA76: 1116.697921 | AB76: 1075.41 | AC76: 996.1660358 | AD76: 1061.940632 | AE76: 1054.08 | AF76: 1037.187271 | AG76: 1055.408229
A77: 2020-12-11 | B77: 0.04595373545 | C77: 0.05332203105 | D77: 0.06138960899 | E77: 0.0419 | F77: 0.04662576078 | G77: 0.05329457144 | H77: 0.05596866924 | I77: -0.000255809379 | J77: 0.001702001741 | K77: 0.001641538862 | L77: 0.04562978482 | M77: 0.05328993869 | N77: 0.06135375584 | O77: 0.03975 | P77: 0.04716207406 | Q77: 0.0532306352 | R77: 0.05595788885 | S77: 110.0204 | T77: 0.0004628059755 | U77: 0.001719952068 | V77: 0.001711873464 | W77: 1.057158501e-05 | X77: -0.000199014379 | Y77: 1133 | Z77: 999.7639417 | AA77: 1117.453955 | AB77: 1073.93 | AC77: 998.5239532 | AD77: 1062.666634 | AE77: 1054.4 | AF77: 1037.534443 | AG77: 1055.312947
A78: 2020-12-10 | B78: 0.04573841208 | C78: 0.05343138406 | D78: 0.06163291506 | E78: 0.0411 | F78: 0.04673072434 | G78: 0.05345126144 | H78: 0.05615185121 | I78: -1.286077613e-05 | J78: 0.001831821985 | K78: 0.001759332268 | L78: 0.04556569757 | M78: 0.0532793671 | N78: 0.06135964934 | O78: 0.03959 | P78: 0.04726370285 | Q78: 0.05319308515 | R78: 0.05596972331 | S78: 110.0423 | T78: 0.0005951261361 | U78: 0.00169596684 | V78: 0.001731879338 | W78: 3.056001819e-05 | X78: -0.0001508283292 | Y78: 1133.13 | Z78: 990.7415585 | AA78: 1116.486959 | AB78: 1073.25 | AC78: 991.5684765 | AD78: 1061.135771 | AE78: 1054.64 | AF78: 1034.542459 | AG78: 1054.685904
A79: 2020-12-09 | B79: 0.04572179627 | C79: 0.05307977852 | D79: 0.06132503921 | E79: 0.0405 | F79: 0.04656415791 | G79: 0.05313440397 | H79: 0.05593253104 | I79: -0.0001133468244 | J79: 0.001716014832 | K79: 0.001746789308 | L79: 0.04553585688 | M79: 0.05324880709 | N79: 0.06133576934 | O79: 0.03955 | P79: 0.04732633772 | Q79: 0.05314809979 | R79: 0.05595502701 | S79: 110.0589 | T79: 0.0006660337753 | U79: 0.001666268897 | V79: 0.001731706854 | W79: 2.019406595e-05 | X79: -0.0001099290458 | Y79: 1133.53 | Z79: 987.3146501 | AA79: 1116.980063 | AB79: 1073.1 | AC79: 989.4565218 | AD79: 1061.739476 | AE79: 1055.02 | AF79: 1033.370511 | AG79: 1055.424656
A80: 2020-12-08 | B80: 0.04563988439 | C80: 0.05293207778 | D80: 0.06102812911 | E80: 0.0358 | F80: 0.04656298708 | G80: 0.0528387645 | H80: 0.05561491926 | I80: -3.691287841e-05 | J80: 0.001572905915 | K80: 0.001606274703 | L80: 0.0455021589 | M80: 0.05322861302 | N80: 0.06133089843 | O80: 0.03956 | P80: 0.04739318183 | Q80: 0.05312061324 | R80: 0.05595797599 | S80: 110.071 | T80: 0.0007457764735 | U80: 0.001649701328 | V80: 0.001742177524 | W80: 2.346545298e-05 | X80: -9.356720896e-05 | Y80: 1132.47 | Z80: 944.5055894 | AA80: 1117.232871 | AB80: 1072.89 | AC80: 960.0085367 | AD80: 1062.469531 | AE80: 1055.07 | AF80: 1016.645595 | AG80: 1055.201781
A81: 2020-12-07 | B81: 0.04539555079 | C81: 0.05323363618 | D81: 0.06108344129 | E81: 0.0364 | F81: 0.04711696772 | G81: 0.05300120148 | H81: 0.05557153439 | I81: 0.0006314071724 | J81: 0.001655818155 | K81: 0.001535250913 | L81: 0.04547827323 | M81: 0.05320514757 | N81: 0.06133601876 | O81: 0.03999 | P81: 0.04744894353 | Q81: 0.05309682362 | R81: 0.05595984026 | S81: 110.0813 | T81: 0.0008145302066 | U81: 0.001633471525 | V81: 0.001748463529 | W81: 5.879314096e-05 | X81: 3.633810059e-05 | Y81: 1133.31 | Z81: 951.5264492 | AA81: 1118.752826 | AB81: 1072.62 | AC81: 962.7420932 | AD81: 1061.660683 | AE81: 1056.16 | AF81: 1017.903693 | AG81: 1053.906069
A82: 2020-12-04 | B82: 0.0454217455 | C82: 0.05322043417 | D82: 0.06114983921 | E82: 0.0401 | F82: 0.047112974 | G82: 0.05337869024 | H82: 0.05563005601 | I82: 0.0006017671865 | J82: 0.002003957444 | K82: 0.00155597769 | L82: 0.04546895875 | M82: 0.05314635443 | N82: 0.06133131204 | O82: 0.04037 | P82: 0.0473844823 | Q82: 0.05304577078 | R82: 0.05596356195 | S82: 110.0773 | T82: 0.0007551800045 | U82: 0.001603569887 | V82: 0.001762825104 | W82: 4.260353986e-05 | X82: 4.724176244e-05 | Y82: 1132.98 | Z82: 985.8292429 | AA82: 1118.236763 | AB82: 1074.22 | AC82: 986.3815327 | AD82: 1060.963832 | AE82: 1055.75 | AF82: 1030.725931 | AG82: 1053.602742
A83: 2020-12-03 | B83: 0.04552875522 | C83: 0.0534521704 | D83: 0.06136523175 | E83: 0.0402 | F83: 0.04749124128 | G83: 0.05332247184 | H83: 0.05587055216 | I83: 0.0008068636276 | J83: 0.001749772484 | K83: 0.001593970618 | L83: 0.04545547744 | M83: 0.05310375089 | N83: 0.06133544047 | O83: 0.04044 | P83: 0.04738199572 | Q83: 0.05296203586 | R83: 0.05597709077 | S83: 110.0721 | T83: 0.0007591759671 | U83: 0.001533955626 | V83: 0.001780904445 | W83: 5.746120433e-05 | X83: 0.0002444450099 | Y83: 1132.88 | Z83: 984.6137756 | AA83: 1117.798719 | AB83: 1072.16 | AC83: 985.4473412 | AD83: 1060.597588 | AE83: 1056.13 | AF83: 1030.126795 | AG83: 1053.252432
A84: 2020-12-02 | B84: 0.0456638391 | C84: 0.05340709767 | D84: 0.06150243882 | E84: 0.0402 | F84: 0.04773080212 | G84: 0.05344409516 | H84: 0.0562944294 | I84: 0.0009299458467 | J84: 0.001809152254 | K84: 0.001920474335 | L84: 0.04543895012 | M84: 0.05304628968 | N84: 0.06131327897 | O84: 0.04052 | P84: 0.04735328649 | Q84: 0.05288594787 | R84: 0.05594327358 | S84: 110.0452 | T84: 0.0007384278497 | U84: 0.001483034645 | V84: 0.001765047314 | W84: 7.924022786e-05 | X84: 0.0006838228608 | Y84: 1135.11 | Z84: 982.9506847 | AA84: 1116.953528 | AB84: 1072.22 | AC84: 984.7290358 | AD84: 1060.268676 | AE84: 1056.97 | AF84: 1030.118946 | AG84: 1053.654281
A85: 2020-12-01 | B85: 0.04562974171 | C85: 0.05346255308 | D85: 0.06156419596 | E85: 0.0406 | F85: 0.04789881811 | G85: 0.05343464824 | H85: 0.05638680638 | I85: 0.001104411325 | J85: 0.001770442222 | K85: 0.00197706301 | L85: 0.04542844082 | M85: 0.05296704945 | N85: 0.06127356203 | O85: 0.0406 | P85: 0.04727922969 | Q85: 0.05278288189 | R85: 0.0558403467 | S85: 109.97 | T85: 0.0006782443342 | U85: 0.001418275189 | V85: 0.001694242379 | W85: 8.639854621e-05 | X85: 0.0006915755182 | Y85: 1135.14 | Z85: 985.963424 | AA85: 1116.45785 | AB85: 1071.57 | AC85: 986.8140515 | AD85: 1059.878561 | AE85: 1057.26 | AF85: 1031.239962 | AG85: 1053.322811
A86: 2020-11-30 | B86: 0.04560438773 | C86: 0.05335822398 | D86: 0.06149671903 | E86: 0.0407 | F86: 0.04778630728 | G86: 0.05300624372 | H86: 0.05615753938 | I86: 0.0009725944546 | J86: 0.001387633645 | K86: 0.001782062934 | L86: 0.04541860858 | M86: 0.05288065091 | N86: 0.0612159124 | O86: 0.04072 | P86: 0.04719485263 | Q86: 0.05267488819 | R86: 0.05571526801 | S86: 109.894 | T86: 0.0006170445212 | U86: 0.001357118564 | V86: 0.001614009364 | W86: 8.510925717e-05 | X86: 0.0005590325641 | Y86: 1133.1 | Z86: 987.003983 | AA86: 1116.256938 | AB86: 1069.15 | AC86: 987.8665414 | AD86: 1059.984599 | AE86: 1056.97 | AF86: 1031.709239 | AG86: 1053.502965
A87: 2020-11-27 | B87: 0.04531286286 | C87: 0.0532163152 | D87: 0.06144854395 | E87: 0.0403 | F87: 0.04764204862 | G87: 0.05291907091 | H87: 0.05608701384 | I87: 0.001067392227 | J87: 0.001462149466 | K87: 0.0018415976 | L87: 0.04539585244 | M87: 0.05279554165 | N87: 0.06116404914 | O87: 0.0408 | P87: 0.04709739567 | Q87: 0.05269222699 | R87: 0.05560276136 | S87: 109.8326 | T87: 0.00056483899 | U87: 0.001427664956 | V87: 0.001553468572 | W87: 5.701100691e-05 | X87: 0.0005912486096 | Y87: 1132.36 | Z87: 983.148274 | AA87: 1114.954051 | AB87: 1068.54 | AC87: 985.183444 | AD87: 1058.881623 | AE87: 1056.67 | AF87: 1030.494268 | AG87: 1052.864554
A88: 2020-11-26 | B88: 0.04544000522 | C88: 0.05312578388 | D88: 0.06139411513 | E88: 0.0407 | F88: 0.04735707311 | G88: 0.05300140787 | H88: 0.05600488824 | I88: 0.0006962156161 | J88: 0.001534842553 | K88: 0.001757607426 | L88: 0.04540696859 | M88: 0.05273853064 | N88: 0.06113605669 | O88: 0.04097 | P88: 0.04700757062 | Q88: 0.05264774563 | R88: 0.05550675259 | S88: 109.7677 | T88: 0.0004806791385 | U88: 0.001405700752 | V88: 0.00147953431 | W88: 2.788082121e-05 | X88: 0.001020465858 | Y88: 1131.96 | Z88: 987.2865389 | AA88: 1115.345756 | AB88: 1069.23 | AC88: 987.9702924 | AD88: 1059.091253 | AE88: 1055.8 | AF88: 1032.070408 | AG88: 1053.318292
A89: 2020-11-25 | B89: 0.04538481647 | C89: 0.05287783786 | D89: 0.06127633003 | E89: 0.0406 | F89: 0.04723259899 | G89: 0.05285953843 | H89: 0.05596202085 | I89: 0.0006840801572 | J89: 0.00155033914 | K89: 0.001851496008 | L89: 0.04540708035 | M89: 0.05271064982 | N89: 0.06111599652 | O89: 0.04107 | P89: 0.04698410528 | Q89: 0.05260970615 | R89: 0.05537236437 | S89: 109.6558 | T89: 0.0004691317192 | U89: 0.001381414134 | V89: 0.001360863615 | W89: 1.758673206e-06 | X89: 0.0003393584665 | Y89: 1131.91 | Z89: 986.6081515 | AA89: 1114.397604 | AB89: 1069.28 | AC89: 988.2424288 | AD89: 1059.032003 | AE89: 1056 | AF89: 1032.353292 | AG89: 1053.5611
A90: 2020-11-24 | B90: 0.0454010277 | C90: 0.05269742325 | D90: 0.06107933242 | E90: 0.0401 | F90: 0.04712060412 | G90: 0.05260086828 | H90: 0.05563356195 | I90: 0.0006506244529 | J90: 0.001410607892 | K90: 0.00166913476 | L90: 0.04541115368 | M90: 0.05270889115 | N90: 0.06112037566 | O90: 0.04115 | P90: 0.04697213137 | Q90: 0.0526083241 | R90: 0.05533066447 | S90: 109.6186 | T90: 0.0004604950396 | U90: 0.001375814637 | V90: 0.00131724324 | W90: -5.123160548e-05 | X90: 0.0003248679083 | Y90: 1130.67 | Z90: 983.6075245 | AA90: 1114.86763 | AB90: 1068.63 | AC90: 985.9545187 | AD90: 1059.300833 | AE90: 1056.04 | AF90: 1031.008081 | AG90: 1053.720203
A91: 2020-11-23 | B91: 0.04530240598 | C91: 0.05264570477 | D91: 0.06103637411 | E91: 0.0402 | F91: 0.04647235537 | G91: 0.05249067312 | H91: 0.05560875124 | I91: 3.790515125e-05 | J91: 0.001356801767 | K91: 0.001678866655 | L91: 0.04540149085 | M91: 0.05276012275 | N91: 0.06116958937 | O91: 0.04093 | P91: 0.04697687562 | Q91: 0.05267934989 | R91: 0.05531893543 | S91: 109.583 | T91: 0.0004572655413 | U91: 0.001411902292 | V91: 0.001271568707 | W91: -1.836102731e-05 | X91: 0.0003587609329 | Y91: 1130.08 | Z91: 984.1943263 | AA91: 1114.184968 | AB91: 1068.18 | AC91: 986.8842419 | AD91: 1059.205534 | AE91: 1053.65 | AF91: 1031.286945 | AG91: 1053.514855
A92: 2020-11-20 | B92: 0.04528693238 | C92: 0.05279439877 | D92: 0.06119112352 | E92: 0.0408 | F92: 0.04708810817 | G92: 0.052541341 | H92: 0.05576534423 | I92: 0.0006417268126 | J92: 0.001307814841 | K92: 0.001736771102 | L92: 0.04539697394 | M92: 0.05277848378 | N92: 0.06116501897 | O92: 0.04069 | P92: 0.04698538919 | Q92: 0.05271261496 | R92: 0.05524058298 | S92: 109.5437 | T92: 0.0004584650747 | U92: 0.001430090032 | V92: 0.001187434919 | W92: -5.542446793e-05 | X92: 0.0004246683933 | Y92: 1129.63 | Z92: 988.1299169 | AA92: 1113.20851 | AB92: 1066.88 | AC92: 989.2989337 | AD92: 1058.238596 | AE92: 1054.96 | AF92: 1032.552085 | AG92: 1052.673182
A93: 2020-11-19 | B93: 0.04536348208 | C93: 0.05287755836 | D93: 0.06114361677 | E93: 0.041 | F93: 0.047204149 | G93: 0.05256159196 | H93: 0.0555323803 | I93: 0.0005993824537 | J93: 0.001240562673 | K93: 0.001435399307 | L93: 0.04540786387 | M93: 0.05283390825 | N93: 0.06121041265 | O93: 0.04069 | P93: 0.0469673745 | Q93: 0.05281539858 | R93: 0.05520249562 | S93: 109.4972 | T93: 0.0004160950668 | U93: 0.001487601863 | V93: 0.001109782596 | W93: -7.934644453e-05 | X93: 0.0003517308355 | Y93: 1127.36 | Z93: 989.9798466 | AA93: 1113.790621 | AB93: 1066.91 | AC93: 990.5439413 | AD93: 1058.715896 | AE93: 1054.77 | AF93: 1032.670557 | AG93: 1052.634974
A94: 2020-11-18 | B94: 0.04555874608 | C94: 0.05261469539 | D94: 0.06110526938 | E94: 0.041 | F94: 0.0469902341 | G94: 0.05241343534 | H94: 0.05526516054 | I94: 0.0003281106914 | J94: 0.001161557689 | K94: 0.001212424988 | L94: 0.04545213561 | M94: 0.05291325469 | N94: 0.06130184634 | O94: 0.04073 | P94: 0.04695741814 | Q94: 0.05294625542 | R94: 0.05521427015 | S94: 109.4587 | T94: 0.0003513597958 | U94: 0.001542295168 | V94: 0.001047667229 | W94: -0.0003471373764 | X94: 0.000223878824 | Y94: 1124.76 | Z94: 989.8695226 | AA94: 1113.295384 | AB94: 1066.5 | AC94: 991.0765891 | AD94: 1058.824078 | AE94: 1054.63 | AF94: 1033.294015 | AG94: 1053.461337
A95: 2020-11-17 | B95: 0.0455314193 | C95: 0.05259856762 | D95: 0.06098769962 | E95: 0.0418 | F95: 0.04705504749 | G95: 0.05235471126 | H95: 0.05513601948 | I95: 0.0004924131956 | J95: 0.001158875976 | K95: 0.001174732865 | L95: 0.0455844382 | M95: 0.05326039207 | N95: 0.06169478842 | O95: 0.04072 | P95: 0.04717372753 | Q95: 0.05339814759 | R95: 0.05553517017 | S95: 109.4342 | T95: 0.0003907619373 | U95: 0.001715217622 | V95: 0.001077617577 | W95: -0.0003780132555 | X95: 0.000259584044 | Y95: 1124.71 | Z95: 998.5536822 | AA95: 1113.597241 | AB95: 1066.46 | AC95: 996.7088502 | AD95: 1058.801531 | AE95: 1054.79 | AF95: 1036.073046 | AG95: 1053.036167
A96: 2020-11-16 | B96: 0.04537682635 | C96: 0.05250713141 | D96: 0.06097808652 | E96: 0.0415 | F96: 0.04681173774 | G96: 0.05317963176 | H96: 0.05503247295 | I96: 0.0004505391423 | J96: 0.002093097565 | K96: 0.001176655007 | L96: 0.04572153363 | M96: 0.05363840533 | N96: 0.06212032918 | O96: 0.04069 | P96: 0.04740247226 | Q96: 0.05389959937 | R96: 0.05587418377 | S96: 109.4058 | T96: 0.000426548156 | U96: 0.001913681353 | V96: 0.001100971226 | W96: -0.0002912109011 | X96: 0.000339219539 | Y96: 1124.13 | Z96: 996.0952985 | AA96: 1112.997321 | AB96: 1071.89 | AC96: 994.6935303 | AD96: 1058.055682 | AE96: 1054.29 | AF96: 1035.366339 | AG96: 1052.684904
A97: 2020-11-13 | B97: 0.04542402433 | C97: 0.05264620513 | D97: 0.06116861945 | E97: 0.042 | F97: 0.04674379812 | G97: 0.05247425729 | H97: 0.0551269261 | I97: 0.0002257937119 | J97: 0.001242507425 | K97: 0.001102254979 | L97: 0.04583654191 | M97: 0.05392961623 | N97: 0.06242801603 | O97: 0.0408 | P97: 0.0476062741 | Q97: 0.05418878533 | R97: 0.05610325868 | S97: 109.3687 | T97: 0.0004614078201 | U97: 0.001963941976 | V97: 0.001085181991 | W97: -0.0002348392421 | X97: 8.138273845e-05 | Y97: 1123.04 | Z97: 999.0217464 | AA97: 1112.62631 | AB97: 1065.5 | AC97: 996.3454375 | AD97: 1057.296549 | AE97: 1052.99 | AF97: 1036.101551 | AG97: 1052.186149
A98: 2020-11-12 | B98: 0.04544112281 | C98: 0.05284697567 | D98: 0.06119351334 | E98: 0.0417 | F98: 0.04712241966 | G98: 0.05262101302 | H98: 0.05466100602 | I98: 0.0005807414235 | J98: 0.00129197637 | K98: 0.0005709004804 | L98: 0.04591594103 | M98: 0.05416445547 | N98: 0.06266215632 | O98: 0.04086 | P98: 0.04778821601 | Q98: 0.05453570653 | R98: 0.05629233019 | S98: 109.3598 | T98: 0.0005193300357 | U98: 0.002123521204 | V98: 0.001086387208 | W98: -0.0001779937545 | X98: -0.0005099821232 | Y98: 1117.94 | Z98: 995.5642005 | AA98: 1112.549647 | AB98: 1065.71 | AC98: 993.6577453 | AD98: 1057.186083 | AE98: 1053.54 | AF98: 1034.241958 | AG98: 1051.473179
A99: 2020-11-11 | B99: 0.04542554982 | C99: 0.05286025113 | D99: 0.0613201215 | E99: 0.0414 | F99: 0.04711285988 | G99: 0.05284571796 | H99: 0.05554502187 | I99: 0.0005977133606 | J99: 0.00149434417 | K99: 0.001415292257 | L99: 0.04599704514 | M99: 0.05434244922 | N99: 0.06286872297 | O99: 0.04095 | P99: 0.04792305218 | Q99: 0.05483805811 | R99: 0.05652780827 | S99: 109.4156 | T99: 0.0005431503018 | U99: 0.002270979389 | V99: 0.001162212907 | W99: -0.000116720889 | X99: -4.021202705e-05 | Y99: 1125.36 | Z99: 991.888326 | AA99: 1112.005378 | AB99: 1066.32 | AC99: 990.8330736 | AD99: 1056.464485 | AE99: 1053.41 | AF99: 1033.079861 | AG99: 1051.28294
A100: 2020-11-10 | B100: 0.0453043994 | C100: 0.0532097393 | D100: 0.06157146952 | E100: 0.0379 | F100: 0.04716804671 | G100: 0.05331112623 | H100: 0.05551627154 | I100: 0.0006183294706 | J100: 0.001771484446 | K100: 0.001212389429 | L100: 0.04603066281 | M100: 0.05445917011 | N100: 0.06300248981 | O100: 0.04104 | P100: 0.04798129806 | Q100: 0.05504970028 | R100: 0.05664586808 | S100: 109.42 | T100: 0.0005396831331 | U100: 0.002385449516 | V100: 0.001179654708 | W100: -4.822137311e-05 | X100: -0.0003645170515 | Y100: 1124.28 | Z100: 958.2847927 | AA100: 1112.855855 | AB100: 1067.09 | AC100: 965.5902144 | AD100: 1055.422761 | AE100: 1052.46 | AF100: 1019.489503 | AG100: 1050.260332
A101: 2020-11-09 | B101: 0.04525723681 | C101: 0.05282931505 | D101: 0.06099067008 | E101: 0.0378 | F101: 0.04655749102 | G101: 0.05282332381 | H101: 0.0548252268 | I101: 4.990048465e-05 | J101: 0.001538679169 | K101: 0.0008375287745 | L101: 0.04605947317 | M101: 0.05450739149 | N101: 0.06306360408 | O101: 0.04149 | P101: 0.0479749454 | Q101: 0.05518212687 | R101: 0.0567437596 | S101: 109.4599 | T101: 0.0004931988056 | U101: 0.002467370445 | V101: 0.00122658611 | W101: -7.98185261e-05 | X101: -0.00041185334 | Y101: 1123.32 | Z101: 962.4384066 | AA101: 1115.405688 | AB101: 1067.19 | AC101: 968.0937248 | AD101: 1057.040623 | AE101: 1051.21 | AF101: 1020.049391 | AG101: 1051.032446
A102: 2020-11-06 | B102: 0.04539583174 | C102: 0.05334864345 | D102: 0.06164506034 | E102: 0.0408 | F102: 0.04690796132 | G102: 0.05356917716 | H102: 0.0553844706 | I102: 0.0002180267335 | J102: 0.00188293315 | K102: 0.0009602478727 | L102: 0.04609025555 | M102: 0.05458721001 | N102: 0.06316882598 | O102: 0.04194 | P102: 0.048043167 | Q102: 0.0553511774 | R102: 0.05689315064 | S102: 109.505 | T102: 0.0005208935643 | U102: 0.002566079673 | V102: 0.001301744663 | W102: -5.035960547e-05 | X102: -0.0003551087737 | Y102: 1122.15 | Z102: 984.8783971 | AA102: 1113.111978 | AB102: 1067.24 | AC102: 983.2416962 | AD102: 1054.853674 | AE102: 1050.46 | AF102: 1028.748533 | AG102: 1049.684998
A103: 2020-11-05 | B103: 0.04580619946 | C103: 0.0536710228 | D103: 0.06205795367 | E103: 0.0414 | F103: 0.04710458531 | G103: 0.05387016035 | H103: 0.05565012557 | I103: -4.797025588e-05 | J103: 0.001787495721 | K103: 0.0008142456361 | L103: 0.04609979272 | M103: 0.05463756962 | N103: 0.06321886049 | O103: 0.04209 | P103: 0.04808071873 | Q103: 0.05547073198 | R103: 0.05697928467 | S103: 109.5439 | T103: 0.0005398291716 | U103: 0.002645978821 | V103: 0.001350290331 | W103: 1.552736498e-05 | X103: -0.0005766049827 | Y103: 1120.67 | Z103: 986.8807083 | AA103: 1113.025341 | AB103: 1066.32 | AC103: 984.4319508 | AD103: 1054.582016 | AE103: 1049.76 | AF103: 1029.503294 | AG103: 1049.93034
A104: 2020-11-03 | B104: 0.04688177196 | C104: 0.05608606915 | D104: 0.06503469015 | E104: 0.0409 | F104: 0.04915332809 | G104: 0.05693235705 | H104: 0.0584741608 | I104: 0.0007221321059 | J104: 0.002890782231 | K104: 0.001511928474 | L104: 0.04606728843 | M104: 0.05462204225 | N104: 0.06320325058 | O104: 0.04219 | P104: 0.04807443444 | Q104: 0.0555304053 | R104: 0.05703529212 | S104: 109.6071 | T104: 0.0005674336658 | U104: 0.002726374453 | V104: 0.001428780469 | W104: 0.0002370690481 | X104: -0.0006783277034 | Y104: 1119.28 | Z104: 956.9632947 | AA104: 1105.315678 | AB104: 1066.91 | AC104: 962.7483919 | AD104: 1048.128699 | AE104: 1048.83 | AF104: 1019.637403 | AG104: 1046.275768
A105: 2020-11-02 | B105: 0.04690237363 | C105: 0.05637870018 | D105: 0.06524310722 | E105: 0.0415 | F105: 0.04934249475 | G105: 0.05736922909 | H105: 0.0585261554 | I105: 0.0008502753828 | J105: 0.003143513284 | K105: 0.001408269354 | L105: 0.04593327392 | M105: 0.0543849732 | N105: 0.06291138704 | O105: 0.04234 | P105: 0.04788953587 | Q105: 0.05530509497 | R105: 0.05683321704 | S105: 109.6815 | T105: 0.0005383584382 | U105: 0.002702495175 | V105: 0.001446125086 | W105: 0.0002724541095 | X105: -0.0007334050036 | Y105: 1118.84 | Z105: 961.7827698 | AA105: 1105.849464 | AB105: 1067.79 | AC105: 964.8171593 | AD105: 1047.392255 | AE105: 1048.49 | AF105: 1020.762061 | AG105: 1045.483765
A106: 2020-10-30 | B106: 0.04652690915 | C106: 0.05541924042 | D106: 0.06405495506 | E106: 0.0426 | F106: 0.04884975609 | G106: 0.05607149135 | H106: 0.05732322206 | I106: 0.0007991357831 | J106: 0.002595703797 | K106: 0.001018762653 | L106: 0.04579881368 | M106: 0.05411251909 | N106: 0.06259370294 | O106: 0.04241 | P106: 0.04766771074 | Q106: 0.05502923699 | R106: 0.05662874443 | S106: 109.762 | T106: 0.0004748932545 | U106: 0.002647912974 | V106: 0.001477407179 | W106: 0.0001630149811 | X106: -0.001012075738 | Y106: 1116.98 | Z106: 980.3900059 | AA106: 1107.528755 | AB106: 1066.55 | AC106: 978.8136088 | AD106: 1049.644842 | AE106: 1049.11 | AF106: 1026.994545 | AG106: 1046.282169
A107: 2020-10-29 | B107: 0.04621801552 | C107: 0.05499459755 | D107: 0.06351002235 | E107: 0.0426 | F107: 0.04856321723 | G107: 0.0559434693 | H107: 0.05701764126 | I107: 0.0008050158682 | J107: 0.002838299701 | K107: 0.001114307153 | L107: 0.04571080103 | M107: 0.05394950411 | N107: 0.06242504649 | O107: 0.04242 | P107: 0.04750610766 | Q107: 0.05492203948 | R107: 0.05659701375 | S107: 109.8732 | T107: 0.0004151095158 | U107: 0.002671247189 | V107: 0.001580213982 | W107: 8.615924644e-05 | X107: -0.0005148740378 | Y107: 1119.12 | Z107: 984.9903901 | AA107: 1108.753423 | AB107: 1068.9 | AC107: 981.8493901 | AD107: 1050.383397 | AE107: 1049.44 | AF107: 1028.324427 | AG107: 1046.589463
A108: 2020-10-28 | B108: 0.04625216389 | C108: 0.05462691321 | D108: 0.06325917984 | E108: 0.0426 | F108: 0.04847078134 | G108: 0.05564452885 | H108: 0.05701578676 | I108: 0.0008189440844 | J108: 0.002766558224 | K108: 0.001329157472 | L108: 0.04568253568 | M108: 0.05386334487 | N108: 0.06233874784 | O108: 0.0424 | P108: 0.04740813871 | Q108: 0.05485982257 | R108: 0.05658243789 | S108: 109.9298 | T108: 0.0003590301865 | U108: 0.002670346873 | V108: 0.00163083898 | W108: 8.96977675e-05 | X108: -0.0004673526021 | Y108: 1120.49 | Z108: 986.203628 | AA108: 1108.108592 | AB108: 1068.91 | AC108: 983.7097582 | AD108: 1050.840246 | AE108: 1049.96 | AF108: 1029.168132 | AG108: 1047.05964
A109: 2020-10-27 | B109: 0.04576172658 | C109: 0.05402746002 | D109: 0.06265778991 | E109: 0.0423 | F109: 0.04769531873 | G109: 0.05496213965 | H109: 0.05672562004 | I109: 0.0005630416735 | J109: 0.002639045436 | K109: 0.001589710258 | L109: 0.04564603755 | M109: 0.0537736471 | N109: 0.0622047014 | O109: 0.04236 | P109: 0.04727873996 | Q109: 0.05482821193 | R109: 0.05651548845 | S109: 109.9812 | T109: 0.0002689626146 | U109: 0.002708075587 | V109: 0.00164577853 | W109: 3.821558511e-05 | X109: -0.0002336217092 | Y109: 1122.76 | Z109: 987.9378025 | AA109: 1107.902529 | AB109: 1068.47 | AC109: 985.5676179 | AD109: 1051.191471 | AE109: 1049.19 | AF109: 1030.060961 | AG109: 1047.193742
A110: 2020-10-26 | B110: 0.04559250298 | C110: 0.05369195303 | D110: 0.06218261219 | E110: 0.0424 | F110: 0.04710452014 | G110: 0.05463539208 | H110: 0.05649518668 | I110: 0.000153486196 | J110: 0.002590693741 | K110: 0.001681703454 | L110: 0.04565266278 | M110: 0.05373543151 | N110: 0.06210643204 | O110: 0.04237 | P110: 0.04723319309 | Q110: 0.05488768971 | R110: 0.05645278062 | S110: 110.0069 | T110: 0.0002174044977 | U110: 0.002860892318 | V110: 0.001624325415 | W110: -1.978196771e-05 | X110: -9.180399393e-05 | Y110: 1125.23 | Z110: 993.1789261 | AA110: 1109.474923 | AB110: 1069.06 | AC110: 988.8431028 | AD110: 1052.075059 | AE110: 1048.03 | AF110: 1031.343729 | AG110: 1047.485606
A111: 2020-10-23 | B111: 0.04556506062 | C111: 0.05362750031 | D111: 0.06204288907 | E111: 0.0423 | F111: 0.04723970694 | G111: 0.05451382913 | H111: 0.05631913722 | I111: 0.0003268480711 | J111: 0.002525771449 | K111: 0.001589114308 | L111: 0.04569701152 | M111: 0.05375521348 | N111: 0.06205781234 | O111: 0.04238 | P111: 0.04728419047 | Q111: 0.05498723936 | R111: 0.05642361968 | S111: 110.017 | T111: 0.000238978321 | U111: 0.003024528707 | V111: 0.001599091003 | W111: -2.384720964e-05 | X111: 0.0004847054073 | Y111: 1124.4 | Z111: 993.0335869 | AA111: 1109.509194 | AB111: 1068.54 | AC111: 988.4728916 | AD111: 1051.982439 | AE111: 1048.14 | AF111: 1030.625642 | AG111: 1046.981119
A112: 2020-10-22 | B112: 0.04549120339 | C112: 0.0538522395 | D112: 0.06214540545 | E112: 0.0423 | F112: 0.04728347862 | G112: 0.05476472291 | H112: 0.05624581092 | I112: 0.0004073828068 | J112: 0.00268192463 | K112: 0.001445704548 | L112: 0.04573906478 | M112: 0.05377906069 | N112: 0.06202685019 | O112: 0.04239 | P112: 0.04730402348 | Q112: 0.05510081093 | R112: 0.0563410216 | S112: 109.9637 | T112: 0.0002211617828 | U112: 0.003188538149 | V112: 0.001507524302 | W112: 5.047095749e-06 | X112: 0.0002819907089 | Y112: 1123 | Z112: 992.4279397 | AA112: 1109.464134 | AB112: 1068.95 | AC112: 987.3090976 | AD112: 1051.384046 | AE112: 1047.51 | AF112: 1029.844529 | AG112: 1046.065907
A113: 2020-10-21 | B113: 0.04548115656 | C113: 0.05351574915 | D113: 0.06190185459 | E113: 0.0424 | F113: 0.04704174246 | G113: 0.05446689357 | H113: 0.05621020002 | I113: 0.0002280746859 | J113: 0.002591452035 | K113: 0.001599147016 | L113: 0.04580654655 | M113: 0.0537740136 | N113: 0.06198251011 | O113: 0.04236 | P113: 0.04731930861 | Q113: 0.05518184049 | R113: 0.0562799621 | S113: 109.9327 | T113: 0.0001807943204 | U113: 0.003323435795 | V113: 0.001440612667 | W113: -9.508292262e-05 | X113: 0.0008029532658 | Y113: 1123.96 | Z113: 994.4978775 | AA113: 1108.968981 | AB113: 1068.92 | AC113: 989.7955691 | AD113: 1051.92746 | AE113: 1047.36 | AF113: 1030.903917 | AG113: 1046.551421
A114: 2020-10-20 | B114: 0.04554162693 | C114: 0.05371537867 | D114: 0.06211605471 | E114: 0.0424 | F114: 0.04730434234 | G114: 0.05467925379 | H114: 0.05645341008 | I114: 0.0004313798306 | J114: 0.002651989449 | K114: 0.001685374641 | L114: 0.04589807212 | M114: 0.05386909652 | N114: 0.06204982137 | O114: 0.04232 | P114: 0.04741900794 | Q114: 0.05535507139 | R114: 0.05626003154 | S114: 109.8445 | T114: 0.0001942983502 | U114: 0.003488294756 | V114: 0.001340553453 | W114: -0.0001175258534 | X114: 0.0009850879016 | Y114: 1123.89 | Z114: 992.3343024 | AA114: 1108.113001 | AB114: 1068.57 | AC114: 988.1359714 | AD114: 1051.198407 | AE114: 1047.61 | AF114: 1030.228743 | AG114: 1046.081166
A115: 2020-10-19 | B115: 0.04555777113 | C115: 0.05365415908 | D115: 0.06206626627 | E115: 0.0422 | F115: 0.04712424351 | G115: 0.05461064924 | H115: 0.05648142925 | I115: 0.0002156235453 | J115: 0.002597691279 | K115: 0.001721090283 | L115: 0.04598047689 | M115: 0.05398662237 | N115: 0.06213224928 | O115: 0.04208 | P115: 0.04756200461 | Q115: 0.05554120009 | R115: 0.05622356199 | S115: 109.7364 | T115: 0.0002440255026 | U115: 0.00365329905 | V115: 0.001211307545 | W115: -0.0001671103937 | X115: 0.001213466006 | Y115: 1124.06 | Z115: 990.3636339 | AA115: 1107.947921 | AB115: 1068.3 | AC115: 987.0018466 | AD115: 1051.283364 | AE115: 1047 | AF115: 1029.550197 | AG115: 1046.235905
A116: 2020-10-16 | B116: 0.04564678274 | C116: 0.05378909061 | D116: 0.06236839058 | E116: 0.0427 | F116: 0.04723372526 | G116: 0.05499951627 | H116: 0.0570059153 | I116: 0.0002012983959 | J116: 0.002829045941 | K116: 0.002046830685 | L116: 0.04609164882 | M116: 0.05415373277 | N116: 0.06226748904 | O116: 0.0419 | P116: 0.04774968581 | Q116: 0.05578297462 | R116: 0.05620561272 | S116: 109.6034 | T116: 0.0003164379874 | U116: 0.00383915063 | V116: 0.001062083257 | W116: -0.0001619091478 | X116: 0.001220427917 | Y116: 1125.27 | Z116: 991.6164856 | AA116: 1106.147413 | AB116: 1068.63 | AC116: 988.158811 | AD116: 1050.120598 | AE116: 1046.4 | AF116: 1030.345172 | AG116: 1045.687162
A117: 2020-10-15 | B117: 0.04593536201 | C117: 0.05413300509 | D117: 0.06264703577 | E117: 0.0424 | F117: 0.0475835277 | G117: 0.05532130023 | H117: 0.0568718826 | I117: 0.0002442225753 | J117: 0.002829296542 | K117: 0.001620557137 | L117: 0.04617162467 | M117: 0.05431564191 | N117: 0.06239325959 | O117: 0.04153 | P117: 0.04793402275 | Q117: 0.05598226907 | R117: 0.05616998182 | S117: 109.4698 | T117: 0.000404003456 | U117: 0.00399297793 | V117: 0.0009074307523 | W117: -0.0001245825158 | X117: 0.0009976161455 | Y117: 1121.95 | Z117: 986.9916234 | AA117: 1106.837401 | AB117: 1068.36 | AC117: 983.955985 | AD117: 1049.878579 | AE117: 1046.23 | AF117: 1027.890045 | AG117: 1045.365911
A118: 2020-10-14 | B118: 0.04588718255 | C118: 0.05372993554 | D118: 0.0619187155 | E118: 0.0422 | F118: 0.04717679386 | G118: 0.05532842243 | H118: 0.05634629237 | I118: -8.173163393e-05 | J118: 0.003143845366 | K118: 0.001478552971 | L118: 0.04619438061 | M118: 0.05444022443 | N118: 0.06252216723 | O118: 0.04137 | P118: 0.0479912654 | Q118: 0.05618614098 | R118: 0.05616278384 | S118: 109.3607 | T118: 0.0004139463421 | U118: 0.004185661628 | V118: 0.0008052857578 | W118: -0.0002280264607 | X118: 0.001257056638 | Y118: 1122.8 | Z118: 990.4401144 | AA118: 1108.965909 | AB118: 1072.59 | AC118: 986.675704 | AD118: 1052.016221 | AE118: 1045.77 | AF118: 1028.157146 | AG118: 1046.059248
A119: 2020-10-13 | B119: 0.04582797886 | C119: 0.05364530417 | D119: 0.06167509627 | E119: 0.0424 | F119: 0.04723985004 | G119: 0.05555691749 | H119: 0.05609854181 | I119: 4.7460504e-05 | J119: 0.004167212747 | K119: 0.001375179102 | L119: 0.04624366016 | M119: 0.05466825089 | N119: 0.06275469294 | O119: 0.04134 | P119: 0.04818686758 | Q119: 0.05641365314 | R119: 0.05621403704 | S119: 109.2234 | T119: 0.0005244415236 | U119: 0.004332682711 | V119: 0.0006874910654 | W119: -0.0002552778017 | X119: 0.001300862199 | Y119: 1122.5 | Z119: 994.1998561 | AA119: 1109.620113 | AB119: 1117.27 | AC119: 1024.704235 | AD119: 1087.951489 | AE119: 1045.96 | AF119: 1028.832571 | AG119: 1045.792045
A120: 2020-10-12 | B120: 0.04603599036 | C120: 0.05388977271 | D120: 0.06169641516 | E120: 0.0425 | F120: 0.04761449401 | G120: 0.05563088853 | H120: 0.05620357722 | I120: 0.0003692244294 | J120: 0.004227057632 | K120: 0.001429359338 | L120: 0.04630724026 | M120: 0.05492352869 | N120: 0.06305770992 | O120: 0.04129 | P120: 0.0483734645 | Q120: 0.05665306736 | R120: 0.05633029002 | S120: 109.0815 | T120: 0.0006084341624 | U120: 0.004391085057 | V120: 0.0005930427138 | W120: -0.0002629561236 | X120: 0.001438607186 | Y120: 1123.41 | Z120: 995.1361722 | AA120: 1110.030326 | AB120: 1117.05 | AC120: 1024.737382 | AD120: 1087.332989 | AE120: 1046.13 | AF120: 1028.041668 | AG120: 1044.824171
A121: 2020-10-09 | B121: 0.04598559326 | C121: 0.0538659724 | D121: 0.06173326759 | E121: 0.0424 | F121: 0.04743803703 | G121: 0.05564954485 | H121: 0.05549315644 | I121: 0.0001486826887 | J121: 0.004165865867 | K121: 0.0006734472991 | L121: 0.04638389163 | M121: 0.05518648482 | N121: 0.0633787806 | O121: 0.04125 | P121: 0.04851265496 | Q121: 0.05688290731 | R121: 0.05645846191 | S121: 108.9248 | T121: 0.0006132688418 | U121: 0.004411604508 | V121: 0.0004878511098 | W121: -0.0002416904761 | X121: 0.001010891901 | Y121: 1116.24 | Z121: 993.7517068 | AA121: 1109.939807 | AB121: 1116.31 | AC121: 1023.214694 | AD121: 1087.039367 | AE121: 1045.22 | AF121: 1027.407997 | AG121: 1044.694332
A122: 2020-10-08 | B122: 0.04616602105 | C122: 0.05380176854 | D122: 0.06170200465 | E122: 0.042 | F122: 0.0474363299 | G122: 0.05557501855 | H122: 0.05563521593 | I122: 3.708183119e-06 | J122: 0.004030901088 | K122: 0.000776588195 | L122: 0.046452502 | M122: 0.05542817529 | N122: 0.06367461485 | O122: 0.04124 | P122: 0.04864681773 | Q122: 0.05708575827 | R122: 0.05661101055 | S122: 108.8148 | T122: 0.0006333581572 | U122: 0.004431262445 | V122: 0.0004303340494 | W122: -0.0002379091989 | X122: 0.0010386203 | Y122: 1117.07 | Z122: 989.5257614 | AA122: 1109.80577 | AB122: 1115.91 | AC122: 1020.532773 | AD122: 1087.589142 | AE122: 1045.13 | AF122: 1025.916129 | AG122: 1045.116894
A123: 2020-10-07 | B123: 0.04639641226 | C123: 0.05446657838 | D123: 0.06257496725 | E123: 0.042 | F123: 0.04803873574 | G123: 0.05619920253 | H123: 0.0560108944 | I123: 0.0003631149836 | J123: 0.004240041645 | K123: 0.0005985548821 | L123: 0.04651568312 | M123: 0.05566608449 | N123: 0.0639710222 | O123: 0.04118 | P123: 0.04881818035 | Q123: 0.05730339137 | R123: 0.05676439016 | S123: 108.7019 | T123: 0.0006965208615 | U123: 0.004467398142 | V123: 0.0003747771883 | W123: -0.0001567256233 | X123: 0.0005872709482 | Y123: 1112.31 | Z123: 981.8810037 | AA123: 1106.737985 | AB123: 1114.62 | AC123: 1015.137115 | AD123: 1084.913291 | AE123: 1044.84 | AF123: 1023.520272 | AG123: 1043.558024
A124: 2020-10-06 | B124: 0.04636567464 | C124: 0.05489063721 | D124: 0.06294033378 | E124: 0.04 | F124: 0.04873430901 | G124: 0.05654054078 | H124: 0.05608871458 | I124: 0.0009286513548 | J124: 0.004302032392 | K124: 0.000392915552 | L124: 0.0465242943 | M124: 0.05582281011 | N124: 0.06416182858 | O124: 0.04118 | P124: 0.04892158374 | Q124: 0.057497293 | R124: 0.05685859902 | S124: 108.6381 | T124: 0.0007401197792 | U124: 0.004542446712 | V124: 0.0003360229725 | W124: -9.46627368e-05 | X124: 0.0004908605993 | Y124: 1110.25 | Z124: 960.8077216 | AA124: 1106.600349 | AB124: 1113.99 | AC124: 998.3006023 | AD124: 1083.900323 | AE124: 1045.9 | AF124: 1015.080144 | AG124: 1042.623164
A125: 2020-10-05 | B125: 0.04666949048 | C125: 0.05532526302 | D125: 0.06341866383 | E125: 0.0404 | F125: 0.04900105552 | G125: 0.05702839455 | H125: 0.05630193659 | I125: 0.0009397483933 | J125: 0.004456207076 | K125: 0.0002288474049 | L125: 0.04649541902 | M125: 0.05591747285 | N125: 0.06431310627 | O125: 0.04137 | P125: 0.04890439834 | Q125: 0.05762348697 | R125: 0.05692792964 | S125: 108.5848 | T125: 0.0007073851804 | U125: 0.004598163818 | V125: 0.0003172409148 | W125: -4.527585446e-05 | X125: 0.0003067668342 | Y125: 1107.93 | Z125: 960.6460737 | AA125: 1105.810413 | AB125: 1113.78 | AC125: 997.7077909 | AD125: 1082.674063 | AE125: 1045.39 | AF125: 1015.065198 | AG125: 1042.076722
A126: 2020-10-02 | B126: 0.04644654124 | C126: 0.05540818208 | D126: 0.06362609609 | E126: 0.039 | F126: 0.04907709469 | G126: 0.05699246079 | H126: 0.05664960624 | I126: 0.001076953081 | J126: 0.004367318943 | K126: 0.0005003056409 | L126: 0.04643721558 | M126: 0.05596274871 | N126: 0.06442081839 | O126: 0.04149 | P126: 0.04885478498 | Q126: 0.05769385762 | R126: 0.05698659102 | S126: 108.5515 | T126: 0.0006719509138 | U126: 0.004638228672 | V126: 0.0003271075976 | W126: 1.365045652e-05 | X126: 0.0004792648814 | Y126: 1109.08 | Z126: 945.8282769 | AA126: 1104.452375 | AB126: 1111.85 | AC126: 986.3587296 | AD126: 1081.389442 | AE126: 1044.91 | AF126: 1009.392659 | AG126: 1041.114213
A127: 2020-10-01 | B127: 0.04616292142 | C127: 0.05537883024 | D127: 0.06393611218 | E127: 0.0408 | F127: 0.04815595421 | G127: 0.05736001933 | H127: 0.05679990277 | I127: 0.0003436514368 | J127: 0.004756133528 | K127: 0.0005991071924 | L127: 0.04636250195 | M127: 0.05594909825 | N127: 0.06442151989 | O127: 0.04179 | P127: 0.04876361452 | Q127: 0.0577145957 | R127: 0.05692181832 | S127: 108.4995 | T127: 0.0006258314468 | U127: 0.004682127159 | V127: 0.0002787911616 | W127: 4.145374e-05 | X127: 0.0005247015472 | Y127: 1108.21 | Z127: 960.3973764 | AA127: 1102.675241 | AB127: 1112.66 | AC127: 997.2068221 | AD127: 1079.501178 | AE127: 1042.02 | AF127: 1016.08407 | AG127: 1040.808339
A128: 2020-09-30 | B128: 0.04637997808 | C128: 0.05601020015 | D128: 0.06424397262 | E128: 0.0419 | F128: 0.04913281562 | G128: 0.05760354402 | H128: 0.0568588244 | I128: 0.001023220181 | J128: 0.004614056196 | K128: 0.0003006060472 | L128: 0.04630265331 | M128: 0.05590764451 | N128: 0.06437482422 | O128: 0.04195 | P128: 0.04874512656 | Q128: 0.05761651441 | R128: 0.05681516861 | S128: 108.4426 | T128: 0.0006485256454 | U128: 0.00462172379 | V128: 0.0002105081239 | W128: 0.0001066225069 | X128: 0.0003394652316 | Y128: 1106.24 | Z128: 968.371999 | AA128: 1103.469464 | AB128: 1111.25 | AC128: 1002.008431 | AD128: 1079.152358 | AE128: 1043.13 | AF128: 1017.656246 | AG128: 1039.52625
A129: 2020-09-29 | B129: 0.04646377978 | C129: 0.05619808219 | D129: 0.06470526603 | E129: 0.0419 | F129: 0.04910581924 | G129: 0.05795105967 | H129: 0.0572610716 | I129: 0.0008873868918 | J129: 0.004751236205 | K129: 0.0004306955867 | L129: 0.04621954389 | M129: 0.055801022 | N129: 0.06429396656 | O129: 0.04196 | P129: 0.04861574279 | Q129: 0.05745307341 | R129: 0.05670170468 | S129: 108.4058 | T129: 0.0005879033096 | U129: 0.004533386947 | V129: 0.000171729256 | W129: 0.000105488494 | X129: 0.0002841983852 | Y129: 1105.48 | Z129: 964.248731 | AA129: 1101.520141 | AB129: 1110.78 | AC129: 999.2624404 | AD129: 1077.769951 | AE129: 1042.43 | AF129: 1017.060295 | AG129: 1039.305755
A130: 2020-09-28 | B130: 0.04680250407 | C130: 0.05651933395 | D130: 0.06490712201 | E130: 0.0421 | F130: 0.04900639865 | G130: 0.05792928807 | H130: 0.05748529615 | I130: 0.0004175712231 | J130: 0.004432252139 | K130: 0.0003774432978 | L130: 0.04608093964 | M130: 0.05569553351 | N130: 0.064172693 | O130: 0.04195 | P130: 0.04849300724 | Q130: 0.05723368134 | R130: 0.05654445553 | S130: 108.375 | T130: 0.0005808387095 | U130: 0.004426428634 | V130: 0.0001257185536 | W130: 0.0001407528006 | X130: 0.0002168867067 | Y130: 1104.91 | Z130: 963.6922286 | AA130: 1101.445543 | AB130: 1109 | AC130: 999.1604092 | AD130: 1078.244557 | AE130: 1040.4 | AF130: 1016.111055 | AG130: 1038.931454
A131: 2020-09-25 | B131: 0.04667169696 | C131: 0.05628287716 | D131: 0.06469161005 | E131: 0.0423 | F131: 0.04877966472 | G131: 0.05767805445 | H131: 0.05701864282 | I131: 0.0003495758429 | J131: 0.004362445244 | K131: 9.827669476e-05 | L131: 0.04592162895 | M131: 0.05555478071 | N131: 0.06405874579 | O131: 0.04186 | P131: 0.04837360029 | Q131: 0.05704056839 | R131: 0.05639906901 | S131: 108.3515 | T131: 0.0006021982803 | U131: 0.004364832093 | V131: 0.0001042551713 | W131: 0.0001233064191 | X131: 6.645481119e-05 | Y131: 1102.4 | Z131: 967.189288 | AA131: 1101.497195 | AB131: 1108.1 | AC131: 1001.352292 | AD131: 1077.817819 | AE131: 1040 | AF131: 1017.210905 | AG131: 1038.770536
A132: 2020-09-24 | B132: 0.04679783226 | C132: 0.05618086053 | D132: 0.06466607818 | E132: 0.0414 | F132: 0.0491499561 | G132: 0.05775134952 | H132: 0.057169012 | I132: 0.0006353352264 | J132: 0.004392258057 | K132: 0.0002210195838 | L132: 0.04575500224 | M132: 0.05543147429 | N132: 0.06397633902 | O132: 0.04173 | P132: 0.04826720223 | Q132: 0.05688192935 | R132: 0.05630005399 | S132: 108.3443 | T132: 0.0006360075238 | U132: 0.004326526806 | V132: 0.0001132081681 | W132: 0.0001572675668 | X132: -6.645039524e-05 | Y132: 1102.95 | Z132: 958.112875 | AA132: 1100.919953 | AB132: 1108.65 | AC132: 995.1479948 | AD132: 1078.161379 | AE132: 1041.52 | AF132: 1014.266989 | AG132: 1039.28582
A133: 2020-09-23 | B133: 0.04648252411 | C133: 0.05603383461 | D133: 0.06448303103 | E133: 0.042 | F133: 0.04907276969 | G133: 0.0581382188 | H133: 0.05695298305 | I133: 0.00079910416 | J133: 0.004990527342 | K133: 0.000211012724 | L133: 0.04556591217 | M133: 0.05527420672 | N133: 0.06384528139 | O133: 0.0417 | P133: 0.0480559941 | Q133: 0.05666411426 | R133: 0.05616077977 | S133: 108.3515 | T133: 0.0005878484587 | U133: 0.004259835219 | V133: 0.0001179430531 | W133: 9.860516357e-05 | X133: 4.337922301e-05 | Y133: 1103.1 | Z133: 965.6131776 | AA133: 1101.159821 | AB133: 1112.4 | AC133: 1000.309736 | AD133: 1077.737592 | AE133: 1041.61 | AF133: 1016.729645 | AG133: 1038.798938
A134: 2020-09-22 | B134: 0.04607692181 | C134: 0.05583726458 | D134: 0.06445311066 | E134: 0.0419 | F134: 0.04856245498 | G134: 0.05780248045 | H134: 0.0567820208 | I134: 0.0006013053667 | J134: 0.00485920345 | K134: 0.0002050949759 | L134: 0.04544116151 | M134: 0.05517560156 | N134: 0.06378317439 | O134: 0.04162 | P134: 0.0479025526 | Q134: 0.05645665443 | R134: 0.05608408783 | S134: 108.3468 | T134: 0.000538503317 | U134: 0.004143395346 | V134: 0.0001228856119 | W134: 4.375340089e-05 | X134: -3.507133325e-05 | Y134: 1102.09 | Z134: 965.1944984 | AA134: 1100.203389 | AB134: 1110.37 | AC134: 999.8624397 | AD134: 1076.603021 | AE134: 1040.62 | AF134: 1017.168254 | AG134: 1038.503414
A135: 2020-09-21 | B135: 0.04608745606 | C135: 0.05577802156 | D135: 0.06449578508 | E135: 0.0416 | F135: 0.04850492192 | G135: 0.05773210106 | H135: 0.05688855041 | I135: 0.000585405728 | J135: 0.004856855614 | K135: 0.0003275142324 | L135: 0.04541127241 | M135: 0.05513184816 | N135: 0.06377041007 | O135: 0.04181 | P135: 0.04785320667 | Q135: 0.05632027499 | R135: 0.05608407767 | S135: 108.3506 | T135: 0.0005173074886 | U135: 0.004037972593 | V135: 0.0001449096871 | W135: 0.000109324042 | X135: -0.000116275636 | Y135: 1101.77 | Z135: 961.1851172 | AA135: 1098.758364 | AB135: 1109.8 | AC135: 997.6927015 | AD135: 1076.048106 | AE135: 1040.33 | AF135: 1016.027659 | AG135: 1038.269625
A136: 2020-09-18 | B136: 0.04569940492 | C136: 0.05527167752 | D136: 0.06363311106 | E136: 0.042 | F136: 0.04816539003 | G136: 0.05719984158 | H136: 0.05600187921 | I136: 0.0006157584112 | J136: 0.004806303814 | K136: 1.714128123e-05 | L136: 0.04531244025 | M136: 0.05502252411 | N136: 0.06367870616 | O136: 0.04165 | P136: 0.04773715464 | Q136: 0.0561181125 | R136: 0.05600498958 | S136: 108.3632 | T136: 0.0004818772041 | U136: 0.003918478521 | V136: 0.0001500403045 | W136: 9.608187748e-05 | X136: -0.0001328687847 | Y136: 1101.05 | Z136: 971.7808948 | AA136: 1100.891747 | AB136: 1110.73 | AC136: 1004.892313 | AD136: 1077.26333 | AE136: 1040.32 | AF136: 1018.60878 | AG136: 1038.151627
A137: 2020-09-17 | B137: 0.04556443508 | C137: 0.05496429284 | D137: 0.06346915544 | E137: 0.0424 | F137: 0.04797107464 | G137: 0.05637920643 | H137: 0.05573340568 | I137: 0.0005705934226 | J137: 0.004152099836 | K137: -8.372318481e-05 | L137: 0.04525438972 | M137: 0.05492644224 | N137: 0.06363300615 | O137: 0.04158 | P137: 0.04765391195 | Q137: 0.05594701926 | R137: 0.0559797684 | S137: 108.3776 | T137: 0.0004495923154 | U137: 0.003801589732 | V137: 0.000175860193 | W137: 5.958305154e-06 | X137: -0.0003836958767 | Y137: 1099.69 | Z137: 976.4750333 | AA137: 1100.463692 | AB137: 1106.18 | AC137: 1008.764223 | AD137: 1077.245594 | AE137: 1040.65 | AF137: 1021.0235 | AG137: 1038.63984
A138: 2020-09-16 | B138: 0.0455488839 | C138: 0.05494397508 | D138: 0.06343539609 | E138: 0.042 | F138: 0.0478389779 | G138: 0.0559691341 | H138: 0.05572418508 | I138: 0.0004169968234 | J138: 0.003730687766 | K138: -8.718263222e-05 | L138: 0.04524839765 | M138: 0.05492048393 | N138: 0.06364504056 | O138: 0.04149 | P138: 0.04758846778 | Q138: 0.05590643885 | R138: 0.05603774477 | S138: 108.4192 | T138: 0.0003760251609 | U138: 0.003752730212 | V138: 0.0002239539973 | W138: 1.087919171e-05 | X138: -0.0004397654953 | Y138: 1099.72 | Z138: 972.8937639 | AA138: 1100.525661 | AB138: 1103.34 | AC138: 1006.001511 | AD138: 1077.34415 | AE138: 1040.04 | AF138: 1019.472697 | AG138: 1038.571164
A139: 2020-09-15 | B139: 0.04507773722 | C139: 0.05514319725 | D139: 0.06349253044 | E139: 0.0418 | F139: 0.04787846379 | G139: 0.05575713895 | H139: 0.05568858013 | I139: 0.0008167408905 | J139: 0.003681653073 | K139: -2.941143731e-05 | L139: 0.04523848324 | M139: 0.05490960474 | N139: 0.06367984881 | O139: 0.04141 | P139: 0.04753560639 | Q139: 0.05591782226 | R139: 0.056128802 | S139: 108.4669 | T139: 0.0003224166494 | U139: 0.003756769235 | V139: 0.0002988978308 | W139: 0.0001794996468 | X139: -0.0004736528309 | Y139: 1099.57 | Z139: 971.2685257 | AA139: 1099.8417 | AB139: 1101.02 | AC139: 1003.807414 | AD139: 1075.376993 | AE139: 1039.63 | AF139: 1018.212842 | AG139: 1036.752255
A140: 2020-09-14 | B140: 0.04520939719 | C140: 0.05511180594 | D140: 0.06376764985 | E140: 0.0412 | F140: 0.04781232915 | G140: 0.05599815854 | H140: 0.05603143092 | I140: 0.0006311669308 | J140: 0.003816286732 | K140: 0.000162809475 | L140: 0.04517895745 | M140: 0.05473010509 | N140: 0.06354824423 | O140: 0.04133 | P140: 0.04730064083 | Q140: 0.05578897325 | R140: 0.05607616244 | S140: 108.5183 | T140: 0.0001617002541 | U140: 0.003732498679 | V140: 0.0003543320214 | W140: 0.0001443857532 | X140: -0.0005608809054 | Y140: 1099.73 | Z140: 962.9073587 | AA140: 1098.228053 | AB140: 1101.31 | AC140: 998.2874153 | AD140: 1074.741578 | AE140: 1039.26 | AF140: 1015.968731 | AG140: 1037.036777
A141: 2020-09-11 | B141: 0.04500542986 | C141: 0.05504981297 | D141: 0.06386754237 | E141: 0.041 | F141: 0.04771568412 | G141: 0.05609166403 | H141: 0.05602849265 | I141: 0.0006876682784 | J141: 0.003979392374 | K141: 0.0001878066627 | L141: 0.04511850954 | M141: 0.05458571934 | N141: 0.06345416602 | O141: 0.04131 | P141: 0.04708697811 | Q141: 0.05568562057 | R141: 0.0560687968 | S141: 108.5792 | T141: 1.509880564e-05 | U141: 0.003712810702 | V141: 0.0004301410635 | W141: 0.0001294567842 | X141: -0.0005743656205 | Y141: 1098.85 | Z141: 960.3025041 | AA141: 1097.118613 | AB141: 1100.94 | AC141: 995.9163581 | AD141: 1073.24721 | AE141: 1038.84 | AF141: 1015.185554 | AG141: 1036.417847
A142: 2020-09-10 | B142: 0.0449069316 | C142: 0.05460818486 | D142: 0.0633555019 | E142: 0.0411 | F142: 0.04703787475 | G142: 0.05557319861 | H142: 0.05577626974 | I142: 0.0001537445752 | J142: 0.003725342189 | K142: 0.0002683684337 | L142: 0.04513378048 | M142: 0.05445626256 | N142: 0.06333662701 | O142: 0.04139 | P142: 0.04691777289 | Q142: 0.05557255545 | R142: 0.05605937533 | S142: 108.6416 | T142: -0.0001391332716 | U142: 0.003659443371 | V142: 0.0004897436365 | W142: 1.976129659e-05 | X142: -0.0003717266889 | Y142: 1100.84 | Z142: 965.1851302 | AA142: 1098.359432 | AB142: 1100.49 | AC142: 999.6131932 | AD142: 1074.524722 | AE142: 1037.75 | AF142: 1016.825822 | AG142: 1037.208227
A143: 2020-09-09 | B143: 0.04523501747 | C143: 0.05504778298 | D143: 0.06386196096 | E143: 0.0412 | F143: 0.04753835469 | G143: 0.05606362055 | H143: 0.05618606365 | I143: 0.0003056527429 | J143: 0.003826128613 | K143: 0.0002604383128 | L143: 0.04515741898 | M143: 0.05443650126 | N143: 0.06333848099 | O143: 0.04143 | P143: 0.04686160128 | Q143: 0.05558215326 | R143: 0.05612601745 | S143: 108.682 | T143: -0.0002163949194 | U143: 0.003658331063 | V143: 0.0005450359259 | W143: 4.609630945e-05 | X143: -0.0005747417111 | Y143: 1099.8 | Z143: 961.7048276 | AA143: 1097.400085 | AB143: 1100.35 | AC143: 996.9602606 | AD143: 1073.735863 | AE143: 1037.73 | AF143: 1015.418288 | AG143: 1036.654068
A144: 2020-09-08 | B144: 0.04577803076 | C144: 0.05539973057 | D144: 0.06432546747 | E144: 0.0438 | F144: 0.04806899568 | G144: 0.05643868607 | H144: 0.05678191926 | I144: 0.0003893470827 | J144: 0.003804975922 | K144: 0.0004253357272 | L144: 0.04516026494 | M144: 0.05439040495 | N144: 0.0633413719 | O144: 0.04148 | P144: 0.04676898883 | Q144: 0.05562327407 | R144: 0.05622112191 | S144: 108.7445 | T144: -0.0003107715844 | U144: 0.003704370222 | V144: 0.0006398831792 | W144: 0.0001044156802 | X144: -0.0005486920542 | Y144: 1099.64 | Z144: 980.3750056 | AA144: 1095.732437 | AB144: 1099.88 | AC144: 1012.124441 | AD144: 1073.460498 | AE144: 1037.98 | AF144: 1022.970943 | AG144: 1036.611122
A145: 2020-09-07 | B145: 0.04509913447 | C145: 0.05468478114 | D145: 0.06357874604 | E145: 0.04 | F145: 0.04734440165 | G145: 0.05571047615 | H145: 0.05609766943 | I145: 0.0002311028837 | J145: 0.003661914895 | K145: 0.0003788204068 | L145: 0.04510329485 | M145: 0.05428598927 | N145: 0.06329262982 | O145: 0.04126 | P145: 0.04661631884 | Q145: 0.05555652026 | R145: 0.05624252055 | S145: 108.8042 | T145: -0.0004125300408 | U145: 0.003689043649 | V145: 0.0007123439251 | W145: 3.67270363e-05 | X145: -0.0004960581748 | Y145: 1100.19 | Z145: 951.6689916 | AA145: 1096.694911 | AB145: 1099.68 | AC145: 990.2936171 | AD145: 1074.183406 | AE145: 1037.94 | AF145: 1012.080481 | AG145: 1037.12629
A146: 2020-09-04 | B146: 0.04511889964 | C146: 0.05431085874 | D146: 0.06317611095 | E146: 0.0413 | F146: 0.04733296314 | G146: 0.0554889092 | H146: 0.05574966745 | I146: 0.0002929095237 | J146: 0.003637415924 | K146: 0.0002753401658 | L146: 0.04513700709 | M146: 0.05424926223 | N146: 0.06327530842 | O146: 0.04132 | P146: 0.0465372676 | Q146: 0.05560243509 | R146: 0.05628197216 | S146: 108.8582 | T146: -0.0005170878085 | U146: 0.003723532806 | V146: 0.0007494345216 | W146: -2.903168472e-05 | X146: -0.0004636911468 | Y146: 1099.66 | Z146: 966.1253437 | AA146: 1097.115481 | AB146: 1100.24 | AC146: 1001.359114 | AD146: 1074.891264 | AE146: 1038.63 | AF146: 1017.388239 | AG146: 1037.59868
A147: 2020-09-03 | B147: 0.04550451442 | C147: 0.05490470979 | D147: 0.06358949954 | E147: 0.0415 | F147: 0.04731663293 | G147: 0.05597340225 | H147: 0.05631316942 | I147: -0.0001650781223 | J147: 0.003663504633 | K147: 0.0003972148583 | L147: 0.04516507452 | M147: 0.05427829392 | N147: 0.06334411219 | O147: 0.04129 | P147: 0.04660405163 | Q147: 0.05572664665 | R147: 0.05641031156 | S147: 108.9087 | T147: -0.0004824477596 | U147: 0.003807021599 | V147: 0.0008278264101 | W147: 7.592791511e-05 | X147: -0.0004460462952 | Y147: 1101.02 | Z147: 964.5209519 | AA147: 1097.359781 | AB147: 1100.2 | AC147: 999.5680677 | AD147: 1074.728066 | AE147: 1036.13 | AF147: 1015.678272 | AG147: 1036.710427
A148: 2020-09-02 | B148: 0.04544973979 | C148: 0.05483518316 | D148: 0.06378347857 | E148: 0.0412 | F148: 0.04731036398 | G148: 0.05608296822 | H148: 0.05663475735 | I148: -0.0001190882913 | J148: 0.003771077999 | K148: 0.0006622557033 | L148: 0.04515733011 | M148: 0.054202366 | N148: 0.06329392406 | O148: 0.04126 | P148: 0.04665026059 | Q148: 0.05573138638 | R148: 0.05641478716 | S148: 108.9573 | T148: -0.0004146409916 | U148: 0.00384663546 | V148: 0.000869700723 | W148: 0.000127320653 | X148: -0.000247742106 | Y148: 1101.66 | Z148: 959.5689411 | AA148: 1095.563331 | AB148: 1099.93 | AC148: 996.4752824 | AD148: 1073.716425 | AE148: 1036.34 | AF148: 1014.853774 | AG148: 1036.758757
A149: 2020-09-01 | B149: 0.04448247933 | C149: 0.05334820078 | D149: 0.0621764846 | E149: 0.041 | F149: 0.04552880816 | G149: 0.05446864884 | H149: 0.05516218454 | I149: -0.0007904230625 | J149: 0.003438947515 | K149: 0.0005249304688 | L149: 0.04514839771 | M149: 0.05407504535 | N149: 0.0631432218 | O149: 0.04124 | P149: 0.04667760282 | Q149: 0.05566099624 | R149: 0.05630277766 | S149: 108.9843 | T149: -0.0003555558708 | U149: 0.003850984589 | V149: 0.0008499311042 | W149: -6.333548422e-05 | X149: -0.0003879787135 | Y149: 1101.88 | Z149: 970.3214679 | AA149: 1097.003698 | AB149: 1099.45 | AC149: 1005.264287 | AD149: 1075.40158 | AE149: 1035.34 | AF149: 1019.369483 | AG149: 1038.12737
A150: 2020-08-31 | B150: 0.04460491805 | C150: 0.05366794841 | D150: 0.06282686775 | E150: 0.041 | F150: 0.045675702 | G150: 0.05496463174 | H150: 0.05595777455 | I150: -0.0008348475542 | J150: 0.003619406956 | K150: 0.0009208998953 | L150: 0.04525013573 | M150: 0.05413838083 | N150: 0.06321868097 | O150: 0.04126 | P150: 0.04694587194 | Q150: 0.05585455686 | R150: 0.0564191837 | S150: 109.0266 | T150: -0.0001866363292 | U150: 0.003955433152 | V150: 0.0008824442863 | W150: -0.0001565443061 | X150: -0.0002686695539 | Y150: 1102.99 | Z150: 964.5226029 | AA150: 1094.465028 | AB150: 1098.88 | AC150: 1001.40468 | AD150: 1073.615972 | AE150: 1034.68 | AF150: 1018.201764 | AG150: 1037.622192
A151: 2020-08-28 | B151: 0.04515813923 | C151: 0.05375524513 | D151: 0.06269215228 | E151: 0.0418 | F151: 0.04602363188 | G151: 0.05496101288 | H151: 0.05593427794 | I151: -0.0008546524945 | J151: 0.003445719063 | K151: 0.0007838323926 | L151: 0.04541035581 | M151: 0.05429492514 | N151: 0.06332240559 | O151: 0.04127 | P151: 0.04731964547 | Q151: 0.05605525227 | R151: 0.05653793646 | S151: 109.0559 | T151: 1.943296581e-05 | U151: 0.004001664762 | V151: 0.0008640436063 | W151: 6.67876901e-05 | X151: -0.000322666102 | Y151: 1102.26 | Z151: 971.4748012 | AA151: 1095.007159 | AB151: 1098.79 | AC151: 1006.991897 | AD151: 1074.756099 | AE151: 1034.73 | AF151: 1019.863439 | AG151: 1037.738251
A152: 2020-08-27 | B152: 0.04514331668 | C152: 0.0544105719 | D152: 0.06337404173 | E152: 0.0415 | F152: 0.04647615873 | G152: 0.05566917667 | H152: 0.05644269086 | I152: -0.0006188719022 | J152: 0.003714219114 | K152: 0.0008212913286 | L152: 0.04539637888 | M152: 0.05422813745 | N152: 0.06323972962 | O152: 0.0412 | P152: 0.04744097728 | Q152: 0.05605243426 | R152: 0.05648353146 | S152: 109.0911 | T152: 0.0001487111698 | U152: 0.004024823441 | V152: 0.0008530731812 | W152: 0.0001915002735 | X152: -0.0003234780951 | Y152: 1102.05 | Z152: 964.3036129 | AA152: 1094.47908 | AB152: 1098.73 | AC152: 1000.166262 | AD152: 1072.89312 | AE152: 1034.02 | AF152: 1016.520492 | AG152: 1036.196368
A153: 2020-08-26 | B153: 0.04526347704 | C153: 0.05458681988 | D153: 0.06389087005 | E153: 0.0417 | F153: 0.04661223009 | G153: 0.05647482865 | H153: 0.05713710831 | I153: -0.0006381139075 | J153: 0.004286520197 | K153: 0.001208910845 | L153: 0.04535119079 | M153: 0.05403663718 | N153: 0.06300007015 | O153: 0.04113 | P153: 0.04745855902 | Q153: 0.05589437475 | R153: 0.05628928464 | S153: 109.1264 | T153: 0.0002341167229 | U153: 0.003993232314 | V153: 0.0008129785519 | W153: 0.0002399866298 | X153: -0.0003123840583 | Y153: 1103.22 | Z153: 961.3036198 | AA153: 1092.106244 | AB153: 1101.26 | AC153: 998.6177971 | AD153: 1071.481118 | AE153: 1033.79 | AF153: 1016.523268 | AG153: 1036.033002
A154: 2020-08-25 | B154: 0.04520832983 | C154: 0.05435557376 | D154: 0.06383804669 | E154: 0.0416 | F154: 0.04654229581 | G154: 0.05577114799 | H154: 0.0569959057 | I154: -0.0006282374807 | J154: 0.0036517102 | K154: 0.001149943186 | L154: 0.04530205209 | M154: 0.05379665055 | N154: 0.0626693315 | O154: 0.04105 | P154: 0.04742815547 | Q154: 0.0556161888 | R154: 0.05602077067 | S154: 109.1605 | T154: 0.0002869598913 | U154: 0.003880388503 | V154: 0.0007486690624 | W154: 0.0002389828393 | X154: -0.000261930907 | Y154: 1102.78 | Z154: 961.1767357 | AA154: 1092.203441 | AB154: 1096.7 | AC154: 998.2150824 | AD154: 1071.321789 | AE154: 1034.37 | AF154: 1016.992431 | AG154: 1036.578941
A155: 2020-08-24 | B155: 0.04543625686 | C155: 0.05431751078 | D155: 0.06340553206 | E155: 0.0406 | F155: 0.0465538893 | G155: 0.05616962449 | H155: 0.05649218545 | I155: -0.0008144747935 | J155: 0.00400680646 | K155: 0.0007497263721 | L155: 0.04525888211 | M155: 0.05355766771 | N155: 0.06232279858 | O155: 0.04107 | P155: 0.04743040269 | Q155: 0.05538227177 | R155: 0.05573863951 | S155: 109.1891 | T155: 0.0003725709511 | U155: 0.003825428698 | V155: 0.0006810924982 | W155: 0.0002193345573 | X155: -4.212697253e-05 | Y155: 1102.76 | Z155: 956.3340032 | AA155: 1095.852238 | AB155: 1101.29 | AC155: 993.0569723 | AD155: 1073.436483 | AE155: 1034.16 | AF155: 1013.235318 | AG155: 1037.022436
A156: 2020-08-21 | B156: 0.04539957401 | C156: 0.05460117559 | D156: 0.06386414861 | E156: 0.041 | F156: 0.04800080337 | G156: 0.0567310248 | H156: 0.05703306152 | I156: 0.0006393100129 | J156: 0.004472303853 | K156: 0.001059259051 | L156: 0.04519335647 | M156: 0.05333833315 | N156: 0.0619891736 | O156: 0.04119 | P156: 0.04743849113 | Q156: 0.05509259167 | R156: 0.05545840788 | S156: 109.1937 | T156: 0.0004785310037 | U156: 0.003717374478 | V156: 0.0006112940374 | W156: 0.0002559730287 | X156: -7.966857871e-05 | Y156: 1101.88 | Z156: 954.5999792 | AA156: 1092.149625 | AB156: 1102.04 | AC156: 992.8579911 | AD156: 1070.999739 | AE156: 1037.74 | AF156: 1013.153529 | AG156: 1035.494775
A157: 2020-08-20 | B157: 0.04542707023 | C157: 0.05414543064 | D157: 0.06308761824 | E157: 0.0412 | F157: 0.04777872258 | G157: 0.05602079951 | H157: 0.05635792535 | I157: 0.0005129895575 | J157: 0.004059643244 | K157: 0.0008159579872 | L157: 0.04512886523 | M157: 0.05308236012 | N157: 0.06162840987 | O157: 0.04126 | P157: 0.04730521736 | Q157: 0.05474720662 | R157: 0.05514270048 | S157: 109.2024 | T157: 0.0004461491289 | U157: 0.003561089839 | V157: 0.0005227502834 | W157: 0.0001998972328 | X157: 5.219937965e-05 | Y157: 1103.05 | Z157: 963.2703667 | AA157: 1095.525599 | AB157: 1101.55 | AC157: 998.491716 | AD157: 1073.320763 | AE157: 1038.23 | AF157: 1015.118297 | AG157: 1036.427817
A158: 2020-08-19 | B158: 0.04536041579 | C158: 0.05356197663 | D158: 0.06227645603 | E158: 0.041 | F158: 0.04758378625 | G158: 0.05537906678 | H158: 0.05551466241 | I158: 0.0004717629166 | J158: 0.003814569286 | K158: 0.0004645595153 | L158: 0.0450853077 | M158: 0.05288246289 | N158: 0.0613474768 | O158: 0.04127 | P158: 0.04721400655 | Q158: 0.05450110515 | R158: 0.05489697883 | S158: 109.1967 | T158: 0.0004255145124 | U158: 0.003460676582 | V158: 0.0004505161795 | W158: 0.0001847748206 | X158: -9.980990334e-05 | Y158: 1101.53 | Z158: 967.1438402 | AA158: 1097.228807 | AB158: 1102.27 | AC158: 1002.040255 | AD158: 1075.680423 | AE158: 1039.1 | AF158: 1015.959841 | AG158: 1037.441886
A159: 2020-08-18 | B159: 0.04549985955 | C159: 0.05398155562 | D159: 0.06293107625 | E159: 0.0412 | F159: 0.04821149941 | G159: 0.05640425508 | H159: 0.05632624492 | I159: 0.0008987723538 | J159: 0.004483433149 | K159: 0.0008500622898 | L159: 0.04500397142 | M159: 0.05269768807 | N159: 0.06111772459 | O159: 0.04127 | P159: 0.04711197759 | Q159: 0.05427255425 | R159: 0.054702385 | S159: 109.2076 | T159: 0.0004163116542 | U159: 0.00337083817 | V159: 0.0004138613205 | W159: 0.0002286862803 | X159: 0.0001428676093 | Y159: 1103.28 | Z159: 963.7314937 | AA159: 1095.437675 | AB159: 1104.97 | AC159: 999.2189133 | AD159: 1073.786103 | AE159: 1039.87 | AF159: 1015.243703 | AG159: 1036.713267
A160: 2020-08-17 | B160: 0.04620711891 | C160: 0.05523339147 | D160: 0.06386411394 | E160: 0.0411 | F160: 0.04941343726 | G160: 0.05697158586 | H160: 0.05714530213 | I160: 0.001225845396 | J160: 0.004081723059 | K160: 0.0007368930952 | L160: 0.04492404712 | M160: 0.05246900179 | N160: 0.06080369642 | O160: 0.04118 | P160: 0.04704199389 | Q160: 0.05392894045 | R160: 0.05440426631 | S160: 109.192 | T160: 0.0005326451214 | U160: 0.003207996835 | V160: 0.0003238468067 | W160: 0.0003399753916 | X160: 9.159018886e-05 | Y160: 1103.09 | Z160: 955.9549238 | AA160: 1096.332706 | AB160: 1101.45 | AC160: 991.5882012 | AD160: 1073.196652 | AE160: 1039.23 | AF160: 1010.107868 | AG160: 1034.93584
A161: 2020-08-14 | B161: 0.0450183699 | C161: 0.05308736823 | D161: 0.06186539256 | E161: 0.0411 | F161: 0.04723694998 | G161: 0.05493283277 | H161: 0.05539022799 | I161: 0.0004381295458 | J161: 0.00367730585 | K161: 0.0006741281417 | L161: 0.04476814657 | M161: 0.0521290264 | N161: 0.06042291085 | O161: 0.04099 | P161: 0.04694194423 | Q161: 0.05355367847 | R161: 0.0540578766 | S161: 109.182 | T161: 0.0007084492723 | U161: 0.003102304579 | V161: 0.000265173194 | W161: 5.312662836e-05 | X161: 0.0001511466535 | Y161: 1102.95 | Z161: 970.4295537 | AA161: 1096.698472 | AB161: 1101.02 | AC161: 1004.510181 | AD161: 1075.36393 | AE161: 1039.07 | AF161: 1017.491383 | AG161: 1037.529458
A162: 2020-08-13 | B162: 0.04469143578 | C162: 0.05249556916 | D162: 0.06097744711 | E162: 0.0408 | F162: 0.04665197617 | G162: 0.05408858158 | H162: 0.05450022267 | I162: 0.0002351836284 | J162: 0.003398307843 | K162: 0.0004203450353 | L162: 0.04475668113 | M162: 0.05207589977 | N162: 0.06031001069 | O162: 0.04114 | P162: 0.04704895092 | Q162: 0.0534432117 | R162: 0.05394455403 | S162: 109.1655 | T162: 0.0009136153115 | U162: 0.003043910322 | V162: 0.0002138405896 | W162: -1.139423919e-05 | X162: 0.0001090206828 | Y162: 1102.75 | Z162: 975.1018582 | AA162: 1098.833548 | AB162: 1100.8 | AC162: 1007.831991 | AD162: 1077.025159 | AE162: 1038.7 | AF162: 1018.106692 | AG162: 1037.872381
A163: 2020-08-12 | B163: 0.0447720901 | C163: 0.05218695358 | D163: 0.0605834835 | E163: 0.0409 | F163: 0.04630819451 | G163: 0.05369296918 | H163: 0.0544519686 | I163: -0.0001096822234 | J163: 0.003158082085 | K163: 0.0005658159504 | L163: 0.0447683429 | M163: 0.05208729401 | N163: 0.0602931761 | O163: 0.0413 | P163: 0.0472106024 | Q163: 0.05343486747 | R163: 0.05392845991 | S163: 109.1536 | T163: 0.001132778696 | U163: 0.003026208857 | V163: 0.0001919229063 | W163: 5.011184305e-05 | X163: 0.0003088345939 | Y163: 1103.8 | Z163: 977.3307903 | AA163: 1098.519712 | AB163: 1100.59 | AC163: 1010.987893 | AD163: 1078.470756 | AE163: 1038.26 | AF163: 1019.226956 | AG163: 1038.646004
A164: 2020-08-11 | B164: 0.04477663001 | C164: 0.05196574537 | D164: 0.06037271754 | E164: 0.0418 | F164: 0.04656476803 | G164: 0.05343197763 | H164: 0.05417459402 | I164: 0.0002278731177 | J164: 0.003102112156 | K164: 0.0004741775442 | L164: 0.04471260994 | M164: 0.05203718216 | N164: 0.06024742222 | O164: 0.04136 | P164: 0.04733575357 | Q164: 0.05340726741 | R164: 0.05383752732 | S164: 109.1199 | T164: 0.001377085924 | U164: 0.003045717876 | V164: 0.0001464052616 | W164: 4.48906785e-05 | X164: 0.0002007369521 | Y164: 1102.81 | Z164: 987.1987655 | AA164: 1098.379935 | AB164: 1100.38 | AC164: 1018.838657 | AD164: 1078.633879 | AE164: 1039.47 | AF164: 1022.70175 | AG164: 1038.668065
A165: 2020-08-10 | B165: 0.04478100039 | C165: 0.05212416521 | D165: 0.0600692822 | E165: 0.0418 | F165: 0.04663477368 | G165: 0.0532728235 | H165: 0.05368986921 | I165: 0.0002451257321 | J165: 0.002926264259 | K165: 5.174176405e-05 | L165: 0.04464027811 | M165: 0.05199229149 | N165: 0.06022107058 | O165: 0.04129 | P165: 0.04742350081 | Q165: 0.05340488092 | R165: 0.05377707622 | S165: 109.098 | T165: 0.001572194406 | U165: 0.003074980975 | V165: 0.0001182247452 | W165: 9.367463254e-05 | X165: -6.874080592e-05 | Y165: 1100.39 | Z165: 989.2171798 | AA165: 1099.906203 | AB165: 1100.28 | AC165: 1019.868086 | AD165: 1079.770096 | AE165: 1038.93 | AF165: 1021.921825 | AG165: 1038.067676
A166: 2020-08-07 | B166: 0.04475466163 | C166: 0.0520414453 | D166: 0.06025651135 | E166: 0.0417 | F166: 0.0466680657 | G166: 0.05327717427 | H166: 0.05387598747 | I166: 0.0003154912647 | J166: 0.002909457462 | K166: 0.0001738215105 | L166: 0.0445447993 | M166: 0.05189861685 | N166: 0.06016942415 | O166: 0.04114 | P166: 0.04747504768 | Q166: 0.05339420776 | R166: 0.05371611817 | S166: 109.1055 | T166: 0.001764557812 | U166: 0.00313024809 | V166: 0.0001216732224 | W166: 0.0001140257181 | X166: -5.682250391e-05 | Y166: 1099.92 | Z166: 986.2077179 | AA166: 1098.29667 | AB166: 1098.84 | AC166: 1017.742952 | AD166: 1078.459516 | AE166: 1039.06 | AF166: 1021.585715 | AG166: 1037.950316
A167: 2020-08-06 | B167: 0.04499149491 | C167: 0.05214645831 | D167: 0.06027828754 | E167: 0.0413 | F167: 0.04686661448 | G167: 0.05355978483 | H167: 0.05390070891 | I167: 0.0003066433926 | J167: 0.003055510667 | K167: 9.361694903e-05 | L167: 0.04447667881 | M167: 0.05178459114 | N167: 0.06007134813 | O167: 0.04093 | P167: 0.04750169158 | Q167: 0.05334447097 | R167: 0.05361386598 | S167: 109.1117 | T167: 0.001912812396 | U167: 0.003154397415 | V167: 0.0001017658383 | W167: 0.0001314076915 | X167: -3.482548309e-05 | Y167: 1099.64 | Z167: 982.0209087 | AA167: 1098.766149 | AB167: 1100.34 | AC167: 1014.507139 | AD167: 1078.947845 | AE167: 1039.03 | AF167: 1019.462734 | AG167: 1037.952115
A168: 2020-08-05 | B168: 0.04454705301 | C168: 0.05171422842 | D168: 0.05997893393 | E168: 0.041 | F168: 0.04656349672 | G168: 0.05309355781 | H168: 0.05356872408 | I168: 0.0003797343345 | J168: 0.002916185166 | K168: 9.801092515e-05 | L168: 0.04438816373 | M168: 0.05165318344 | N168: 0.05995853455 | O168: 0.04083 | P168: 0.04750203814 | Q168: 0.05328527512 | R168: 0.05349237621 | S168: 109.1155 | T168: 0.002036510775 | U168: 0.003179430131 | V168: 7.561491651e-05 | W168: 9.293910073e-05 | X168: 3.757627526e-05 | Y168: 1099.79 | Z168: 982.2334843 | AA168: 1098.873294 | AB168: 1099.17 | AC168: 1014.379608 | AD168: 1078.724033 | AE168: 1039.6 | AF168: 1020.024361 | AG168: 1038.263872
A169: 2020-08-04 | B169: 0.0447006166 | C169: 0.05169469282 | D169: 0.05979079454 | E169: 0.0403 | F169: 0.04751166234 | G169: 0.05296811706 | H169: 0.053345058 | I169: 0.002062107025 | J169: 0.0028550198 | K169: -5.008284893e-05 | L169: 0.04436926442 | M169: 0.05156024434 | N169: 0.05986662778 | O169: 0.04084 | P169: 0.04753320632 | Q169: 0.05329145649 | R169: 0.05339435247 | S169: 109.1114 | T169: 0.002136651963 | U169: 0.003231030539 | V169: 3.711579933e-05 | W169: 0.0001228239711 | X169: -0.0001493662929 | Y169: 1098.89 | Z169: 976.8050936 | AA169: 1099.358711 | AB169: 1099.17 | AC169: 1010.337699 | AD169: 1079.149821 | AE169: 1078.42 | AF169: 1049.526535 | AG169: 1070.158185
A170: 2020-08-03 | B170: 0.04464811341 | C170: 0.05183363755 | D170: 0.06005625823 | E170: 0.0392 | F170: 0.04841294065 | G170: 0.05321896603 | H170: 0.0536814051 | I170: 0.002983886905 | J170: 0.003024800497 | K170: 0.0001501569683 | L170: 0.04431816939 | M170: 0.05143742037 | N170: 0.05978007855 | O170: 0.04093 | P170: 0.04743606491 | Q170: 0.05336302229 | R170: 0.05332486442 | S170: 109.1277 | T170: 0.002057120631 | U170: 0.003364893807 | V170: 3.872367886e-05 | W170: 9.975953851e-05 | X170: -0.0001997260638 | Y170: 1099.26 | Z170: 963.9389873 | AA170: 1097.856863 | AB170: 1099.14 | AC170: 1000.914658 | AD170: 1077.946421 | AE170: 1081.44 | AF170: 1044.535788 | AG170: 1069.487465
A171: 2020-07-31 | B171: 0.0449037155 | C171: 0.05255610195 | D171: 0.06073639095 | E171: 0.0426 | F171: 0.0483070169 | G171: 0.05382816513 | H171: 0.05425700224 | I171: 0.002489789938 | J171: 0.003093363282 | K171: 0.0001608020982 | L171: 0.04426314543 | M171: 0.05133766083 | N171: 0.05971050032 | O171: 0.04113 | P171: 0.04727073041 | Q171: 0.05341564722 | R171: 0.05328067128 | S171: 109.1495 | T171: 0.001904199315 | U171: 0.003467890635 | V171: 5.183646822e-05 | W171: 0.0001354691583 | X171: -0.0002317384598 | Y171: 1098.47 | Z171: 990.0263366 | AA171: 1096.974078 | AB171: 1097.95 | AC171: 1019.535621 | AD171: 1076.346812 | AE171: 1077.8 | AF171: 1054.975128 | AG171: 1067.842234
A172: 2020-07-30 | B172: 0.04480805345 | C172: 0.05260951155 | D172: 0.06080910121 | E172: 0.0424 | F172: 0.04826849103 | G172: 0.05400513927 | H172: 0.05433928144 | I172: 0.002426817477 | J172: 0.003221293195 | K172: 0.0002011682023 | L172: 0.04418484589 | M172: 0.05120219168 | N172: 0.05960800006 | O172: 0.04101 | P172: 0.04716186585 | Q172: 0.05346273288 | R172: 0.05321655389 | S172: 109.1748 | T172: 0.001843215644 | U172: 0.003598791987 | V172: 7.584040271e-05 | W172: 0.0001249707929 | X172: -0.0003232301774 | Y172: 1098.73 | Z172: 987.7154293 | AA172: 1096.859485 | AB172: 1098.39 | AC172: 1017.37797 | AD172: 1075.903109 | AE172: 1077.44 | AF172: 1053.970864 | AG172: 1067.734726
A173: 2020-07-29 | B173: 0.04421476053 | C173: 0.05168583515 | D173: 0.0601259447 | E173: 0.0415 | F173: 0.0475597062 | G173: 0.05341696861 | H173: 0.05354264274 | I173: 0.002333390049 | J173: 0.003353172274 | K173: 0.0001106395029 | L173: 0.04412480574 | M173: 0.05107722088 | N173: 0.05952462609 | O173: 0.0409 | P173: 0.04707233011 | Q173: 0.05348807275 | R173: 0.0531906411 | S173: 109.2101 | T173: 0.001799788124 | U173: 0.003700531915 | V173: 0.0001248626966 | W173: 3.124501931e-05 | X173: -0.0004082204244 | Y173: 1097.6 | Z173: 985.1315881 | AA173: 1096.566718 | AB173: 1099.37 | AC173: 1015.905669 | AD173: 1075.884977 | AE173: 1078.06 | AF173: 1053.786237 | AG173: 1068.712986
A174: 2020-07-28 | B174: 0.04405331171 | C174: 0.05151683859 | D174: 0.06010920115 | E174: 0.0411 | F174: 0.04744224044 | G174: 0.05340811268 | H174: 0.05357008305 | I174: 0.002178957943 | J174: 0.003394743145 | K174: 0.0001923723802 | L174: 0.04414211809 | M174: 0.05104597586 | N174: 0.059486169 | O174: 0.041 | P174: 0.04705071835 | Q174: 0.05361518017 | R174: 0.05320537606 | S174: 109.2547 | T174: 0.00174839163 | U174: 0.003826293632 | V174: 0.000148714097 | W174: 2.940579583e-05 | X174: -0.0003239085699 | Y174: 1097.78 | Z174: 981.2991681 | AA174: 1095.983084 | AB174: 1099.51 | AC174: 1013.279778 | AD174: 1075.726544 | AE174: 1078.11 | AF174: 1052.700683 | AG174: 1069.380304
A175: 2020-07-27 | B175: 0.04382621223 | C175: 0.05118741888 | D175: 0.05955281791 | E175: 0.0403 | F175: 0.04715024236 | G175: 0.05316609197 | H175: 0.05308028872 | I175: 0.002168759794 | J175: 0.003478935414 | K175: 8.62265368e-05 | L175: 0.04416740421 | M175: 0.05101657007 | N175: 0.05942595305 | O175: 0.04121 | P175: 0.04703740211 | Q175: 0.05365872868 | R175: 0.05319150967 | S175: 109.2901 | T175: 0.001721478293 | U175: 0.00387877826 | V175: 0.0001549131453 | W175: -1.409977529e-05 | X175: -0.0002936274608 | Y175: 1098.31 | Z175: 978.5918803 | AA175: 1097.502281 | AB175: 1101.08 | AC175: 1010.806356 | AD175: 1076.670399 | AE175: 1078.04 | AF175: 1050.580825 | AG175: 1069.346533
A176: 2020-07-24 | B176: 0.04407345676 | C176: 0.05090118812 | D176: 0.05927575109 | E176: 0.0396 | F176: 0.04693450464 | G176: 0.05277980629 | H176: 0.0528534655 | I176: 0.001798037104 | J176: 0.00315095071 | K176: -2.525233123e-05 | L176: 0.04424437402 | M176: 0.05103066984 | N176: 0.05939823215 | O176: 0.04153 | P176: 0.04709657691 | Q176: 0.05375559611 | R176: 0.0532120641 | S176: 109.3222 | T176: 0.001714694591 | U176: 0.003942064217 | V176: 0.0001557604989 | W176: -0.0001021529443 | X176: -0.0004525850837 | Y176: 1097.71 | Z176: 973.4405139 | AA176: 1097.946775 | AB176: 1099.77 | AC176: 1007.249841 | AD176: 1077.650824 | AE176: 1077.56 | AF176: 1048.171121 | AG176: 1070.355383
A177: 2020-07-23 | B177: 0.04410634408 | C177: 0.0508323814 | D177: 0.05915015183 | E177: 0.0403 | F177: 0.04687008011 | G177: 0.05296782635 | H177: 0.0526858112 | I177: 0.001543627183 | J177: 0.003305837832 | K177: -0.0001678922686 | L177: 0.04431849292 | M177: 0.05113282279 | N177: 0.05943590175 | O177: 0.04191 | P177: 0.04720875544 | Q177: 0.05394493513 | R177: 0.05331838044 | S177: 109.3717 | T177: 0.001761022506 | U177: 0.004058270075 | V177: 0.0001933986846 | W177: -9.497964292e-05 | X177: -0.0006113016797 | Y177: 1097.19 | Z177: 981.000928 | AA177: 1098.764967 | AB177: 1101.7 | AC177: 1012.761102 | AD177: 1078.490211 | AE177: 1077.25 | AF177: 1050.930963 | AG177: 1071.066395
A178: 2020-07-22 | B178: 0.04435805996 | C178: 0.05078483742 | D178: 0.05905986615 | E178: 0.0411 | F178: 0.04687517854 | G178: 0.05315537154 | H178: 0.05258848673 | I178: 0.001381146216 | J178: 0.003432189246 | K178: -0.0002869802466 | L178: 0.0443606049 | M178: 0.05122780243 | N178: 0.05949083567 | O178: 0.04216 | P178: 0.04733161176 | Q178: 0.05410239081 | R178: 0.05345714943 | S178: 109.4386 | T178: 0.001870197427 | U178: 0.004163273102 | V178: 0.0002718490279 | W178: -0.0001202225369 | X178: -0.0003516717195 | Y178: 1096.55 | Z178: 988.7642042 | AA178: 1099.242469 | AB178: 1103.34 | AC178: 1018.706098 | AD178: 1079.244553 | AE178: 1077.18 | AF178: 1054.053539 | AG178: 1071.649258
A179: 2020-07-21 | B179: 0.0441896663 | C179: 0.05046645311 | D179: 0.05892530229 | E179: 0.0412 | F179: 0.04654024824 | G179: 0.05368377507 | H179: 0.05265017745 | I179: 0.001266793704 | J179: 0.004193652479 | K179: -3.400405363e-05 | L179: 0.04440491524 | M179: 0.05134802497 | N179: 0.05957968756 | O179: 0.04235 | P179: 0.04752065479 | Q179: 0.05424062226 | R179: 0.0536015824 | S179: 109.4771 | T179: 0.002032569048 | U179: 0.004231529334 | V179: 0.0003336123366 | W179: -0.0002087887191 | X179: -0.0007739916887 | Y179: 1097.69 | Z179: 990.1703956 | AA179: 1098.009305 | AB179: 1108.26 | AC179: 1020.536068 | AD179: 1078.791055 | AE179: 1076.92 | AF179: 1055.525348 | AG179: 1071.844841
A180: 2020-07-20 | B180: 0.04409787377 | C180: 0.05083604217 | D180: 0.05936047596 | E180: 0.0412 | F180: 0.0467595956 | G180: 0.05374521525 | H180: 0.05323947377 | I180: 0.001454673745 | J180: 0.004054768777 | K180: 0.0002812848619 | L180: 0.04449712173 | M180: 0.05155681369 | N180: 0.05976695657 | O180: 0.04248 | P180: 0.04780839946 | Q180: 0.05442283546 | R180: 0.05387503538 | S180: 109.5619 | T180: 0.002240190517 | U180: 0.004269469514 | V180: 0.000447275699 | W180: -0.0002541583754 | X180: -0.0007733930889 | Y180: 1098.61 | Z180: 985.8545341 | AA180: 1095.975632 | AB180: 1105.66 | AC180: 1017.641102 | AD180: 1077.211203 | AE180: 1076.3 | AF180: 1054.037609 | AG180: 1070.475023
A181: 2020-07-17 | B181: 0.04412072012 | C181: 0.05120141036 | D181: 0.0597113883 | E181: 0.0414 | F181: 0.0472183713 | G181: 0.0542990218 | H181: 0.05361582835 | I181: 0.00187995323 | J181: 0.004402376798 | K181: 0.0004008414431 | L181: 0.04462864644 | M181: 0.05181097206 | N181: 0.05998243984 | O181: 0.04247 | P181: 0.04816573261 | Q181: 0.05463673838 | R181: 0.05416989963 | S181: 109.6467 | T181: 0.002463714454 | U181: 0.004291686606 | V181: 0.0005438730268 | W181: -0.0002500842139 | X181: -0.001377985027 | Y181: 1098.17 | Z181: 984.058827 | AA181: 1094.425638 | AB181: 1106.49 | AC181: 1016.153624 | AD181: 1075.658611 | AE181: 1076.33 | AF181: 1053.050232 | AG181: 1068.808157
A182: 2020-07-16 | B182: 0.04420765192 | C182: 0.05135980363 | D182: 0.05997536156 | E182: 0.0413 | F182: 0.04737313363 | G182: 0.05425853791 | H182: 0.05408015352 | I182: 0.001992542271 | J182: 0.004238692474 | K182: 0.0006913911409 | L182: 0.04480870641 | M182: 0.05206105627 | N182: 0.06019294613 | O182: 0.04238 | P182: 0.04850122067 | Q182: 0.05488228808 | R182: 0.05452297013 | S182: 109.798 | T182: 0.002637358996 | U182: 0.004331746653 | V182: 0.000691774722 | W182: -0.0001075434946 | X182: -0.001543180407 | Y182: 1099.43 | Z182: 980.2452741 | AA182: 1092.982248 | AB182: 1104.4 | AC182: 1013.729466 | AD182: 1074.741985 | AE182: 1076.21 | AF182: 1051.919991 | AG182: 1068.24066
A183: 2020-07-15 | B183: 0.04438788404 | C183: 0.05137338496 | D183: 0.05974137382 | E183: 0.0425 | F183: 0.04734358862 | G183: 0.05468804282 | H183: 0.05368999232 | I183: 0.001819425108 | J183: 0.004610789449 | K183: 0.0003491535067 | L183: 0.04493857241 | M183: 0.05216859977 | N183: 0.0602077423 | O183: 0.04247 | P183: 0.04872315441 | Q183: 0.05501044434 | R183: 0.05469967473 | S183: 109.9677 | T183: 0.002733795613 | U183: 0.004357296276 | V183: 0.0007932965181 | W183: -0.0001322938241 | X183: -0.001577063665 | Y183: 1099.23 | Z183: 994.768095 | AA183: 1095.970548 | AB183: 1108.2 | AC183: 1022.926285 | AD183: 1075.940584 | AE183: 1075.83 | AF183: 1056.464399 | AG183: 1068.555588
A184: 2020-07-14 | B184: 0.04430617294 | C184: 0.05122278063 | D184: 0.05950704161 | E184: 0.0432 | F184: 0.04730907806 | G184: 0.05384359778 | H184: 0.05343141918 | I184: 0.001909824579 | J184: 0.003919589419 | K184: 0.0002543628641 | L184: 0.04507108082 | M184: 0.05230089359 | N184: 0.06028421655 | O184: 0.0426 | P184: 0.04897463715 | Q184: 0.05508777057 | R184: 0.05496630918 | S184: 110.1414 | T184: 0.002850759545 | U184: 0.00430973592 | V184: 0.0009485739076 | W184: -6.290803761e-06 | X184: -0.001677747413 | Y184: 1098.49 | Z184: 1002.874063 | AA184: 1096.112896 | AB184: 1103.7 | AC184: 1029.184884 | AD184: 1076.259217 | AE184: 1076.03 | AF184: 1059.599246 | AG184: 1068.393285
A185: 2020-07-13 | B185: 0.04459591031 | C185: 0.05132841663 | D185: 0.05927560891 | E185: 0.0435 | F185: 0.04774199033 | G185: 0.05413476629 | H185: 0.05328583302 | I185: 0.00210092277 | J185: 0.004111794987 | K185: 9.470007223e-05 | L185: 0.04516195433 | M185: 0.0523071844 | N185: 0.06021217821 | O185: 0.04279 | P185: 0.04908551506 | Q185: 0.05509105076 | R185: 0.05509298657 | S185: 110.3265 | T185: 0.002880583533 | U185: 0.004284163243 | V185: 0.001073947888 | W185: 4.955953648e-05 | X185: -0.00173816896 | Y185: 1098.69 | Z185: 1007.187222 | AA185: 1097.804504 | AB185: 1106.67 | AC185: 1032.228409 | AD185: 1077.888121 | AE185: 1076.85 | AF185: 1059.900286 | AG185: 1068.455346
A186: 2020-07-10 | B186: 0.0448146458 | C186: 0.05192271757 | D186: 0.05965244713 | E186: 0.0434 | F186: 0.04805628999 | G186: 0.0546731965 | H186: 0.05391662887 | I186: 0.002261316253 | J186: 0.004313009291 | K186: 0.0003511295258 | L186: 0.04521282269 | M186: 0.05225762486 | N186: 0.06013190297 | O186: 0.04295 | P186: 0.04912131487 | Q186: 0.05499870258 | R186: 0.05521893569 | S186: 110.5186 | T186: 0.002879780637 | U186: 0.004199832517 | V186: 0.001227537136 | W186: 6.151767104e-05 | X186: -0.001642270489 | Y186: 1099.83 | Z186: 1001.806065 | AA186: 1096.557174 | AB186: 1106.93 | AC186: 1028.211079 | AD186: 1076.812949 | AE186: 1075.25 | AF186: 1056.670035 | AG186: 1066.226684
A187: 2020-07-09 | B187: 0.04452746387 | C187: 0.05178217783 | D187: 0.05969949099 | E187: 0.0428 | F187: 0.04809864326 | G187: 0.0545423831 | H187: 0.05407350106 | I187: 0.002635376395 | J187: 0.004355868096 | K187: 0.0006166111643 | L187: 0.04526628483 | M187: 0.05219610719 | N187: 0.06003735315 | O187: 0.04313 | P187: 0.04916928561 | Q187: 0.05481520046 | R187: 0.05530923402 | S187: 110.7004 | T187: 0.002870808804 | U187: 0.004023134465 | V187: 0.001352068771 | W187: 0.0001189622263 | X187: -0.001862822004 | Y187: 1101.05 | Z187: 995.9726821 | AA187: 1095.302731 | AB187: 1105.76 | AC187: 1023.747322 | AD187: 1075.33718 | AE187: 1076.09 | AF187: 1054.935424 | AG187: 1065.568388
A188: 2020-07-08 | B188: 0.04480116333 | C188: 0.05198706279 | D188: 0.05994838505 | E188: 0.043 | F188: 0.04876560887 | G188: 0.05453768605 | H188: 0.05403281651 | I188: 0.003004862424 | J188: 0.004114751568 | K188: 0.0003306528407 | L188: 0.04527497763 | M188: 0.05207714496 | N188: 0.05985882693 | O188: 0.04327 | P188: 0.04913754898 | Q188: 0.05456150033 | R188: 0.05535824182 | S188: 110.907 | T188: 0.002818884222 | U188: 0.003829040156 | V188: 0.001551469973 | W188: 0.0001359719496 | X188: -0.002264330187 | Y188: 1097.57 | Z188: 994.9154218 | AA188: 1094.493449 | AB188: 1103.98 | AC188: 1023.48187 | AD188: 1075.271487 | AE188: 1077.59 | AF188: 1054.589744 | AG188: 1065.602956
A189: 2020-07-07 | B189: 0.04511173118 | C189: 0.0525543403 | D189: 0.06079799239 | E189: 0.0425 | F189: 0.04941769496 | G189: 0.05550590713 | H189: 0.05538470716 | I189: 0.003343008397 | J189: 0.00457305428 | K189: 0.00110262957 | L189: 0.04528922456 | M189: 0.05194117301 | N189: 0.0596446995 | O189: 0.04336 | P189: 0.04904872735 | Q189: 0.0543530586 | R189: 0.05541623692 | S189: 111.1587 | T189: 0.002716906222 | U189: 0.003694547899 | V189: 0.001779694025 | W189: 0.0002911564765 | X189: -0.001762830587 | Y189: 1103.34 | Z189: 984.0081831 | AA189: 1093.127988 | AB189: 1104.82 | AC189: 1014.348216 | AD189: 1073.008887 | AE189: 1078.06 | AF189: 1050.491917 | AG189: 1064.737595
A190: 2020-07-06 | B190: 0.04541312091 | C190: 0.05337762592 | D190: 0.06151530861 | E190: 0.0411 | F190: 0.05033292712 | G190: 0.0558842444 | H190: 0.0561881163 | I190: 0.003689913114 | J190: 0.004276939702 | K190: 0.00124725814 | L190: 0.04519941142 | M190: 0.05165001654 | N190: 0.05920446478 | O190: 0.0438 | P190: 0.04881046146 | Q190: 0.05391723151 | R190: 0.05520687856 | S190: 111.355 | T190: 0.002597094587 | U190: 0.003486673638 | V190: 0.001912604516 | W190: 0.0003202172496 | X190: -0.001639801359 | Y190: 1104.26 | Z190: 965.1645835 | AA190: 1092.761687 | AB190: 1101.79 | AC190: 999.3037327 | AD190: 1072.141709 | AE190: 1078.51 | AF190: 1041.770874 | AG190: 1063.827313
A191: 2020-07-03 | B191: 0.04592131979 | C191: 0.0537022525 | D191: 0.0618164512 | E191: 0.0405 | F191: 0.0505732519 | G191: 0.05675451884 | H191: 0.05714653336 | I191: 0.003616398642 | J191: 0.004802977268 | K191: 0.001879858396 | L191: 0.04515436662 | M191: 0.05132979929 | N191: 0.05873044105 | O191: 0.04444 | P191: 0.04852700381 | Q191: 0.05338264683 | R191: 0.05495394894 | S191: 111.5379 | T191: 0.002420131713 | U191: 0.003191705021 | V191: 0.002017291544 | W191: 0.0003652729492 | X191: -0.00109886567 | Y191: 1110.47 | Z191: 957.3662676 | AA191: 1093.180314 | AB191: 1104.9 | AC191: 992.4448822 | AD191: 1071.671125 | AE191: 1077.65 | AF191: 1037.617684 | AG191: 1063.277996
A192: 2020-07-02 | B192: 0.04550631191 | C192: 0.05243523857 | D192: 0.06012332328 | E192: 0.0422 | F192: 0.04959247097 | G192: 0.05554010045 | H192: 0.0558471995 | I192: 0.002956908451 | J192: 0.004494188703 | K192: 0.001706609102 | L192: 0.04506281389 | M192: 0.05096452634 | N192: 0.05823280391 | O192: 0.04522 | P192: 0.0482117258 | Q192: 0.0528874798 | R192: 0.05462536057 | S192: 111.6606 | T192: 0.002240918949 | U192: 0.002972488269 | V192: 0.002076366407 | W192: 0.000155748526 | X192: -0.0008250352564 | Y192: 1113.57 | Z192: 986.8914723 | AA192: 1097.728601 | AB192: 1107.66 | AC192: 1014.853034 | AD192: 1076.393967 | AE192: 1077.94 | AF192: 1048.518116 | AG192: 1066.171564
A193: 2020-06-30 | B193: 0.04571296811 | C193: 0.0526963232 | D193: 0.06050611633 | E193: 0.0438 | F193: 0.04985841602 | G193: 0.05546130511 | H193: 0.05635633687 | I193: 0.002989064425 | J193: 0.004135185881 | K193: 0.001901927401 | L193: 0.04508694859 | M193: 0.05080877781 | N193: 0.05796157067 | O193: 0.04603 | P193: 0.04807971057 | Q193: 0.05256264582 | R193: 0.05447940408 | S193: 111.7528 | T193: 0.002134089505 | U193: 0.002757713066 | V193: 0.002137547423 | W193: 0.0001592293243 | X193: -0.0007671769854 | Y193: 1113.56 | Z193: 997.3156263 | AA193: 1095.952288 | AB193: 1104.18 | AC193: 1023.185374 | AD193: 1075.458701 | AE193: 1077.75 | AF193: 1053.656083 | AG193: 1065.86269
A194: 2020-06-29 | B194: 0.04521490809 | C194: 0.05128568867 | D194: 0.05878665826 | E194: 0.0451 | F194: 0.04841785723 | G194: 0.05387639969 | H194: 0.05469819302 | I194: 0.002208064461 | J194: 0.003663862655 | K194: 0.00150810267 | L194: 0.04510545372 | M194: 0.05064954849 | N194: 0.05772652052 | O194: 0.04671 | P194: 0.04794192337 | Q194: 0.0522736536 | R194: 0.05436160287 | S194: 111.8386 | T194: 0.002017174199 | U194: 0.002573196348 | V194: 0.002210881567 | W194: -2.912423372e-05 | X194: -0.0007103408653 | Y194: 1113.97 | Z194: 1024.241965 | AA194: 1099.871608 | AB194: 1104.94 | AC194: 1043.605849 | AD194: 1079.334978 | AE194: 1076.82 | AF194: 1063.599999 | AG194: 1068.021968
A195: 2020-06-26 | B195: 0.04510459386 | C195: 0.05083282127 | D195: 0.05847285644 | E195: 0.0451 | F195: 0.04809998839 | G195: 0.05321128456 | H195: 0.05454532422 | I195: 0.002092893806 | J195: 0.003268487725 | K195: 0.001630592548 | L195: 0.04516767262 | M195: 0.05067867272 | N195: 0.05766903246 | O195: 0.04732 | P195: 0.04799112129 | Q195: 0.05219472714 | R195: 0.05438046767 | S195: 111.9181 | T195: 0.002023319296 | U195: 0.002469099462 | V195: 0.00228924258 | W195: -6.817479088e-05 | X195: -0.0006188196172 | Y195: 1114.46 | Z195: 1026.030192 | AA195: 1099.193929 | AB195: 1102.1 | AC195: 1045.353906 | AD195: 1079.233842 | AE195: 1076.98 | AF195: 1065.021428 | AG195: 1068.637294
A196: 2020-06-25 | B196: 0.04534926719 | C196: 0.05130754086 | D196: 0.05870694891 | E196: 0.0452 | F196: 0.04853599742 | G196: 0.05283817528 | H196: 0.05481961226 | I196: 0.002171597927 | J196: 0.002546028769 | K196: 0.001596445881 | L196: 0.04526300873 | M196: 0.05074684751 | N196: 0.05764700177 | O196: 0.04795 | P196: 0.04807461928 | Q196: 0.05218646528 | R196: 0.05441605827 | S196: 111.9874 | T196: 0.00202499236 | U196: 0.002402407272 | V196: 0.002349679835 | W196: -0.0001109639104 | X196: -0.0005256755466 | Y196: 1114.97 | Z196: 1025.078883 | AA196: 1100.051904 | AB196: 1097.27 | AC196: 1043.925668 | AD196: 1079.488763 | AE196: 1076.5 | AF196: 1063.217662 | AG196: 1067.853741
A197: 2020-06-23 | B197: 0.04461439194 | C197: 0.05059255556 | D197: 0.05791422879 | E197: 0.0442 | F197: 0.04778127698 | G197: 0.05200538181 | H197: 0.05456357901 | I197: 0.002116130572 | J197: 0.002414925007 | K197: 0.002610623179 | L197: 0.04540317828 | M197: 0.05085781142 | N197: 0.05758995815 | O197: 0.0487 | P197: 0.04821081201 | Q197: 0.05222524831 | R197: 0.0543862369 | S197: 112.0463 | T197: 0.002057229015 | U197: 0.002358757873 | V197: 0.002345224927 | W197: -0.0003053254393 | X197: -0.0002426978724 | Y197: 1160.38 | Z197: 1058.029911 | AA197: 1134.597641 | AB197: 1096.62 | AC197: 1041.948761 | AD197: 1079.70514 | AE197: 1076.15 | AF197: 1061.869601 | AG197: 1067.711896
A198: 2020-06-22 | B198: 0.04494363263 | C198: 0.05062734329 | D198: 0.0578071108 | E198: 0.0439 | F198: 0.0478773925 | G198: 0.05245326876 | H198: 0.05461276752 | I198: 0.001985082426 | J198: 0.002769828995 | K198: 0.002612893362 | L198: 0.04568507776 | M198: 0.05116313686 | N198: 0.05773247596 | O198: 0.04937 | P198: 0.04854003042 | Q198: 0.05246711041 | R198: 0.05449812042 | S198: 112.0735 | T198: 0.002136028809 | U198: 0.002347773126 | V198: 0.002256524738 | W198: -0.0002295414536 | X198: -0.0001391749956 | Y198: 1161.38 | Z198: 1055.569093 | AA198: 1135.572232 | AB198: 1100.16 | AC198: 1040.260264 | AD198: 1080.762501 | AE198: 1075.96 | AF198: 1060.110314 | AG198: 1068.049558
A199: 2020-06-19 | B199: 0.04421359976 | C199: 0.04964277553 | D199: 0.05639564518 | E199: 0.0469 | F199: 0.04703503605 | G199: 0.05114763621 | H199: 0.05329112359 | I199: 0.002144892042 | J199: 0.002494311672 | K199: 0.002431734478 | L199: 0.04586311547 | M199: 0.05139267832 | N199: 0.05783806232 | O199: 0.0503 | P199: 0.04877839337 | Q199: 0.0525957778 | R199: 0.0545657384 | S199: 112.0891 | T199: 0.002199134258 | U199: 0.002290793276 | V199: 0.002177117355 | W199: -0.0001979108327 | X199: -0.0001025864268 | Y199: 1161.12 | Z199: 1097.535402 | AA199: 1136.926936 | AB199: 1099.96 | AC199: 1070.080775 | AD199: 1082.414218 | AE199: 1076.06 | AF199: 1075.520907 | AG199: 1067.497122
A200: 2020-06-18 | B200: 0.04496267287 | C200: 0.05017545343 | D200: 0.05677507129 | E200: 0.0475 | F200: 0.04749835071 | G200: 0.05053839761 | H200: 0.05365882003 | I200: 0.001920284383 | J200: 0.001327253531 | K200: 0.002294128419 | L200: 0.0460873822 | M200: 0.05159058915 | N200: 0.05796925164 | O200: 0.05098 | P200: 0.0489830677 | Q200: 0.05279576665 | R200: 0.05467132886 | S200: 112.1006 | T200: 0.002166064971 | U200: 0.002285418686 | V200: 0.002101317546 | W200: -9.041478903e-05 | X200: -0.000100792155 | Y200: 1160.67 | Z200: 1099.567785 | AA200: 1137.909743 | AB200: 1092.54 | AC200: 1071.216019 | AD200: 1083.225114 | AE200: 1075.27 | AF200: 1075.276572 | AG200: 1067.617719
... 749 more rows

Sheet CalcData2
A1: ISIN | B1: GRN | C1: BeginEventPer | D1: EventDate | E1: RT | F1: Pay1Bond
A2: RU000A0JV4Q1 | B2: 29010RMFS | C2: 2014-12-31 | D2: 2034-12-06 | E2: 100 | F2: 1000
A4: Потоки согласно действующим сценариям Банка России
B5: на 25.03.2020 | C5: на 22.09.2020
A6: Доходность к погашению | B6: =XIRR(D22:D53,A22:A53,0.05) -> 0.05205665529 | C6: =XIRR(G23:G53,A23:A53,0.05) -> 0.03724108636
A7: Дюрация модифицированная | B7: =-SUM(E24:E53)/D22/(1+B6) -> 9.724453573 | C7: =-SUM(E24:E53)/G23/(1+C6) -> 9.890919098
N8: Изменения RUONIA согласно сценариям
C9: на 25.03.2020 | F9: на 22.09.2020 | N9: на 25.03.2020 | P9: на 22.09.2020
A10: DT | B10: ZN | C10: Ставка | D10: CF | F10: Ставка | G10: CF | O10: =Statistics!K258/100 -> 0.0584 | Q10: =CalcData!E134 -> 0.0419
A11: 2015-07-01 | B11: 54.6 | M11: 1 | N11: 2020-06-30 | O11: =O10*(1+Scenario!E3/100) -> 0.05905408 | P11: 2020-12-31 | Q11: =Q10*(1+Scenario!E3/100) -> 0.04236928
A12: 2015-12-30 | B12: 80.43 | M12: =M11+1 -> 2 | N12: 2020-09-30 | O12: =O11*(1+Scenario!E4/100) -> 0.06206583808 | P12: 2021-03-31 | Q12: =Q11*(1+Scenario!E4/100) -> 0.04453011328
A13: 2016-06-29 | B13: 64.02 | M13: =M12+1 -> 3 | N13: 2020-12-31 | O13: =O12*(1+Scenario!E5/100) -> 0.06332577459 | P13: 2021-06-30 | Q13: =Q12*(1+Scenario!E5/100) -> 0.04543407458
A14: 2016-12-28 | B14: 62.03 | M14: 4 | N14: 2021-03-31 | O14: =O13*(1+Scenario!E6/100) -> 0.063604408 | P14: 2021-09-30 | Q14: =Q13*(1+Scenario!E6/100) -> 0.04563398451
A15: 2017-06-28 | B15: 58.89 | M15: 5 | N15: 2021-06-30 | O15: =O14*(1+Scenario!E7/100) -> 0.06298744524 | P15: 2021-12-31 | Q15: =Q14*(1+Scenario!E7/100) -> 0.04519133486
A16: 2017-12-27 | B16: 56.44 | M16: 6 | N16: 2021-09-30 | O16: =O15*(1+Scenario!E8/100) -> 0.06314491386 | P16: 2022-03-31 | Q16: =Q15*(1+Scenario!E8/100) -> 0.0453043132
A17: 2018-06-27 | B17: 49.46 | M17: 7 | N17: 2021-12-31 | O17: =O16*(1+Scenario!E9/100) -> 0.0628228748 | P17: 2022-06-30 | Q17: =Q16*(1+Scenario!E9/100) -> 0.0450732612
A18: 2018-12-26 | B18: 43.18 | M18: 8 | N18: 2022-03-31 | O18: =O17*(1+Scenario!E10/100) -> 0.06273492277 | P18: 2022-09-30 | Q18: =Q17*(1+Scenario!E10/100) -> 0.04501015863
A19: 2019-06-26 | B19: 43.88 | M19: 9 | N19: 2022-06-30 | O19: =O18*(1+Scenario!E11/100) -> 0.06278511071 | P19: 2022-12-31 | Q19: =Q18*(1+Scenario!E11/100) -> 0.04504616676
A20: 2019-12-25 | B20: 45.77 | M20: 10 | N20: 2022-09-30 | O20: =O19*(1+Scenario!E12/100) -> 0.06264070495 | P20: 2023-03-31 | Q20: =Q19*(1+Scenario!E12/100) -> 0.04494256058
A21: 2020-06-24 | B21: 41.93 | M21: 11 | N21: 2022-12-31 | O21: =O20*(1+Scenario!E13/100) -> 0.06249663133 | P21: 2023-06-30 | Q21: =Q20*(1+Scenario!E13/100) -> 0.04483919269
A22: 2020-03-25 | D22: =-CalcData!Y259 -> -1105.17 | M22: 12 | N22: 2023-03-31 | O22: =O21*(1+Scenario!E14/100) -> 0.06254662864 | P22: 2023-09-30 | Q22: =Q21*(1+Scenario!E14/100) -> 0.04487506404
A23: 2020-09-22 | G23: =-CalcData!Y134 -> -1102.09 | M23: 13 | N23: 2023-06-30 | O23: =O22*(1+Scenario!E15/100) -> 0.06269048588 | P23: 2023-12-31 | Q23: =Q22*(1+Scenario!E15/100) -> 0.04497827669
A24: 2020-12-23 | B24: 36.8 | C24: =INDEX($O$11:$O$30,MATCH(A24,$N$11:$N$30,1),1) -> 0.06206583808 | D24: =C24*F$2*(A24-A21)/365 -> 30.94789734 | E24: =D24*(A24-A$22)/(1+B$6)^((A24-A$22)/365)/365 -> 22.28521714 | F24: =Q10 -> 0.0419 | G24: =F24*F$2*(A24-A21)/365 -> 20.89260274 | H24: =G24*(A24-A$23)/(1+B$6)^((A24-A$23)/365)/365 -> 5.199151127 | M24: 14 | N24: 2023-09-30 | O24: =O23*(1+Scenario!E16/100) -> 0.06286601924 | P24: 2024-03-31 | Q24: =Q23*(1+Scenario!E16/100) -> 0.04510421586
A25: 2021-06-23 | B25: 28.72 | C25: 0.063604408 | D25: =C25*F$2*(A25-A24)/365 -> 31.71507467 | E25: =D25*(A25-A$22)/(1+B$6)^((A25-A$22)/365)/365 -> 37.11169898 | F25: =INDEX($Q$11:$Q$30,MATCH(A25,$P$11:$P$30,1),1) -> 0.04453011328 | G25: =F25*F$2*(A25-A24)/365 -> 22.20405648 | H25: =G25*(A25-A$23)/(1+B$6)^((A25-A$23)/365)/365 -> 16.04521646 | M25: =M24+1 -> 15 | N25: 2023-12-31 | O25: =O24*(1+Scenario!E17/100) -> 0.0630357575 | P25: 2024-06-30 | Q25: =Q24*(1+Scenario!E17/100) -> 0.04522599725
A26: 2021-12-22 | B26: 0 | C26: 0.06314491386 | D26: =C26*F$2*(A26-A25)/365 -> 31.48595705 | E26: 50.29220296 | F26: =INDEX($Q$11:$Q$30,MATCH(A26,$P$11:$P$30,1),1) -> 0.04563398451 | G26: =F26*F$2*(A26-A25)/365 -> 22.75447995 | H26: 26.68118276 | M26: 16 | N26: 2024-03-31 | O26: =O25*(1+Scenario!E18/100) -> 0.06318704331 | P26: 2024-09-30 | Q26: =Q25*(1+Scenario!E18/100) -> 0.04533453964
A27: 2022-06-22 | B27: 0 | C27: 0.06273492277 | D27: =C27*F$2*(A27-A26)/365 -> 31.28152314 | E27: 62.63639411 | F27: 0.0453043132 | G27: 22.59009589 | H27: 36.13455416 | M27: 17 | N27: 2024-06-30 | O27: =O26*(1+Scenario!E19/100) -> 0.06330077999 | P27: 2024-12-31 | Q27: =Q26*(1+Scenario!E19/100) -> 0.04541614181
A28: 2022-12-21 | B28: 0 | C28: 0.06264070495 | D28: 31.23454329 | E28: 74.53063463 | F28: 0.04501015863 | G28: 22.44342156 | H28: 44.98808359 | M28: 18 | N28: 2024-09-30 | O28: =O27*(1+Scenario!E20/100) -> 0.06337041085 | P28: 2025-03-31 | Q28: =Q27*(1+Scenario!E20/100) -> 0.04546609957
A29: 2023-06-21 | B29: 0 | C29: 0.06254662864 | D29: 31.18763401 | E29: 85.75182702 | F29: 0.04494256058 | G29: 22.40971514 | H29: 53.51915625 | M29: 19 | N29: 2024-12-31 | O29: =O28*(1+Scenario!E21/100) -> 0.06337674789 | P29: 2025-06-30 | Q29: =Q28*(1+Scenario!E21/100) -> 0.04547064618
A30: 2023-12-20 | B30: 0 | C30: 0.06286601924 | D30: 31.34689179 | E30: 96.96476982 | F30: 0.04487506404 | G30: 22.37605933 | H30: 61.56744546 | M30: 20 | N30: 2025-03-31 | O30: =O29*(1+Scenario!E22/100) -> 0.06336407254 | P30: 2025-09-30 | Q30: =Q29*(1+Scenario!E22/100) -> 0.04546155205
A31: 2024-06-19 | B31: 0 | C31: 0.06318704331 | D31: 31.50696406 | E31: 107.6947005 | F31: 0.04510421586 | G31: 22.49032133 | H31: 69.61018909
A32: 2024-12-18 | B32: 0 | C32: 0.06337041085 | D32: 31.59839664 | E32: 117.697741 | F32: 0.04533453964 | G32: 22.60516771 | H32: 77.30645704
A33: 2025-06-18 | B33: 0 | C33: 0.06336407254 | D33: 31.59523617 | E33: 126.8238718 | F33: 0.04546609957 | G33: 22.67076745 | H33: 84.48119182
A34: 2025-12-17 | B34: 0 | C34: 0.06336407254 | D34: 31.59523617 | E34: 135.4316518 | F34: 0.04546155205 | G34: 22.66849992 | H34: 91.02674289
A35: 2026-06-17 | B35: 0 | C35: 0.06336407254 | D35: 31.59523617 | E35: 143.5300958 | F35: 0.04546155205 | G35: 22.66849992 | H35: 97.20048212
A36: 2026-12-16 | B36: 0 | C36: 0.06336407254 | D36: 31.59523617 | E36: 151.1392827 | F36: 0.04546155205 | G36: 22.66849992 | H36: 103.0088707
A37: 2027-06-16 | B37: 0 | C37: 0.06336407254 | D37: 31.59523617 | E37: 158.2786061 | F37: 0.04546155205 | G37: 22.66849992 | H37: 108.4663119
A38: 2027-12-15 | B38: 0 | C38: 0.06336407254 | D38: 31.59523617 | E38: 164.966796 | F38: 0.04546155205 | G38: 22.66849992 | H38: 113.5867173
A39: 2028-06-14 | B39: 0 | C39: 0.06336407254 | D39: 31.59523617 | E39: 171.2219395 | F39: 0.04546155205 | G39: 22.66849992 | H39: 118.3835223
A40: 2028-12-13 | B40: 0 | C40: 0.06336407254 | D40: 31.59523617 | E40: 177.0615016 | F40: 0.04546155205 | G40: 22.66849992 | H40: 122.8697014
A41: 2029-06-13 | B41: 0 | C41: 0.06336407254 | D41: 31.59523617 | E41: 182.5023451 | F41: 0.04546155205 | G41: 22.66849992 | H41: 127.0577828
A42: 2029-12-12 | B42: 0 | C42: 0.06336407254 | D42: 31.59523617 | E42: 187.5607492 | F42: 0.04546155205 | G42: 22.66849992 | H42: 130.9598625
A43: 2030-06-12 | B43: 0 | C43: 0.06336407254 | D43: 31.59523617 | E43: 192.2524288 | F43: 0.04546155205 | G43: 22.66849992 | H43: 134.5876181
A44: 2030-12-11 | B44: 0 | C44: 0.06336407254 | D44: 31.59523617 | E44: 196.5925521 | F44: 0.04546155205 | G44: 22.66849992 | H44: 137.9523223
A45: 2031-06-11 | B45: 0 | C45: 0.06336407254 | D45: 31.59523617 | E45: 200.5957583 | F45: 0.04546155205 | G45: 22.66849992 | H45: 141.0648556
A46: 2031-12-10 | B46: 0 | C46: 0.06336407254 | D46: 31.59523617 | E46: 204.2761744 | F46: 0.04546155205 | G46: 22.66849992 | H46: 143.9357191
A47: 2032-06-09 | B47: 0 | C47: 0.06336407254 | D47: 31.59523617 | E47: 207.6474321 | F47: 0.04546155205 | G47: 22.66849992 | H47: 146.5750465
A48: 2032-12-08 | B48: 0 | C48: 0.06336407254 | D48: 31.59523617 | E48: 210.722683 | F48: 0.04546155205 | G48: 22.66849992 | H48: 148.9926161
A49: 2033-06-08 | B49: 0 | C49: 0.06336407254 | D49: 31.59523617 | E49: 213.5146149 | F49: 0.04546155205 | G49: 22.66849992 | H49: 151.1978619
A50: 2033-12-07 | B50: 0 | C50: 0.06336407254 | D50: 31.59523617 | E50: 216.0354659 | F50: 0.04546155205 | G50: 22.66849992 | H50: 153.199885
A51: 2034-06-07 | B51: 0 | C51: 0.06336407254 | D51: 31.59523617 | E51: 218.2970398 | F51: 0.04546155205 | G51: 22.66849992 | H51: 155.0074643
A52: 2034-12-06 | B52: 0 | C52: 0.06336407254 | D52: 31.59523617 | E52: 220.3107197 | F52: 0.04546155205 | G52: 22.66849992 | H52: 156.6290669
A53: 2034-12-06 | B53: 1000 | C53: 0.06336407254 | D53: =C53*F$2*(A53-A52)/365+B53 -> 1000 | E53: 6972.909412 | F53: 0.04546155205 | G53: =F53*F$2*(A53-A52)/365+D53 -> 1000 | H53: 6909.547056

Sheet Statistics
A1: TRADEDATE | B1: Цена 29010RMFS (% от номинала) | C1: 26225RMFS | D1: 29008RMFS | E1: 26224RMFS | F1: 29006RMFS | G1: 26222RMFS | H1: 29010RUB | I1: 29008RUB | J1: 29006RUB | K1: RUONIA | L1: B1 | M1: B2 | N1: B3 | O1: T1 | P1: G1 | Q1: G2 | R1: G3 | S1: G4 | T1: G5 | U1: G6 | V1: G7 | W1: G8 | X1: G9
A2: 2021-03-31 | B2: 108.949 | C2: 101.694 | D2: 105.799 | E2: 99.841 | F2: 101.882 | G2: 102.923 | H2: 1104.95 | I2: 1085.98 | J2: 1027.06 | K2: 4.45 | L2: 741.55131 | M2: -279.472413 | N2: -290.705925 | O2: 0.801055 | P2: -0.046287 | Q2: 0.992702 | R2: 1.806973 | S2: -2.701778 | T2: 2.160451 | U2: 1.939731 | V2: -0.348501 | W2: 0 | X2: 0
A3: 2021-03-30 | B3: 108.999 | C3: 101.706 | D3: 105.815 | E3: 99.717 | F3: 101.862 | G3: 102.874 | H3: 1105.3 | I3: 1085.97 | J3: 1026.71 | K3: 4.48 | L3: 743.066984 | M3: -278.866684 | N3: -300.525577 | O3: 0.747367 | P3: -0.013884 | Q3: -1.491643 | R3: 2.525585 | S3: -4.566344 | T3: 1.507648 | U3: 3.302013 | V3: -0.370352 | W3: 0 | X3: 0
A4: 2021-03-29 | B4: 108.92 | C4: 102.109 | D4: 105.848 | E4: 100.503 | F4: 101.753 | G4: 102.945 | H4: 1104.35 | I4: 1086.13 | J4: 1025.48 | K4: 4.45 | L4: 730.656682 | M4: -265.50354 | N4: -305.17817 | O4: 0.732626 | P4: -0.028472 | Q4: -0.652639 | R4: 0.189187 | S4: -3.26325 | T4: 3.185064 | U4: 2.788371 | V4: -0.821536 | W4: 0 | X4: 0
A5: 2021-03-26 | B5: 108.93 | C5: 101.919 | D5: 105.916 | E5: 100.263 | F5: 101.812 | G5: 103 | H5: 1103.98 | I5: 1086.31 | J5: 1025.62 | K5: 4.31 | L5: 732.470676 | M5: -262.474784 | N5: -308.40361 | O5: 0.730946 | P5: 0.017041 | Q5: -0.393094 | R5: 2.170928 | S5: -3.327385 | T5: 2.595935 | U5: 0.449181 | V5: -0.597136 | W5: 0 | X5: 0
A6: 2021-03-25 | B6: 108.971 | C6: 101.046 | D6: 106 | E6: 99.452 | F6: 101.807 | G6: 102.513 | H6: 1104.23 | I6: 1086.99 | J6: 1025.43 | K6: 4.41 | L6: 743.556687 | M6: -258.251287 | N6: -301.774792 | O6: 0.7806 | P6: -0.073091 | Q6: -0.038389 | R6: -2.718852 | S6: -1.586873 | T6: 4.873941 | U6: 2.141717 | V6: -1.253954 | W6: 0 | X6: 0
A7: 2021-03-24 | B7: 108.958 | C7: 100.504 | D7: 106.101 | E7: 99.01 | F7: 101.759 | G7: 102.27 | H7: 1103.94 | I7: 1087.83 | J7: 1024.8 | K7: 4.28 | L7: 751.19475 | M7: -259.351898 | N7: -296.659116 | O7: 0.78326 | P7: -1.13102 | Q7: 1.106599 | R7: -1.391289 | S7: -3.478548 | T7: 4.962015 | U7: 3.10642 | V7: -0.730329 | W7: 0 | X7: 0
A8: 2021-03-23 | B8: 109 | C8: 100.319 | D8: 106.162 | E8: 98.787 | F8: 101.64 | G8: 102.111 | H8: 1104.2 | I8: 1088.27 | J8: 1023.46 | K8: 4.22 | L8: 753.557504 | M8: -251.558154 | N8: -295.766812 | O8: 0.789003 | P8: 0.062615 | Q8: -0.565562 | R8: -2.579377 | S8: -3.128056 | T8: 6.68173 | U8: 1.724999 | V8: -1.253024 | W8: 0 | X8: 0
A9: 2021-03-22 | B9: 109.004 | C9: 101.064 | D9: 106.278 | E9: 99.947 | F9: 101.984 | G9: 102.711 | H9: 1104.08 | I9: 1089.27 | J9: 1026.76 | K9: 4.24 | L9: 751.627713 | M9: -254.039713 | N9: -313.786813 | O9: 0.860728 | P9: -0.086911 | Q9: -1.140643 | R9: 0.114421 | S9: -2.929998 | T9: 2.786003 | U9: 1.777582 | V9: -0.851429 | W9: 0 | X9: 0
A10: 2021-03-19 | B10: 109.07 | C10: 101.534 | D10: 106.265 | E10: 100.338 | F10: 102 | G10: 103.018 | H10: 1104.27 | I10: 1088.64 | J10: 1026.47 | K10: 4.14 | L10: 746.733906 | M10: -258.252527 | N10: -320.246255 | O10: 0.873095 | P10: 0.032422 | Q10: 1.244129 | R10: -2.418406 | S10: -3.250231 | T10: 6.541515 | U10: 2.655942 | V10: -1.46585 | W10: 0 | X10: 0
A11: 2021-03-18 | B11: 109.102 | C11: 101.68 | D11: 106.29 | E11: 100.958 | F11: 102.104 | G11: 103.074 | H11: 1104.43 | I11: 1088.72 | J11: 1027.37 | K11: 4.11 | L11: 744.999081 | M11: -256.971436 | N11: -323.551794 | O11: 0.882386 | P11: -1.853228 | Q11: 1.260185 | R11: 0.800509 | S11: -2.621571 | T11: 1.979839 | U11: 1.198171 | V11: -0.481318 | W11: 0 | X11: 0
A12: 2021-03-17 | B12: 109.247 | C12: 102.602 | D12: 106.453 | E12: 101.432 | F12: 102.122 | G12: 103.346 | H12: 1105.73 | I12: 1090.19 | J12: 1027.4 | K12: 4.12 | L12: 733.888231 | M12: -257.71387 | N12: -324.462829 | O12: 0.83286 | P12: -0.029921 | Q12: 0.012423 | R12: -0.032036 | S12: -0.252517 | T12: 0.605701 | U12: 0.711218 | V12: 0.226274 | W12: 0 | X12: 0
A13: 2021-03-16 | B13: 109.343 | C13: 102.809 | D13: 106.392 | E13: 101.459 | F13: 102.122 | G13: 103.313 | H13: 1106.53 | I13: 1089.41 | J13: 1027.25 | K13: 4.13 | L13: 726.048351 | M13: -244.745833 | N13: -349.938601 | O13: 0.796383 | P13: -0.88764 | Q13: 1.970252 | R13: 1.557219 | S13: -0.408002 | T13: 0.717457 | U13: 0.326643 | V13: 0.422535 | W13: 0 | X13: 0
A14: 2021-03-15 | B14: 109.25 | C14: 102.731 | D14: 106.266 | E14: 101.517 | F14: 102.173 | G14: 103.453 | H14: 1105.44 | I14: 1087.98 | J14: 1027.62 | K14: 4.13 | L14: 730.711675 | M14: -243.9554 | N14: -356.455004 | O14: 0.816583 | P14: 0.01382 | Q14: 0.181407 | R14: -1.252731 | S14: 1.240416 | T14: 0.029978 | U14: -1.001182 | V14: -0.739553 | W14: 0 | X14: 0
A15: 2021-03-12 | B15: 109.272 | C15: 102.816 | D15: 106.343 | E15: 101.529 | F15: 102.143 | G15: 103.556 | H15: 1105.19 | I15: 1088.25 | J15: 1026.87 | K15: 4.14 | L15: 730.087486 | M15: -253.773959 | N15: -384.40846 | O15: 0.789647 | P15: -1.229337 | Q15: 1.100252 | R15: 0.779331 | S15: 1.065119 | T15: -1.033402 | U15: -1.040469 | V15: -0.103253 | W15: 0 | X15: 0
A16: 2021-03-11 | B16: 109.6 | C16: 103.058 | D16: 106.25 | E16: 101.938 | F16: 102.128 | G16: 103.524 | H16: 1108.31 | I16: 1087.16 | J16: 1026.58 | K16: 4.11 | L16: 727.026618 | M16: -249.504961 | N16: -387.48543 | O16: 0.798297 | P16: -0.066209 | Q16: 1.849748 | R16: -1.161732 | S16: 2.76278 | T16: -0.96148 | U16: -1.670143 | V16: 0.378285 | W16: 0 | X16: 0
A17: 2021-03-10 | B17: 109.463 | C17: 103.641 | D17: 106.369 | E17: 102.191 | F17: 102.114 | G17: 104.074 | H17: 1106.78 | I17: 1088.18 | J17: 1026.29 | K17: 4.09 | L17: 730.641543 | M17: -265.58871 | N17: -385.084598 | O17: 0.853176 | P17: -0.065372 | Q17: 1.712923 | R17: -2.597646 | S17: 2.424569 | T17: 0.772689 | U17: -0.756722 | V17: -0.795917 | W17: 0 | X17: 0
A18: 2021-03-09 | B18: 109.467 | C18: 103.809 | D18: 106.407 | E18: 102.445 | F18: 102.125 | G18: 104.056 | H18: 1106.66 | I18: 1088.39 | J18: 1026.25 | K18: 4.35 | L18: 723.286645 | M18: -259.1028 | N18: -379.294468 | O18: 0.876708 | P18: -0.472761 | Q18: 0.837646 | R18: -3.426919 | S18: 1.384298 | T18: 0.704416 | U18: 0.279156 | V18: 1.01104 | W18: 0 | X18: 0
A19: 2021-03-05 | B19: 109.553 | C19: 103.944 | D19: 106.439 | E19: 102.394 | F19: 102.148 | G19: 104.073 | H19: 1106.89 | I19: 1088.05 | J19: 1025.89 | K19: 4.04 | L19: 722.433383 | M19: -256.150275 | N19: -388.022337 | O19: 0.883648 | P19: 0.385964 | Q19: 2.62286 | R19: -2.96242 | S19: 2.780092 | T19: 0.573762 | U19: 0.53262 | V19: 0.774859 | W19: 0 | X19: 0
A20: 2021-03-04 | B20: 109.648 | C20: 104.96 | D20: 106.291 | E20: 103.238 | F20: 102.11 | G20: 104.594 | H20: 1107.68 | I20: 1086.4 | J20: 1025.37 | K20: 4.07 | L20: 713.957289 | M20: -246.944322 | N20: -380.173764 | O20: 0.868881 | P20: -0.855237 | Q20: 1.028262 | R20: -2.091484 | S20: 1.233023 | T20: -0.533717 | U20: -0.822447 | V20: -0.806673 | W20: 0 | X20: 0
A21: 2021-03-03 | B21: 109.909 | C21: 103.845 | D21: 106.464 | E21: 102.296 | F21: 102.157 | G21: 104.224 | H21: 1110.14 | I21: 1087.96 | J21: 1025.69 | K21: 4.06 | L21: 725.386587 | M21: -260.219907 | N21: -388.80181 | O21: 0.924728 | P21: -1.794668 | Q21: 2.071217 | R21: -0.885398 | S21: 0.790132 | T21: 0.026395 | U21: -0.850191 | V21: -0.702625 | W21: 0 | X21: 0
A22: 2021-03-02 | B22: 109.802 | C22: 103.325 | D22: 106.474 | E22: 102.027 | F22: 102.102 | G22: 103.966 | H22: 1108.91 | I22: 1087.9 | J22: 1024.99 | K22: 4.01 | L22: 735.085845 | M22: -272.558948 | N22: -389.795131 | O22: 0.922621 | P22: 0.966632 | Q22: 0.934798 | R22: -2.189 | S22: 4.143188 | T22: 0.252822 | U22: -2.124646 | V22: -1.100109 | W22: 0 | X22: 0
A23: 2021-03-01 | B23: 109.758 | C23: 102.795 | D23: 106.244 | E23: 101.778 | F23: 102.105 | G23: 104.173 | H23: 1108.31 | I23: 1085.43 | J23: 1024.88 | K23: 4.06 | L23: 741.302475 | M23: -289.529406 | N23: -380.746341 | O23: 0.967065 | P23: 0.596291 | Q23: 1.496766 | R23: -2.907777 | S23: 1.467266 | T23: 0.709257 | U23: 0.937046 | V23: 0.985671 | W23: 0 | X23: 0
A24: 2021-02-26 | B24: 109.771 | C24: 102.465 | D24: 106.504 | E24: 101.549 | F24: 102.056 | G24: 104.11 | H24: 1107.97 | I24: 1087.53 | J24: 1023.94 | K24: 4.18 | L24: 749.41687 | M24: -297.811529 | N24: -365.669364 | O24: 1.02122 | P24: 0.442116 | Q24: 2.580407 | R24: -4.954265 | S24: 2.446011 | T24: 0.798411 | U24: 0.015064 | V24: 0.782944 | W24: 0 | X24: 0
A25: 2021-02-25 | B25: 109.902 | C25: 102.835 | D25: 106.233 | E25: 102.157 | F25: 102.105 | G25: 104.404 | H25: 1109.12 | I25: 1084.65 | J25: 1024.29 | K25: 4.16 | L25: 750.541258 | M25: -299.83757 | N25: -352.905133 | O25: 1.09632 | P25: 0.011622 | Q25: 1.754724 | R25: -1.050601 | S25: 1.357463 | T25: 0.300099 | U25: -1.017368 | V25: -0.420859 | W25: 0 | X25: 0
A26: 2021-02-24 | B26: 109.916 | C26: 103.336 | D26: 106.22 | E26: 102.399 | F26: 102.171 | G26: 104.652 | H26: 1109.1 | I26: 1084.36 | J26: 1024.8 | K26: 4.06 | L26: 750.019762 | M26: -300.807978 | N26: -349.014588 | O26: 1.209857 | P26: -0.016727 | Q26: 3.261707 | R26: 0.055431 | S26: 1.194997 | T26: 0.033176 | U26: 0.030667 | V26: -0.015248 | W26: 0 | X26: 0
A27: 2021-02-22 | B27: 109.971 | C27: 102.933 | D27: 106.349 | E27: 102.376 | F27: 102.121 | G27: 104.924 | H27: 1109.34 | I27: 1085.31 | J27: 1024.01 | K27: 4.06 | L27: 747.893914 | M27: -304.254122 | N27: -350.959344 | O27: 1.151787 | P27: 0.944822 | Q27: 0.872425 | R27: -4.548992 | S27: 1.190522 | T27: -0.556404 | U27: -0.51069 | V27: 0.795026 | W27: 0 | X27: 0
A28: 2021-02-20 | B28: 110.073 | C28: 103.094 | D28: 106.235 | E28: 102.366 | F28: 102.201 | G28: 104.848 | H28: 1110.04 | I28: 1083.84 | J28: 1024.51 | K28: 4.06 | L28: 751.275272 | M28: -303.129045 | N28: -346.974813 | O28: 1.237184 | P28: -0.014267 | Q28: 2.581592 | R28: -4.962416 | S28: 0.653452 | T28: -0.021391 | U28: -0.074373 | V28: 0.653981 | W28: 0 | X28: 0
A29: 2021-02-19 | B29: 109.714 | C29: 103.137 | D29: 106.249 | E29: 102.628 | F29: 102.158 | G29: 104.659 | H29: 1106.29 | I29: 1083.81 | J29: 1023.93 | K29: 4.02 | L29: 751.245839 | M29: -302.874521 | N29: -332.451255 | O29: 1.237656 | P29: 0.778658 | Q29: 2.028879 | R29: -4.339842 | S29: 1.069164 | T29: -0.748506 | U29: -0.804185 | V29: 0.343018 | W29: 0 | X29: 0
A30: 2021-02-18 | B30: 109.895 | C30: 103.785 | D30: 106.253 | E30: 103.043 | F30: 102.119 | G30: 104.985 | H30: 1107.94 | I30: 1083.69 | J30: 1023.4 | K30: 4.05 | L30: 746.704088 | M30: -299.652606 | N30: -324.003075 | O30: 1.297519 | P30: -0.013963 | Q30: 0.997801 | R30: -2.226799 | S30: 1.63119 | T30: -1.799014 | U30: 0.078527 | V30: 1.22709 | W30: 0 | X30: 0
A31: 2021-02-17 | B31: 109.999 | C31: 103.298 | D31: 106.273 | E31: 102.735 | F31: 102.171 | G31: 104.744 | H31: 1108.83 | I31: 1083.72 | J31: 1023.77 | K31: 4 | L31: 755.819472 | M31: -303.424318 | N31: -310.608271 | O31: 1.338556 | P31: 0.024661 | Q31: 0.026271 | R31: -4.675073 | S31: 1.172548 | T31: -0.358437 | U31: -0.340109 | V31: 0.621438 | W31: 0 | X31: 0
A32: 2021-02-16 | B32: 110.17 | C32: 103.121 | D32: 106.669 | E32: 102.957 | F32: 102.248 | G32: 105.128 | H32: 1110.38 | I32: 1087.51 | J32: 1024.39 | K32: 3.91 | L32: 763.703525 | M32: -325.757225 | N32: -314.396369 | O32: 1.410057 | P32: 0.043239 | Q32: 1.617872 | R32: -3.50278 | S32: 1.197722 | T32: -0.452858 | U32: -0.846451 | V32: 0.595872 | W32: 0 | X32: 0
A33: 2021-02-15 | B33: 110.284 | C33: 104.318 | D33: 106.548 | E33: 103.202 | F33: 102.302 | G33: 105.311 | H33: 1111.36 | I33: 1086.14 | J33: 1024.79 | K33: 3.94 | L33: 753.916097 | M33: -311.412939 | N33: -334.942531 | O33: 1.36668 | P33: 0.027077 | Q33: -0.567329 | R33: -2.051284 | S33: 1.585397 | T33: -1.188304 | U33: -0.278363 | V33: 0.79047 | W33: 0 | X33: 0
A34: 2021-02-12 | B34: 110.303 | C34: 104.461 | D34: 106.67 | E34: 103.683 | F34: 102.481 | G34: 105.438 | H34: 1111.08 | I34: 1086.86 | J34: 1026.13 | K34: 4 | L34: 748.780399 | M34: -311.541111 | N34: -337.398605 | O34: 1.384066 | P34: -0.251772 | Q34: -2.322624 | R34: 1.014744 | S34: 3.803092 | T34: -2.765379 | U34: -1.82848 | V34: 0.994406 | W34: 0 | X34: 0
A35: 2021-02-11 | B35: 110.344 | C35: 105.356 | D35: 106.62 | E35: 104.147 | F35: 102.512 | G35: 105.761 | H35: 1111.33 | I35: 1086.19 | J35: 1026.3 | K35: 4.02 | L35: 745.429818 | M35: -315.299036 | N35: -345.78433 | O35: 1.429839 | P35: 1.989583 | Q35: -1.087562 | R35: -2.125395 | S35: 3.562807 | T35: -2.330191 | U35: -1.154235 | V35: 0.786709 | W35: 0 | X35: 0
A36: 2021-02-10 | B36: 110.342 | C36: 105.896 | D36: 106.583 | E36: 104.717 | F36: 102.578 | G36: 105.929 | H36: 1111.15 | I36: 1085.65 | J36: 1026.81 | K36: 4.09 | L36: 739.321617 | M36: -315.862062 | N36: -345.060385 | O36: 1.44076 | P36: 0.462785 | Q36: -2.535465 | R36: -2.265647 | S36: 5.914109 | T36: -3.219452 | U36: -2.540352 | V36: 1.478812 | W36: 0 | X36: 0
A37: 2021-02-09 | B37: 110.1 | C37: 106.103 | D37: 106.613 | E37: 105.404 | F37: 102.763 | G37: 106.036 | H37: 1108.57 | I37: 1085.79 | J37: 1028.51 | K37: 4.16 | L37: 733.352914 | M37: -311.923523 | N37: -346.713497 | O37: 1.407177 | P37: 1.752463 | Q37: -0.775744 | R37: -3.299255 | S37: 2.047973 | T37: -1.846276 | U37: -1.038218 | V37: 1.459774 | W37: 0 | X37: 0
A38: 2021-02-08 | B38: 110.068 | C38: 106.784 | D38: 106.574 | E38: 105.699 | F38: 102.782 | G38: 106.309 | H38: 1108.1 | I38: 1085.23 | J38: 1028.56 | K38: 3.28 | L38: 733.731482 | M38: -322.050857 | N38: -310.065632 | O38: 1.569082 | P38: 2.441346 | Q38: -2.907783 | R38: -2.555031 | S38: 3.09623 | T38: -1.799495 | U38: -1.321663 | V38: 0.750145 | W38: 0 | X38: 0
A39: 2021-02-05 | B39: 110.013 | C39: 106.343 | D39: 106.67 | E39: 105.49 | F39: 102.809 | G39: 106.201 | H39: 1107.07 | I39: 1085.69 | J39: 1028.38 | K39: 3.73 | L39: 741.456119 | M39: -336.47476 | N39: -314.76369 | O39: 1.614488 | P39: -0.593089 | Q39: -1.120661 | R39: 0.580265 | S39: 4.661767 | T39: -1.046929 | U39: -2.654174 | V39: -0.063971 | W39: 0 | X39: 0
A40: 2021-02-04 | B40: 110.132 | C40: 105.973 | D40: 106.688 | E40: 105.216 | F40: 102.866 | G40: 106.053 | H40: 1108.11 | I40: 1085.71 | J40: 1028.81 | K40: 4 | L40: 749.610021 | M40: -340.538898 | N40: -319.2125 | O40: 1.58353 | P40: -0.021842 | Q40: -1.969562 | R40: -1.204193 | S40: 4.550523 | T40: -2.326835 | U40: -2.774055 | V40: 1.493118 | W40: 0 | X40: 0
A41: 2021-02-03 | B41: 110.121 | C41: 105.588 | D41: 106.716 | E41: 104.867 | F41: 102.816 | G41: 105.944 | H41: 1107.84 | I41: 1085.82 | J41: 1028.16 | K41: 4 | L41: 744.906046 | M41: -339.065247 | N41: -338.075283 | O41: 1.4335 | P41: -0.028374 | Q41: -0.831774 | R41: 0.617999 | S41: 3.653027 | T41: -1.618758 | U41: -3.787653 | V41: 1.69844 | W41: 0 | X41: 0
A42: 2021-02-02 | B42: 109.992 | C42: 106.11 | D42: 106.677 | E42: 105.364 | F42: 102.885 | G42: 106.028 | H42: 1106.39 | I42: 1085.26 | J42: 1061.33 | K42: 4.1 | L42: 742.142631 | M42: -324.831378 | N42: -350.114227 | O42: 1.452567 | P42: 0.127722 | Q42: -1.422998 | R42: -1.317277 | S42: 2.659073 | T42: -1.331073 | U42: -3.048758 | V42: 1.541351 | W42: 0 | X42: 0
A43: 2021-02-01 | B43: 109.912 | C43: 106.342 | D43: 106.587 | E43: 105.349 | F43: 102.772 | G43: 106.005 | H43: 1105.43 | I43: 1084.2 | J43: 1060.02 | K43: 4.23 | L43: 729.533191 | M43: -309.385227 | N43: -350.442809 | O43: 1.375225 | P43: 0.015036 | Q43: -1.719881 | R43: -2.560265 | S43: 2.835883 | T43: -1.578233 | U43: -2.440006 | V43: 0.850419 | W43: 0 | X43: 0
A44: 2021-01-29 | B44: 110.024 | C44: 106.073 | D44: 106.65 | E44: 105.297 | F44: 102.709 | G44: 106.055 | H44: 1106.08 | I44: 1084.33 | J44: 1058.85 | K44: 4.43 | L44: 731.55573 | M44: -315.149023 | N44: -346.0252 | O44: 1.38293 | P44: 0.683597 | Q44: -2.934876 | R44: -1.086119 | S44: 2.735031 | T44: -1.276845 | U44: -2.779191 | V44: 0.934809 | W44: 0 | X44: 0
A45: 2021-01-28 | B45: 110.045 | C45: 105.819 | D45: 106.691 | E45: 105.076 | F45: 102.754 | G45: 106.02 | H45: 1106.13 | I45: 1084.57 | J45: 1059.12 | K45: 4.27 | L45: 735.539493 | M45: -317.267097 | N45: -345.78604 | O45: 1.406788 | P45: 1.173758 | Q45: -1.101429 | R45: -1.430038 | S45: 2.797899 | T45: -1.14133 | U45: -2.979741 | V45: 1.520221 | W45: 0 | X45: 0
A46: 2021-01-27 | B46: 110.072 | C46: 106.025 | D46: 106.6 | E46: 105.026 | F46: 102.799 | G46: 106.15 | H46: 1106.24 | I46: 1083.49 | J46: 1059.39 | K46: 4.25 | L46: 730.755389 | M46: -321.466453 | N46: -330.661511 | O46: 1.370228 | P46: 1.402832 | Q46: -0.490069 | R46: -1.655932 | S46: 1.980985 | T46: -1.288689 | U46: -0.859416 | V46: 0.822073 | W46: 0 | X46: 0
A47: 2021-01-26 | B47: 110.002 | C47: 106.116 | D47: 106.599 | E47: 105.445 | F47: 102.751 | G47: 106.183 | H47: 1105.39 | I47: 1083.32 | J47: 1058.73 | K47: 4.35 | L47: 729.635604 | M47: -325.904805 | N47: -317.800244 | O47: 1.427152 | P47: 0.443308 | Q47: -0.981389 | R47: -1.854607 | S47: 2.270217 | T47: -1.520946 | U47: -2.41717 | V47: 1.707028 | W47: 0 | X47: 0
A48: 2021-01-25 | B48: 109.899 | C48: 106.081 | D48: 106.425 | E48: 105.246 | F48: 102.744 | G48: 106.133 | H48: 1104.2 | I48: 1081.41 | J48: 1058.48 | K48: 4.27 | L48: 731.165175 | M48: -330.258865 | N48: -312.83309 | O48: 1.378636 | P48: 1.341664 | Q48: 0.257537 | R48: -3.362097 | S48: 3.767988 | T48: -1.107512 | U48: -3.846124 | V48: 1.150256 | W48: 0 | X48: 0
A49: 2021-01-22 | B49: 109.783 | C49: 105.854 | D49: 106.422 | E49: 105.495 | F49: 102.614 | G49: 106.005 | H49: 1102.56 | I49: 1080.88 | J49: 1056.65 | K49: 4.27 | L49: 733.510571 | M49: -332.810583 | N49: -307.017482 | O49: 1.423173 | P49: 2.970884 | Q49: -1.10085 | R49: -5.601448 | S49: 2.410189 | T49: -1.327511 | U49: -2.858243 | V49: 3.005051 | W49: 0 | X49: 0
A50: 2021-01-21 | B50: 110.038 | C50: 106.827 | D50: 106.541 | E50: 106.022 | F50: 102.727 | G50: 106.382 | H50: 1104.96 | I50: 1081.9 | J50: 1057.6 | K50: 4.35 | L50: 723.752501 | M50: -320.791642 | N50: -306.537448 | O50: 1.473186 | P50: 3.544365 | Q50: -1.964936 | R50: -4.099784 | S50: 3.0042 | T50: -0.865893 | U50: -2.462989 | V50: 0.791907 | W50: 0 | X50: 0
A51: 2021-01-20 | B51: 109.955 | C51: 107.405 | D51: 106.412 | E51: 106.222 | F51: 102.632 | G51: 106.482 | H51: 1103.97 | I51: 1080.45 | J51: 1056.47 | K51: 4.31 | L51: 724.952362 | M51: -327.235099 | N51: -283.899017 | O51: 1.576695 | P51: -0.010259 | Q51: -1.303072 | R51: -1.014638 | S51: 4.071364 | T51: -0.887504 | U51: -3.654453 | V51: 0.605576 | W51: 0 | X51: 0
A52: 2021-01-19 | B52: 109.628 | C52: 107.094 | D52: 106.436 | E52: 106.149 | F52: 102.724 | G52: 106.445 | H52: 1100.54 | I52: 1080.52 | J52: 1057.21 | K52: 4.3 | L52: 732.685437 | M52: -328.928041 | N52: -292.935469 | O52: 1.680753 | P52: -0.009095 | Q52: -0.342253 | R52: -0.646271 | S52: 2.567427 | T52: -0.294531 | U52: -2.179975 | V52: -0.027779 | W52: 0 | X52: 0
A53: 2021-01-18 | B53: 109.467 | C53: 106.801 | D53: 106.582 | E53: 105.938 | F53: 102.757 | G53: 106.351 | H53: 1098.77 | I53: 1081.81 | J53: 1057.36 | K53: 4.3 | L53: 729.79822 | M53: -323.734799 | N53: -295.556218 | O53: 1.58938 | P53: -0.019045 | Q53: -0.60415 | R53: -1.388105 | S53: 1.602446 | T53: -0.596894 | U53: -2.445913 | V53: 0.801457 | W53: 0 | X53: 0
A54: 2021-01-15 | B54: 109.21 | C54: 107.26 | D54: 106.499 | E54: 106.075 | F54: 102.856 | G54: 106.362 | H54: 1095.73 | I54: 1080.48 | J54: 1057.81 | K54: 4.25 | L54: 730.880033 | M54: -324.537227 | N54: -294.668964 | O54: 1.638612 | P54: -0.014125 | Q54: -1.612172 | R54: -0.940071 | S54: 4.327929 | T54: -0.154172 | U54: -3.391391 | V54: 0.645676 | W54: 0 | X54: 0
A55: 2021-01-14 | B55: 109.084 | C55: 107.952 | D55: 106.637 | E55: 106.742 | F55: 102.903 | G55: 106.758 | H55: 1094.31 | I55: 1081.7 | J55: 1058.1 | K55: 4.24 | L55: 722.349374 | M55: -313.388228 | N55: -304.915762 | O55: 1.645448 | P55: 0.016188 | Q55: 0.011977 | R55: 0.020485 | S55: 2.927558 | T55: -1.01319 | U55: -2.553037 | V55: 1.129584 | W55: 0 | X55: 0
A56: 2021-01-13 | B56: 108.901 | C56: 108.313 | D56: 106.686 | E56: 107.01 | F56: 102.976 | G56: 106.681 | H56: 1092.32 | I56: 1082.02 | J56: 1058.65 | K56: 4.23 | L56: 715.228644 | M56: -309.212329 | N56: -309.996776 | O56: 1.547123 | P56: 1.694227 | Q56: -0.720672 | R56: -1.80758 | S56: 2.001193 | T56: -0.552758 | U56: -2.01574 | V56: 1.291856 | W56: 0 | X56: 0
A57: 2021-01-12 | B57: 108.697 | C57: 108.416 | D57: 106.648 | E57: 107.243 | F57: 103.151 | G57: 106.762 | H57: 1090.13 | I57: 1081.47 | J57: 1060.22 | K57: 4.18 | L57: 715.288824 | M57: -306.145614 | N57: -295.294946 | O57: 1.703958 | P57: 2.940554 | Q57: 1.288819 | R57: -5.068294 | S57: 1.153737 | T57: 0.894431 | U57: -1.117212 | V57: 0.400649 | W57: 0 | X57: 0
A58: 2021-01-11 | B58: 108.853 | C58: 108.576 | D58: 106.662 | E58: 107.401 | F58: 103.191 | G58: 106.789 | H58: 1091.53 | I58: 1081.45 | J58: 1060.44 | K58: 4.27 | L58: 718.333351 | M58: -315.903041 | N58: -281.979355 | O58: 1.75749 | P58: 5.430201 | Q58: 1.943953 | R58: -7.760026 | S58: 1.022281 | T58: -0.280916 | U58: -0.437009 | V58: 0.483864 | W58: 0 | X58: 0
A59: 2021-01-08 | B59: 108.801 | C59: 109.317 | D59: 106.707 | E59: 107.695 | F59: 103.267 | G59: 107.056 | H59: 1090.53 | I59: 1081.4 | J59: 1060.66 | K59: 4.27 | L59: 699.659592 | M59: -334.703188 | N59: -264.870364 | O59: 1.550273 | P59: -5.348532 | Q59: 5.098584 | R59: -1.036709 | S59: 2.153573 | T59: -1.655169 | U59: -1.771831 | V59: 0.997899 | W59: 0 | X59: 0
A60: 2021-01-06 | B60: 108.904 | C60: 109.338 | D60: 106.7 | E60: 107.713 | F60: 103.222 | G60: 107.109 | H60: 1091.25 | I60: 1080.99 | J60: 1059.86 | K60: 4.27 | L60: 717.203049 | M60: -345.452987 | N60: -250.572799 | O60: 1.895455 | P60: -5.193763 | Q60: 7.012545 | R60: -4.816045 | S60: -0.377598 | T60: 1.761777 | U60: -1.011363 | V60: -0.942946 | W60: 0 | X60: 0
A61: 2021-01-05 | B61: 109.12 | C61: 109.145 | D61: 106.705 | E61: 107.692 | F61: 103.213 | G61: 107.1 | H61: 1093.25 | I61: 1080.88 | J61: 1059.59 | K61: 4.27 | L61: 724.496445 | M61: -343.906636 | N61: -216.4913 | O61: 2.254521 | P61: 2.026053 | Q61: 2.814638 | R61: -4.533073 | S61: -0.594414 | T61: 0.901395 | U61: 0.986144 | V61: -0.023183 | W61: 0 | X61: 0
A62: 2021-01-04 | B62: 108.937 | C62: 108.895 | D62: 106.681 | E62: 107.628 | F62: 103.114 | G62: 107.025 | H62: 1091.26 | I62: 1080.47 | J62: 1058.42 | K62: 4.27 | L62: 726.017778 | M62: -341.777078 | N62: -195.174564 | O62: 2.332159 | P62: 6.046327 | Q62: 3.245694 | R62: -10.665666 | S62: 1.021549 | T62: 1.157434 | U62: -0.078238 | V62: 0.87157 | W62: 0 | X62: 0
A63: 2020-12-30 | B63: 108.987 | C63: 108.876 | D63: 106.943 | E63: 107.438 | F63: 103.07 | G63: 107 | H63: 1090.97 | I63: 1082.26 | J63: 1057.08 | K63: 4.27 | L63: 704.093115 | M63: -360.028967 | N63: -167.900656 | O63: 1.798541 | P63: -10.796097 | Q63: 12.124659 | R63: 5.916239 | S63: 1.017468 | T63: -3.318616 | U63: -2.623335 | V63: 1.768286 | W63: 0 | X63: 0
A64: 2020-12-29 | B64: 109.113 | C64: 108.944 | D64: 106.472 | E64: 107.557 | F64: 102.926 | G64: 106.726 | H64: 1092.08 | I64: 1077.38 | J64: 1055.46 | K64: 4.2 | L64: 722.729 | M64: -343.826206 | N64: -208.007278 | O64: 2.147053 | P64: -3.885634 | Q64: -2.407143 | R64: 0.029307 | S64: 5.104748 | T64: 1.184876 | U64: -2.96378 | V64: 0.985903 | W64: 0 | X64: 0
A65: 2020-12-28 | B65: 109.243 | C65: 108.534 | D65: 106.264 | E65: 107.642 | F65: 102.999 | G65: 106.812 | H65: 1093.22 | I65: 1075.13 | J65: 1056.01 | K65: 4.24 | L65: 711.115938 | M65: -315.391346 | N65: -225.150805 | O65: 1.942431 | P65: -0.013975 | Q65: 1.015957 | R65: -1.386052 | S65: 2.337311 | T65: -1.085116 | U65: -1.45911 | V65: 1.203244 | W65: 0 | X65: 0
A66: 2020-12-25 | B66: 109.276 | C66: 108.965 | D66: 106.098 | E66: 107.708 | F66: 102.917 | G66: 106.831 | H66: 1093.08 | I66: 1072.97 | J66: 1054.65 | K66: 4.19 | L66: 706.448974 | M66: -304.767957 | N66: -224.077185 | O66: 1.889708 | P66: 0.612541 | Q66: 0.792895 | R66: -2.13522 | S66: 2.540291 | T66: -1.09111 | U66: -1.533325 | V66: 0.959367 | W66: 0 | X66: 0
A67: 2020-12-24 | B67: 109.396 | C67: 108.569 | D67: 106.075 | E67: 107.368 | F67: 102.993 | G67: 106.713 | H67: 1094.12 | I67: 1072.58 | J67: 1055.23 | K67: 4.2 | L67: 719.301539 | M67: -312.678965 | N67: -231.393139 | O67: 2.010405 | P67: -0.018892 | Q67: 1.253538 | R67: -6.025772 | S67: 6.620763 | T67: -0.55027 | U67: -2.566203 | V67: -1.862956 | W67: 0 | X67: 0
A68: 2020-12-23 | B68: 109.519 | C68: 108.853 | D68: 106.25 | E68: 107.438 | F68: 102.936 | G68: 106.677 | H68: 1095.19 | I68: 1074.16 | J68: 1054.48 | K68: 4.2 | L68: 728.132844 | M68: -318.511873 | N68: -239.523681 | O68: 2.169509 | P68: -1.084721 | Q68: 0.344682 | R68: -1.000803 | S68: 4.3838 | T68: 1.146433 | U68: -1.655477 | V68: -0.240719 | W68: 0 | X68: 0
A69: 2020-12-22 | B69: 109.515 | C69: 108.98 | D69: 106.234 | E69: 107.673 | F69: 102.936 | G69: 106.83 | H69: 1131.75 | I69: 1073.83 | J69: 1054.3 | K69: 4.28 | L69: 724.378853 | M69: -310.81601 | N69: -251.5219 | O69: 2.151279 | P69: -1.660439 | Q69: 2.222927 | R69: -2.911111 | S69: 3.597311 | T69: 0.825052 | U69: -2.029683 | V69: 1.109851 | W69: 0 | X69: 0
A70: 2020-12-21 | B70: 109.651 | C70: 108.823 | D70: 106.239 | E70: 107.674 | F70: 102.956 | G70: 106.808 | H70: 1132.91 | I70: 1073.72 | J70: 1054.32 | K70: 4.27 | L70: 726.985145 | M70: -308.137483 | N70: -253.236855 | O70: 2.186438 | P70: -0.054239 | Q70: 0.891636 | R70: -3.142149 | S70: 0.903115 | T70: -1.336562 | U70: -1.368062 | V70: 1.735914 | W70: 0 | X70: 0
A71: 2020-12-18 | B71: 109.626 | C71: 109.767 | D71: 106.216 | E71: 108.19 | F71: 102.972 | G71: 106.977 | H71: 1132.05 | I71: 1072.99 | J71: 1053.95 | K71: 4.27 | L71: 726.07698 | M71: -312.331193 | N71: -258.932559 | O71: 2.283456 | P71: -5.064834 | Q71: 3.352671 | R71: -0.681597 | S71: 1.984344 | T71: 0.784738 | U71: -0.869822 | V71: 0.360593 | W71: 0 | X71: 0
A72: 2020-12-17 | B72: 109.741 | C72: 110.099 | D72: 106.209 | E72: 108.101 | F72: 102.91 | G72: 107.221 | H72: 1133 | I72: 1072.75 | J72: 1053.15 | K72: 4.31 | L72: 724.639718 | M72: -306.083458 | N72: -270.604345 | O72: 2.329061 | P72: 0.016163 | Q72: 0.492198 | R72: -1.582153 | S72: 1.066733 | T72: 0.272844 | U72: -1.231914 | V72: 1.469484 | W72: 0 | X72: 0
A73: 2020-12-16 | B73: 109.883 | C73: 109.755 | D73: 106.36 | E73: 108.002 | F73: 102.927 | G73: 107.212 | H73: 1134.21 | I73: 1074.1 | J73: 1053.14 | K73: 4.32 | L73: 723.189092 | M73: -305.212042 | N73: -278.625718 | O73: 2.200224 | P73: -1.596074 | Q73: 2.706697 | R73: -1.762982 | S73: 2.200858 | T73: -0.038605 | U73: -1.229106 | V73: 0.024026 | W73: 0 | X73: 0
A74: 2020-12-15 | B74: 109.854 | C74: 110.001 | D74: 106.488 | E74: 108.15 | F74: 103.016 | G74: 107.278 | H74: 1133.72 | I74: 1075.21 | J74: 1053.85 | K74: 4.25 | L74: 722.989263 | M74: -303.732974 | N74: -282.139223 | O74: 2.185028 | P74: 0.02205 | Q74: 0.358617 | R74: 0.010769 | S74: 0.813775 | T74: -0.452646 | U74: -0.11091 | V74: -0.18286 | W74: 0 | X74: 0
A75: 2020-12-14 | B75: 109.91 | C75: 110.012 | D75: 106.525 | E75: 108.127 | F75: 103.057 | G75: 107.349 | H75: 1134.08 | I75: 1075.41 | J75: 1054.08 | K75: 4.17 | L75: 719.188575 | M75: -307.875084 | N75: -283.599401 | O75: 2.096137 | P75: -0.023803 | Q75: 0.373517 | R75: -0.446581 | S75: 2.210834 | T75: -0.638386 | U75: -0.710557 | V75: 0.87053 | W75: 0 | X75: 0
A76: 2020-12-11 | B76: 109.863 | C76: 110.078 | D76: 106.427 | E76: 108.051 | F76: 103.143 | G76: 107.349 | H76: 1133 | I76: 1073.93 | J76: 1054.4 | K76: 4.19 | L76: 715.365595 | M76: -300.793179 | N76: -284.002621 | O76: 2.07413 | P76: 0.023316 | Q76: -0.750643 | R76: -0.560628 | S76: 2.92781 | T76: -1.339914 | U76: -1.982829 | V76: 1.105199 | W76: 0 | X76: 0
A77: 2020-12-10 | B77: 109.896 | C77: 110.009 | D77: 106.375 | E77: 108.229 | F77: 103.185 | G77: 107.498 | H77: 1133.13 | I77: 1073.25 | J77: 1054.64 | K77: 4.11 | L77: 714.753793 | M77: -302.230512 | N77: -286.914367 | O77: 2.021615 | P77: -0.064441 | Q77: 0.208275 | R77: -0.976565 | S77: 1.481824 | T77: -0.898758 | U77: -0.784241 | V77: 0.797148 | W77: 0 | X77: 0
A78: 2020-12-09 | B78: 109.956 | C78: 110.396 | D78: 106.377 | E78: 108.391 | F78: 103.241 | G78: 107.549 | H78: 1133.53 | I78: 1073.1 | J78: 1055.02 | K78: 4.05 | L78: 715.652547 | M78: -300.218371 | N78: -290.408788 | O78: 2.098423 | P78: -0.028364 | Q78: -0.166033 | R78: 0.037283 | S78: 0.583779 | T78: -0.659012 | U78: 0.025908 | V78: 0.132688 | W78: 0 | X78: 0
A79: 2020-12-08 | B79: 109.87 | C79: 110.393 | D79: 106.373 | E79: 108.579 | F79: 103.264 | G79: 107.541 | H79: 1132.47 | I79: 1072.89 | J79: 1055.07 | K79: 3.58 | L79: 709.536977 | M79: -292.47181 | N79: -296.85221 | O79: 2.015781 | P79: -0.024047 | Q79: -1.610696 | R79: -0.778162 | S79: 2.902226 | T79: -1.816097 | U79: -2.244879 | V79: 2.03457 | W79: 0 | X79: 0
A80: 2020-12-07 | B80: 109.975 | C80: 110.116 | D80: 106.362 | E80: 108.497 | F80: 103.391 | G80: 107.441 | H80: 1133.31 | I80: 1072.62 | J80: 1056.16 | K80: 3.64 | L80: 699.183579 | M80: -286.344118 | N80: -306.20367 | O80: 1.79686 | P80: 0.017565 | Q80: 0.242103 | R80: -0.844262 | S80: 3.823373 | T80: -1.117342 | U80: -1.423621 | V80: 0.469578 | W80: 0 | X80: 0
A81: 2020-12-04 | B81: 110.002 | C81: 110.043 | D81: 106.572 | E81: 108.329 | F81: 103.404 | G81: 107.374 | H81: 1132.98 | I81: 1074.22 | J81: 1055.75 | K81: 4.01 | L81: 697.573193 | M81: -283.164765 | N81: -310.659257 | O81: 1.764424 | P81: -0.04505 | Q81: -0.285246 | R81: -0.013894 | S81: 3.360974 | T81: -1.730747 | U81: -0.790427 | V81: 0.782912 | W81: 0 | X81: 0
A82: 2020-12-03 | B82: 110.012 | C82: 109.875 | D82: 106.383 | E82: 108.337 | F82: 103.46 | G82: 107.425 | H82: 1132.88 | I82: 1072.16 | J82: 1056.13 | K82: 4.02 | L82: 702.230747 | M82: -284.785389 | N82: -316.103102 | O82: 1.795234 | P82: -0.327967 | Q82: 0.035963 | R82: -1.434511 | S82: 3.903866 | T82: -0.520036 | U82: -0.539694 | V82: 0.371851 | W82: 0 | X82: 0
A83: 2020-12-02 | B83: 110.256 | C83: 109.878 | D83: 106.406 | E83: 108.259 | F83: 103.562 | G83: 107.4 | H83: 1135.11 | I83: 1072.22 | J83: 1056.97 | K83: 4.02 | L83: 706.452062 | M83: -285.758226 | N83: -319.674717 | O83: 1.845135 | P83: 0.304678 | Q83: 0.119723 | R83: -0.827408 | S83: 3.115634 | T83: -0.789884 | U83: 0.058664 | V83: 0.502523 | W83: 0 | X83: 0
A84: 2020-12-01 | B84: 110.279 | C84: 110 | D84: 106.357 | E84: 108.251 | F84: 103.608 | G84: 107.468 | H84: 1135.14 | I84: 1071.57 | J84: 1057.26 | K84: 4.06 | L84: 708.394437 | M84: -287.917317 | N84: -321.852788 | O84: 1.851681 | P84: -0.013362 | Q84: 0.162025 | R84: -1.277663 | S84: 3.244459 | T84: -0.35908 | U84: -0.035283 | V84: 0.168826 | W84: 0 | X84: 0
A85: 2020-11-30 | B85: 110.095 | C85: 109.99 | D85: 106.132 | E85: 108.396 | F85: 103.597 | G85: 107.4 | H85: 1133.1 | I85: 1069.15 | J85: 1056.97 | K85: 4.07 | L85: 711.61364 | M85: -287.696158 | N85: -325.74447 | O85: 1.895776 | P85: 0.035342 | Q85: 0.829424 | R85: -2.654679 | S85: 3.276832 | T85: -0.668834 | U85: 0.019526 | V85: -0.857601 | W85: 0 | X85: 0
A86: 2020-11-27 | B86: 110.082 | C86: 110.041 | D86: 106.121 | E86: 108.316 | F86: 103.621 | G86: 107.416 | H86: 1132.36 | I86: 1068.54 | J86: 1056.67 | K86: 4.03 | L86: 708.75054 | M86: -285.547303 | N86: -331.490727 | O86: 1.845531 | P86: -0.21189 | Q86: 0.599579 | R86: -2.923874 | S86: 2.572924 | T86: -0.974817 | U86: -0.513347 | V86: 0.384633 | W86: 0 | X86: 0
A87: 2020-11-26 | B87: 110.062 | C87: 110.15 | D87: 106.207 | E87: 108.346 | F87: 103.552 | G87: 107.569 | H87: 1131.96 | I87: 1069.23 | J87: 1055.8 | K87: 4.07 | L87: 708.085315 | M87: -282.770862 | N87: -329.468586 | O87: 1.871697 | P87: 0.140465 | Q87: 0.792061 | R87: -1.729832 | S87: 1.24424 | T87: -0.789393 | U87: 0.013519 | V87: 0.586467 | W87: 0 | X87: 0
A88: 2020-11-25 | B88: 110.077 | C88: 110.406 | D88: 106.228 | E88: 108.515 | F88: 103.59 | G88: 107.588 | H88: 1131.91 | I88: 1069.28 | J88: 1056 | K88: 4.06 | L88: 712.938372 | M88: -295.576057 | N88: -302.282768 | O88: 2.05575 | P88: 0.009574 | Q88: 2.393617 | R88: -1.571973 | S88: 0.130942 | T88: -1.021837 | U88: 1.166982 | V88: 0.741546 | W88: 0 | X88: 0
A89: 2020-11-24 | B89: 109.973 | C89: 110.37 | D89: 106.18 | E89: 108.626 | F89: 103.612 | G89: 107.595 | H89: 1130.67 | I89: 1068.63 | J89: 1056.04 | K89: 4.01 | L89: 709.577806 | M89: -295.653156 | N89: -302.16189 | O89: 2.026382 | P89: -3.199337 | Q89: 2.414438 | R89: 1.331658 | S89: 0.433628 | T89: -1.146145 | U89: 1.329197 | V89: 0.532689 | W89: 0 | X89: 0
A90: 2020-11-23 | B90: 109.935 | C90: 113.666 | D90: 106.152 | E90: 108.427 | F90: 103.391 | G90: 107.568 | H90: 1130.08 | I90: 1068.18 | J90: 1053.65 | K90: 4.02 | L90: 712.075616 | M90: -295.047742 | N90: -301.652622 | O90: 2.082192 | P90: 0.107542 | Q90: 1.330275 | R90: -1.398937 | S90: 0.589184 | T90: -1.542235 | U90: 0.894761 | V90: 0.938057 | W90: 0 | X90: 0
A91: 2020-11-20 | B91: 109.95 | C91: 110.342 | D91: 106.072 | E91: 108.527 | F91: 103.576 | G91: 107.649 | H91: 1129.63 | I91: 1066.88 | J91: 1054.96 | K91: 4.08 | L91: 713.273624 | M91: -302.449784 | N91: -299.715037 | O91: 2.050059 | P91: -2.03587 | Q91: 3.357318 | R91: -0.067575 | S91: 1.220648 | T91: -0.867163 | U91: 0.596239 | V91: 0.723833 | W91: 0 | X91: 0
A92: 2020-11-19 | B92: 109.743 | C92: 110.35 | D92: 106.091 | E92: 108.501 | F92: 103.575 | G92: 107.601 | H92: 1127.36 | I92: 1066.91 | J92: 1054.77 | K92: 4.1 | L92: 715.087432 | M92: -297.025243 | N92: -295.191444 | O92: 2.132725 | P92: 0.276123 | Q92: 2.742209 | R92: -3.707076 | S92: 0.418844 | T92: -0.456182 | U92: 0.498208 | V92: 0.616532 | W92: 0 | X92: 0
A93: 2020-11-18 | B93: 109.504 | C93: 110.326 | D93: 106.067 | E93: 108.489 | F93: 103.579 | G93: 107.686 | H93: 1124.76 | I93: 1066.5 | J93: 1054.63 | K93: 4.1 | L93: 715.356825 | M93: -295.562061 | N93: -292.607029 | O93: 2.179445 | P93: -0.046653 | Q93: 1.685506 | R93: -1.02408 | S93: -0.58995 | T93: -2.557895 | U93: 1.342494 | V93: 1.447767 | W93: 0 | X93: 0
A94: 2020-11-17 | B94: 109.519 | C94: 110.466 | D94: 106.08 | E94: 108.381 | F94: 103.613 | G94: 107.606 | H94: 1124.71 | I94: 1066.46 | J94: 1054.79 | K94: 4.18 | L94: 712.752684 | M94: -300.349558 | N94: -287.707904 | O94: 2.139732 | P94: -1.152751 | Q94: 1.215201 | R94: 1.668724 | S94: 0.358754 | T94: -1.770354 | U94: 1.051747 | V94: 0.923338 | W94: 0 | X94: 0
A95: 2020-11-16 | B95: 109.481 | C95: 110.413 | D95: 106.639 | E95: 108.508 | F95: 103.581 | G95: 107.767 | H95: 1124.13 | I95: 1071.89 | J95: 1054.29 | K95: 4.15 | L95: 708.806836 | M95: -302.310802 | N95: -289.637571 | O95: 2.033205 | P95: -7.613243 | Q95: 2.074758 | R95: 4.191764 | S95: 0.153518 | T95: -2.46071 | U95: 0.612845 | V95: 0.749507 | W95: 0 | X95: 0
A96: 2020-11-13 | B96: 109.433 | C96: 110.295 | D96: 106.05 | E96: 108.38 | F96: 103.504 | G96: 107.621 | H96: 1123.04 | I96: 1065.5 | J96: 1052.99 | K96: 4.2 | L96: 709.861652 | M96: -295.860148 | N96: -296.475834 | O96: 2.052001 | P96: -0.068867 | Q96: 0.42096 | R96: 1.164534 | S96: 0.465668 | T96: -2.954642 | U96: 2.566129 | V96: 0.653008 | W96: 0 | X96: 0
A97: 2020-11-12 | B97: 108.943 | C97: 110.102 | D97: 106.088 | E97: 108.223 | F97: 103.577 | G97: 107.499 | H97: 1117.94 | I97: 1065.71 | J97: 1053.54 | K97: 4.17 | L97: 709.786573 | M97: -297.535373 | N97: -302.087618 | O97: 1.988197 | P97: -1.003963 | Q97: -0.581902 | R97: 1.854954 | S97: 1.107784 | T97: -1.22434 | U97: 0.419993 | V97: 0.750866 | W97: 0 | X97: 0
A98: 2020-11-11 | B98: 109.705 | C98: 110.038 | D98: 106.166 | E98: 108.394 | F98: 103.582 | G98: 107.434 | H98: 1125.36 | I98: 1066.32 | J98: 1053.41 | K98: 4.14 | L98: 708.506883 | M98: -295.638584 | N98: -308.882568 | O98: 1.928724 | P98: -3.390946 | Q98: -0.895793 | R98: 2.79332 | S98: 0.75294 | T98: -2.02576 | U98: 0.944362 | V98: 0.648237 | W98: 0 | X98: 0
A99: 2020-11-10 | B99: 109.617 | C99: 110.288 | D99: 106.259 | E99: 108.291 | F99: 103.505 | G99: 107.455 | H99: 1124.28 | I99: 1067.09 | J99: 1052.46 | K99: 3.79 | L99: 699.279219 | M99: -282.093428 | N99: -322.946181 | O99: 1.738946 | P99: -1.001179 | Q99: -0.824845 | R99: 1.199569 | S99: 0.614011 | T99: -2.476441 | U99: 2.158013 | V99: 0.863082 | W99: 0 | X99: 0
A100: 2020-11-09 | B100: 109.542 | C100: 110.542 | D100: 106.286 | E100: 108.381 | F100: 103.398 | G100: 107.652 | H100: 1123.32 | I100: 1067.19 | J100: 1051.21 | K100: 3.78 | L100: 691.049511 | M100: -266.873084 | N100: -329.542527 | O100: 1.723192 | P100: -0.015467 | Q100: -0.550517 | R100: 0.81601 | S100: 1.130348 | T100: -2.61405 | U100: 2.74951 | V100: 0.620631 | W100: 0 | X100: 0
A101: 2020-11-06 | B101: 109.485 | C101: 109.895 | D101: 106.341 | E101: 107.877 | F101: 103.377 | G101: 107.491 | H101: 1122.15 | I101: 1067.24 | J101: 1050.46 | K101: 4.08 | L101: 697.104594 | M101: -276.688844 | N101: -338.534355 | O101: 1.671815 | P101: -2.015648 | Q101: 0.030031 | R101: 2.595031 | S101: 0.954052 | T101: -1.451996 | U101: 2.778054 | V101: 0.661236 | W101: 0 | X101: 0
A102: 2020-11-05 | B102: 109.358 | C102: 109.237 | D102: 106.265 | E102: 107.453 | F102: 103.325 | G102: 107.348 | H102: 1120.67 | I102: 1066.32 | J102: 1049.76 | K102: 4.14 | L102: 702.157441 | M102: -272.825393 | N102: -345.637187 | O102: 1.702878 | P102: -0.018121 | Q102: 1.213464 | R102: 1.699375 | S102: 0.739706 | T102: -1.260315 | U102: 4.100945 | V102: 0.349135 | W102: 0 | X102: 0
A103: 2020-11-03 | B103: 109.259 | C103: 107.136 | D103: 106.358 | E103: 105.935 | F103: 103.268 | G103: 106.854 | H103: 1119.28 | I103: 1066.91 | J103: 1048.83 | K103: 4.09 | L103: 729.325831 | M103: -297.04365 | N103: -355.308607 | O103: 1.582863 | P103: -0.424431 | Q103: 0.014822 | R103: -0.051252 | S103: -1.18413 | T103: -2.587872 | U103: 3.002839 | V103: 1.274829 | W103: 0 | X103: 0
A104: 2020-11-02 | B104: 109.235 | C104: 106.852 | D104: 106.462 | E104: 105.483 | F104: 103.252 | G104: 106.764 | H104: 1118.84 | I104: 1067.79 | J104: 1048.49 | K104: 4.15 | L104: 726.802662 | M104: -298.506192 | N104: -349.017385 | O104: 1.533394 | P104: 0.08647 | Q104: 0.703438 | R104: 0.272354 | S104: -2.247072 | T104: -2.292327 | U104: 4.500203 | V104: 0.038606 | W104: 0 | X104: 0
A105: 2020-10-30 | B105: 109.11 | C105: 107.816 | D105: 106.388 | E105: 106.678 | F105: 103.368 | G105: 107.067 | H105: 1116.98 | I105: 1066.55 | J105: 1049.11 | K105: 4.26 | L105: 717.973152 | M105: -294.36875 | N105: -323.909397 | O105: 1.641892 | P105: 0.261289 | Q105: 0.93635 | R105: -0.976132 | S105: -0.722775 | T105: -2.714444 | U105: 3.50348 | V105: 1.007042 | W105: 0 | X105: 0
A106: 2020-10-29 | B106: 109.344 | C106: 108.052 | D106: 106.64 | E106: 106.595 | F106: 103.419 | G106: 107.156 | H106: 1119.12 | I106: 1068.9 | J106: 1049.44 | K106: 4.26 | L106: 714.661869 | M106: -294.11277 | N106: -313.64735 | O106: 1.70086 | P106: 1.707548 | Q106: 2.240729 | R106: -1.642185 | S106: -1.477061 | T106: -1.583593 | U106: 3.953771 | V106: -0.270781 | W106: 0 | X106: 0
A107: 2020-10-28 | B107: 109.501 | C107: 108.513 | D107: 106.658 | E107: 106.847 | F107: 103.489 | G107: 107.186 | H107: 1120.49 | I107: 1068.91 | J107: 1049.96 | K107: 4.26 | L107: 715.300421 | M107: -297.033893 | N107: -304.016701 | O107: 1.771069 | P107: 0.016241 | Q107: 0.013796 | R107: -0.350065 | S107: -0.453563 | T107: -3.486557 | U107: 3.885001 | V107: 0.279745 | W107: 0 | X107: 0
A108: 2020-10-27 | B108: 109.749 | C108: 109.492 | D108: 106.63 | E108: 107.315 | F108: 103.43 | G108: 107.469 | H108: 1122.76 | I108: 1068.47 | J108: 1049.19 | K108: 4.23 | L108: 711.617842 | M108: -302.048289 | N108: -295.84783 | O108: 1.816087 | P108: 0.014884 | Q108: 0.632841 | R108: 0.372055 | S108: 0.019293 | T108: -3.357827 | U108: 3.431024 | V108: 0.807356 | W108: 0 | X108: 0
A109: 2020-10-26 | B109: 110.016 | C109: 109.483 | D109: 106.706 | E109: 107.408 | F109: 103.332 | G109: 107.554 | H109: 1125.23 | I109: 1069.06 | J109: 1048.03 | K109: 4.24 | L109: 703.802933 | M109: -294.728493 | N109: -283.130487 | O109: 1.827629 | P109: -0.060223 | Q109: 0.871576 | R109: -0.280722 | S109: -0.838174 | T109: -3.869485 | U109: 3.863442 | V109: 0.93447 | W109: 0 | X109: 0
A110: 2020-10-23 | B110: 109.993 | C110: 109.7 | D110: 106.704 | E110: 107.528 | F110: 103.396 | G110: 107.499 | H110: 1124.4 | I110: 1068.54 | J110: 1048.14 | K110: 4.23 | L110: 701.575927 | M110: -297.646837 | N110: -277.259349 | O110: 1.827567 | P110: 0.097458 | Q110: 1.068087 | R110: 0.709755 | S110: 0.502001 | T110: -3.860819 | U110: 4.226684 | V110: 0.978663 | W110: 0 | X110: 0
A111: 2020-10-22 | B111: 109.874 | C111: 109.636 | D111: 106.762 | E111: 107.47 | F111: 103.351 | G111: 107.333 | H111: 1123 | I111: 1068.95 | J111: 1047.51 | K111: 4.23 | L111: 700.325974 | M111: -301.255348 | N111: -272.406592 | O111: 1.783976 | P111: 0.020688 | Q111: 0.593278 | R111: 0.769726 | S111: 0.055968 | T111: -2.658511 | U111: 3.821774 | V111: 0.678133 | W111: 0 | X111: 0
A112: 2020-10-21 | B112: 109.99 | C112: 109.605 | D112: 106.775 | E112: 107.695 | F112: 103.354 | G112: 107.4 | H112: 1123.96 | I112: 1068.92 | J112: 1047.36 | K112: 4.24 | L112: 701.980768 | M112: -301.301645 | N112: -266.746639 | O112: 1.868677 | P112: -0.048068 | Q112: -0.36962 | R112: -0.020244 | S112: 1.459428 | T112: -4.776235 | U112: 3.833029 | V112: 0.747474 | W112: 0 | X112: 0
A113: 2020-10-20 | B113: 110.003 | C113: 109.456 | D113: 106.757 | E113: 107.437 | F113: 103.397 | G113: 107.456 | H113: 1123.89 | I113: 1068.57 | J113: 1047.61 | K113: 4.24 | L113: 707.702349 | M113: -311.378608 | N113: -265.128575 | O113: 1.92228 | P113: 0.123192 | Q113: -0.037856 | R113: 1.468051 | S113: 1.06345 | T113: -2.124448 | U113: 3.996634 | V113: 0.419814 | W113: 0 | X113: 0
A114: 2020-10-19 | B114: 110.04 | C114: 109.397 | D114: 106.747 | E114: 107.54 | F114: 103.354 | G114: 107.602 | H114: 1124.06 | I114: 1068.3 | J114: 1047 | K114: 4.22 | L114: 708.286109 | M114: -307.036928 | N114: -274.361418 | O114: 1.913845 | P114: 0.010804 | Q114: 0.010407 | R114: 0.987441 | S114: 0.686119 | T114: -2.105723 | U114: 3.172617 | V114: 0.705545 | W114: 0 | X114: 0
A115: 2020-10-16 | B115: 110.222 | C115: 109.352 | D115: 106.83 | E115: 107.182 | F115: 103.348 | G115: 107.4 | H115: 1125.27 | I115: 1068.63 | J115: 1046.4 | K115: 4.27 | L115: 713.483841 | M115: -308.666303 | N115: -272.997001 | O115: 1.930054 | P115: 0.031492 | Q115: -1.070955 | R115: -0.495283 | S115: -0.174214 | T115: -3.959282 | U115: 2.721388 | V115: 0.029523 | W115: 0 | X115: 0
A116: 2020-10-15 | B116: 109.91 | C116: 109.045 | D116: 106.819 | E116: 107.273 | F116: 103.349 | G116: 107.47 | H116: 1121.95 | I116: 1068.36 | J116: 1046.23 | K116: 4.24 | L116: 710.874329 | M116: -303.997444 | N116: -275.265895 | O116: 1.874256 | P116: -0.025653 | Q116: -0.575492 | R116: 0.140147 | S116: 0.040499 | T116: -3.423029 | U116: 3.985677 | V116: 0.652065 | W116: 0 | X116: 0
A117: 2020-10-14 | B117: 110.015 | C117: 109.519 | D117: 107.259 | E117: 107.586 | F117: 103.321 | G117: 107.567 | H117: 1122.8 | I117: 1072.59 | J117: 1045.77 | K117: 4.22 | L117: 707.176196 | M117: -297.07277 | N117: -276.817425 | O117: 1.925344 | P117: -0.056566 | Q117: -0.278589 | R117: -0.011287 | S117: 0.932149 | T117: -1.902749 | U117: 2.141068 | V117: 0.478269 | W117: 0 | X117: 0
A118: 2020-10-13 | B118: 110.006 | C118: 109.908 | D118: 107.983 | E118: 107.604 | F118: 103.358 | G118: 107.509 | H118: 1122.5 | I118: 1117.27 | J118: 1045.96 | K118: 4.24 | L118: 703.579603 | M118: -293.704881 | N118: -279.815694 | O118: 1.871996 | P118: -0.013343 | Q118: -1.773237 | R118: -0.236483 | S118: 2.529493 | T118: -2.634245 | U118: 1.111894 | V118: 0.051766 | W118: 0 | X118: 0
A119: 2020-10-12 | B119: 110.117 | C119: 109.822 | D119: 107.981 | E119: 107.492 | F119: 103.393 | G119: 107.545 | H119: 1123.41 | I119: 1117.05 | J119: 1046.13 | K119: 4.25 | L119: 698.303015 | M119: -318.911512 | N119: -199.587237 | O119: 1.974176 | P119: -3.78183 | Q119: 0.775389 | R119: 4.245365 | S119: 2.908072 | T119: -3.44412 | U119: 0.855522 | V119: 1.307022 | W119: 0 | X119: 0
A120: 2020-10-09 | B120: 109.46 | C120: 109.908 | D120: 107.969 | E120: 107.485 | F120: 103.356 | G120: 107.544 | H120: 1116.24 | I120: 1116.31 | J120: 1045.22 | K120: 4.24 | L120: 701.580403 | M120: -311.725695 | N120: -207.180683 | O120: 2.060009 | P120: 0.007334 | Q120: -0.02375 | R120: 1.507082 | S120: 0.732789 | T120: -2.317019 | U120: 2.673255 | V120: -0.162084 | W120: 0 | X120: 0
A121: 2020-10-08 | B121: 109.564 | C121: 109.816 | D121: 107.95 | E121: 107.417 | F121: 103.365 | G121: 107.546 | H121: 1117.07 | I121: 1115.91 | J121: 1045.13 | K121: 4.2 | L121: 704.271682 | M121: -309.99203 | N121: -207.575809 | O121: 2.1408 | P121: -0.211818 | Q121: -0.099494 | R121: 1.728249 | S121: 0.701215 | T121: -2.315151 | U121: 2.641482 | V121: 0.419838 | W121: 0 | X121: 0
A122: 2020-10-07 | B122: 109.108 | C122: 109.021 | D122: 107.842 | E122: 106.84 | F122: 103.353 | G122: 107.409 | H122: 1112.31 | I122: 1114.62 | J122: 1044.84 | K122: 4.2 | L122: 709.556758 | M122: -322.217484 | N122: -210.452453 | O122: 1.99112 | P122: -1.92354 | Q122: -2.216178 | R122: 2.946392 | S122: 2.088456 | T122: -4.007854 | U122: 1.713754 | V122: 1.088548 | W122: 0 | X122: 0
A123: 2020-10-06 | B123: 108.922 | C123: 108.718 | D123: 107.799 | E123: 106.646 | F123: 103.477 | G123: 107.293 | H123: 1110.25 | I123: 1113.99 | J123: 1045.9 | K123: 4 | L123: 710.696338 | M123: -322.576698 | N123: -217.188245 | O123: 1.91437 | P123: -1.038154 | Q123: 0.035861 | R123: 1.11667 | S123: 0.708845 | T123: -2.40482 | U123: 1.956686 | V123: 0.032095 | W123: 0 | X123: 0
A124: 2020-10-05 | B124: 108.71 | C124: 108.747 | D124: 107.799 | E124: 106.069 | F124: 103.444 | G124: 107.3 | H124: 1107.93 | I124: 1113.78 | J124: 1045.39 | K124: 4.04 | L124: 713.157684 | M124: -331.550216 | N124: -232.721604 | O124: 1.773502 | P124: -7.193582 | Q124: 2.199853 | R124: 6.400999 | S124: 0.050731 | T124: -0.977426 | U124: 0.943253 | V124: -0.061414 | W124: 0 | X124: 0
A125: 2020-10-02 | B125: 108.886 | C125: 108.561 | D125: 107.668 | E125: 105.99 | F125: 103.45 | G125: 107.241 | H125: 1109.08 | I125: 1111.85 | J125: 1044.91 | K125: 3.9 | L125: 715.066184 | M125: -323.71724 | N125: -260.432596 | O125: 1.723651 | P125: -0.858039 | Q125: -0.697071 | R125: 2.629762 | S125: 1.124981 | T125: -1.67321 | U125: 2.398287 | V125: -0.762334 | W125: 0 | X125: 0
A126: 2020-10-01 | B126: 108.819 | C126: 108.392 | D126: 107.77 | E126: 106.007 | F126: 103.179 | G126: 107.166 | H126: 1108.21 | I126: 1112.66 | J126: 1042.02 | K126: 4.08 | L126: 714.129766 | M126: -319.062839 | N126: -277.070384 | O126: 1.65928 | P126: -0.298202 | Q126: 0.168912 | R126: 1.964361 | S126: -1.520598 | T126: -2.409337 | U126: 4.000493 | V126: 0.457282 | W126: 0 | X126: 0
A127: 2020-09-30 | B127: 108.642 | C127: 107.94 | D127: 107.65 | E127: 105.638 | F127: 103.308 | G127: 107.125 | H127: 1106.24 | I127: 1111.25 | J127: 1043.13 | K127: 4.19 | L127: 713.398201 | M127: -320.052001 | N127: -280.385887 | O127: 1.552128 | P127: -0.794988 | Q127: -0.015295 | R127: 1.894524 | S127: -2.049712 | T127: -0.88245 | U127: 2.450628 | V127: -0.470597 | W127: 0 | X127: 0
A128: 2020-09-29 | B128: 108.587 | C128: 107.309 | D128: 107.623 | E128: 105.056 | F128: 103.256 | G128: 107.011 | H128: 1105.48 | I128: 1110.78 | J128: 1042.43 | K128: 4.19 | L128: 719.791394 | M128: -323.222239 | N128: -283.863328 | O128: 1.585433 | P128: 0.011762 | Q128: -0.251368 | R128: 1.885338 | S128: -4.024448 | T128: -0.443702 | U128: 3.012125 | V128: -0.169264 | W128: 0 | X128: 0
A129: 2020-09-28 | B129: 108.55 | C129: 107.087 | D129: 107.466 | E129: 105.191 | F129: 103.071 | G129: 107.049 | H129: 1104.91 | I129: 1109 | J129: 1040.4 | K129: 4.21 | L129: 722.438173 | M129: -322.847919 | N129: -288.418589 | O129: 1.569405 | P129: -0.139585 | Q129: -0.356669 | R129: 0.866282 | S129: -0.950797 | T129: -1.413644 | U129: 2.098229 | V129: 0.03193 | W129: 0 | X129: 0
A130: 2020-09-25 | B130: 108.36 | C130: 107.448 | D130: 107.438 | E130: 105.394 | F130: 103.085 | G130: 107.062 | H130: 1102.4 | I130: 1108.1 | J130: 1040 | K130: 4.23 | L130: 717.997409 | M130: -322.311217 | N130: -291.816897 | O130: 1.521593 | P130: -2.500494 | Q130: 0.5618 | R130: 3.317015 | S130: -1.594797 | T130: -2.053281 | U130: 2.361804 | V130: -0.018055 | W130: 0 | X130: 0
A131: 2020-09-24 | B131: 108.435 | C131: 107.434 | D131: 107.514 | E131: 105.227 | F131: 103.255 | G131: 106.944 | H131: 1102.95 | I131: 1108.65 | J131: 1041.52 | K131: 4.14 | L131: 724.633861 | M131: -322.910746 | N131: -298.634963 | O131: 1.613234 | P131: -2.052152 | Q131: 0.084439 | R131: 4.140013 | S131: -2.184788 | T131: 0.321535 | U131: 1.591047 | V131: -0.32201 | W131: 0 | X131: 0
A132: 2020-09-23 | B132: 108.47 | C132: 107.653 | D132: 107.909 | E132: 105.43 | F132: 103.282 | G132: 107.034 | H132: 1103.1 | I132: 1112.4 | J132: 1041.61 | K132: 4.2 | L132: 718.596228 | M132: -321.044022 | N132: -298.626845 | O132: 1.56247 | P132: -1.578394 | Q132: 0.856265 | R132: 3.013425 | S132: -1.120017 | T132: -0.878004 | U132: 2.73313 | V132: -0.012395 | W132: 0 | X132: 0
A133: 2020-09-22 | B133: 108.389 | C133: 107.735 | D133: 107.727 | E133: 105.516 | F133: 103.201 | G133: 107.151 | H133: 1102.09 | I133: 1110.37 | J133: 1040.62 | K133: 4.19 | L133: 718.750073 | M133: -321.275775 | N133: -297.07112 | O133: 1.583223 | P133: 0.022302 | Q133: 1.383708 | R133: 0.822322 | S133: -3.021571 | T133: -1.028067 | U133: 3.841845 | V133: -0.671318 | W133: 0 | X133: 0
A134: 2020-09-21 | B134: 108.377 | C134: 107.906 | D134: 107.691 | E134: 105.787 | F134: 103.19 | G134: 107.205 | H134: 1101.77 | I134: 1109.8 | J134: 1040.33 | K134: 4.16 | L134: 721.668304 | M134: -329.932179 | N134: -290.467712 | O134: 1.611166 | P134: -0.480953 | Q134: 0.040335 | R134: 1.73626 | S134: -1.326217 | T134: -2.21113 | U134: 3.125268 | V134: 0.035384 | W134: 0 | X134: 0
A135: 2020-09-18 | B135: 108.366 | C135: 108.301 | D135: 107.846 | E135: 106.066 | F135: 103.242 | G135: 107.209 | H135: 1101.05 | I135: 1110.73 | J135: 1040.32 | K135: 4.2 | L135: 708.926253 | M135: -320.803198 | N135: -288.76183 | O135: 1.551261 | P135: -1.660332 | Q135: 0.606871 | R135: 1.818079 | S135: -0.641084 | T135: -1.957747 | U135: 1.890128 | V135: 0.831289 | W135: 0 | X135: 0
A136: 2020-09-17 | B136: 108.25 | C136: 108.401 | D136: 107.412 | E136: 106.109 | F136: 103.293 | G136: 107.21 | H136: 1099.69 | I136: 1106.18 | J136: 1040.65 | K136: 4.24 | L136: 710.784928 | M136: -319.293151 | N136: -291.791667 | O136: 1.610548 | P136: -1.149103 | Q136: 0.980024 | R136: 1.82206 | S136: -1.620114 | T136: -1.491364 | U136: 2.372415 | V136: 0.37697 | W136: 0 | X136: 0
A137: 2020-09-16 | B137: 108.274 | C137: 108.426 | D137: 107.148 | E137: 106.238 | F137: 103.25 | G137: 107.38 | H137: 1099.72 | I137: 1103.34 | J137: 1040.04 | K137: 4.2 | L137: 711.162184 | M137: -315.724529 | N137: -297.884387 | O137: 1.622191 | P137: -0.011504 | Q137: 0.737546 | R137: 0.746164 | S137: -1.070213 | T137: -1.182135 | U137: 2.806977 | V137: 0.178655 | W137: 0 | X137: 0
A138: 2020-09-15 | B138: 108.279 | C138: 108.49 | D138: 106.937 | E138: 106.24 | F138: 103.227 | G138: 107.298 | H138: 1099.57 | I138: 1101.02 | J138: 1039.63 | K138: 4.18 | L138: 706.749214 | M138: -327.274222 | N138: -299.481042 | O138: 1.494801 | P138: -0.671843 | Q138: 0.379337 | R138: 1.596253 | S138: -0.751914 | T138: -0.750594 | U138: 2.275368 | V138: -0.02545 | W138: 0 | X138: 0
A139: 2020-09-14 | B139: 108.315 | C139: 108.519 | D139: 106.987 | E139: 106.194 | F139: 103.208 | G139: 107.399 | H139: 1099.73 | I139: 1101.31 | J139: 1039.26 | K139: 4.12 | L139: 711.619099 | M139: -326.694886 | N139: -300.399987 | O139: 1.550732 | P139: -0.00944 | Q139: -0.039863 | R139: 0.784048 | S139: -0.483922 | T139: -2.413701 | U139: 3.573235 | V139: 0.402835 | W139: 0 | X139: 0
A140: 2020-09-11 | B140: 108.288 | C140: 108.4 | D140: 107.012 | E140: 106.007 | F140: 103.22 | G140: 107.351 | H140: 1098.85 | I140: 1100.94 | J140: 1038.84 | K140: 4.1 | L140: 711.797319 | M140: -330.536265 | N140: -300.617839 | O140: 1.548984 | P140: -0.00293 | Q140: 0.546008 | R140: 1.188165 | S140: -1.383885 | T140: -2.4698 | U140: 5.210945 | V140: -0.052441 | W140: 0 | X140: 0
A141: 2020-09-10 | B141: 108.507 | C141: 108.304 | D141: 106.987 | E141: 106.242 | F141: 103.129 | G141: 107.449 | H141: 1100.84 | I141: 1100.49 | J141: 1037.75 | K141: 4.11 | L141: 706.930128 | M141: -319.575421 | N141: -300.91043 | O141: 1.567427 | P141: -0.016027 | Q141: 0.326703 | R141: 0.695784 | S141: -2.020328 | T141: -2.9658 | U141: 4.798991 | V141: 0.007878 | W141: 0 | X141: 0
A142: 2020-09-09 | B142: 108.423 | C142: 108.126 | D142: 106.994 | E142: 105.91 | F142: 103.145 | G142: 107.164 | H142: 1099.8 | I142: 1100.35 | J142: 1037.73 | K142: 4.12 | L142: 711.979651 | M142: -323.409694 | N142: -300.06954 | O142: 1.563541 | P142: -0.039919 | Q142: -0.017637 | R142: 0.714673 | S142: -2.047328 | T142: -3.258952 | U142: 5.023257 | V142: -0.256817 | W142: 0 | X142: 0
A143: 2020-09-08 | B143: 108.427 | C143: 108.343 | D143: 106.968 | E143: 105.905 | F143: 103.188 | G143: 107.245 | H143: 1099.64 | I143: 1099.88 | J143: 1037.98 | K143: 4.38 | L143: 721.691158 | M143: -330.477478 | N143: -309.838503 | O143: 1.583632 | P143: -2.254438 | Q143: -1.679708 | R143: 3.507423 | S143: -0.606269 | T143: -3.236201 | U143: 3.285239 | V143: 0.024064 | W143: 0 | X143: 0
A144: 2020-09-07 | B144: 108.503 | C144: 108.453 | D144: 106.968 | E144: 106.127 | F144: 103.202 | G144: 107.333 | H144: 1100.19 | I144: 1099.68 | J144: 1037.94 | K144: 4 | L144: 714.423335 | M144: -318.130283 | N144: -313.822029 | O144: 1.62747 | P144: 0.002932 | Q144: 0.289097 | R144: -0.418702 | S144: -1.2832 | T144: -2.440779 | U144: 4.276804 | V144: 0.49601 | W144: 0 | X144: 0
A145: 2020-09-04 | B145: 108.51 | C145: 108.513 | D145: 107.086 | E145: 106.455 | F145: 103.325 | G145: 107.401 | H145: 1099.66 | I145: 1100.24 | J145: 1038.63 | K145: 4.13 | L145: 711.742615 | M145: -314.616791 | N145: -311.934616 | O145: 1.653128 | P145: 0.044985 | Q145: -0.022082 | R145: 1.507758 | S145: -1.594384 | T145: -2.542971 | U145: 3.588769 | V145: 0.841142 | W145: 0 | X145: 0
A146: 2020-09-03 | B146: 108.666 | C146: 108.348 | D146: 107.103 | E146: 106.323 | F146: 103.093 | G146: 107.416 | H146: 1101.02 | I146: 1100.2 | J146: 1036.13 | K146: 4.15 | L146: 713.433029 | M146: -315.502821 | N146: -309.871088 | O146: 1.606263 | P146: -0.696765 | Q146: -0.302477 | R146: 1.005884 | S146: -0.820436 | T146: -2.305981 | U146: 2.977033 | V146: 0.537973 | W146: 0 | X146: 0
A147: 2020-09-02 | B147: 108.751 | C147: 109.276 | D147: 107.097 | E147: 106.643 | F147: 103.132 | G147: 107.846 | H147: 1101.66 | I147: 1099.93 | J147: 1036.34 | K147: 4.12 | L147: 720.680826 | M147: -322.585253 | N147: -309.739567 | O147: 1.683313 | P147: 0.049396 | Q147: 0.221521 | R147: 0.992296 | S147: -1.951861 | T147: -1.858943 | U147: 3.574199 | V147: -0.067879 | W147: 0 | X147: 0
A148: 2020-09-01 | B148: 108.793 | C148: 109.439 | D148: 107.07 | E148: 106.936 | F148: 103.049 | G148: 107.93 | H148: 1101.88 | I148: 1099.45 | J148: 1035.34 | K148: 4.1 | L148: 709.838462 | M148: -321.595444 | N148: -305.04905 | O148: 1.754799 | P148: -1.954066 | Q148: -0.05234 | R148: 3.233866 | S148: -1.635132 | T148: -1.022799 | U148: 2.073017 | V148: 0.22468 | W148: 0 | X148: 0
A149: 2020-08-31 | B149: 108.924 | C149: 109.153 | D149: 107.033 | E149: 106.898 | F149: 103.001 | G149: 107.7 | H149: 1102.99 | I149: 1098.88 | J149: 1034.68 | K149: 4.1 | L149: 714.929448 | M149: -322.902735 | N149: -307.337678 | O149: 1.750763 | P149: -0.023025 | Q149: 0.207836 | R149: 1.953875 | S149: -3.256617 | T149: -2.312638 | U149: 2.684684 | V149: 1.848814 | W149: 0 | X149: 0
A150: 2020-08-28 | B150: 108.912 | C150: 108.783 | D150: 107.086 | E150: 106.508 | F150: 103.06 | G150: 107.76 | H150: 1102.26 | I150: 1098.79 | J150: 1034.73 | K150: 4.18 | L150: 722.512733 | M150: -334.256346 | N150: -306.002851 | O150: 1.813817 | P150: -3.784139 | Q150: -1.702102 | R150: 6.963676 | S150: -0.568874 | T150: -0.781846 | U150: 0.725143 | V150: -0.739251 | W150: 0 | X150: 0
A151: 2020-08-27 | B151: 108.911 | C151: 108.65 | D151: 107.101 | E151: 106.438 | F151: 103.007 | G151: 107.662 | H151: 1102.05 | I151: 1098.73 | J151: 1034.02 | K151: 4.15 | L151: 720.44114 | M151: -326.311661 | N151: -316.724246 | O151: 1.701882 | P151: -0.844072 | Q151: -1.612128 | R151: 3.151557 | S151: -1.794193 | T151: -0.709347 | U151: 2.75184 | V151: -0.37011 | W151: 0 | X151: 0
A152: 2020-08-26 | B152: 109.048 | C152: 107.77 | D152: 107.375 | E152: 105.758 | F152: 103.002 | G152: 107.403 | H152: 1103.22 | I152: 1101.26 | J152: 1033.79 | K152: 4.17 | L152: 726.408419 | M152: -327.496944 | N152: -330.230564 | O152: 1.692665 | P152: -0.975182 | Q152: -0.710191 | R152: 3.149202 | S152: -2.436855 | T152: -1.891429 | U152: 3.130771 | V152: 0.651138 | W152: 0 | X152: 0
A153: 2020-08-25 | B153: 109.024 | C153: 108.15 | D153: 106.939 | E153: 106.051 | F153: 103.078 | G153: 107.534 | H153: 1102.78 | I153: 1096.7 | J153: 1034.37 | K153: 4.16 | L153: 724.530887 | M153: -318.97222 | N153: -325.987567 | O153: 1.733103 | P153: 0.007642 | Q153: -0.255666 | R153: 2.340444 | S153: -6.05349 | T153: -2.258064 | U153: 4.838826 | V153: 0.747266 | W153: 0 | X153: 0
A154: 2020-08-24 | B154: 109.043 | C154: 108.778 | D154: 107.419 | E154: 106.2 | F154: 103.075 | G154: 107.647 | H154: 1102.76 | I154: 1101.29 | J154: 1034.16 | K154: 4.06 | L154: 716.506576 | M154: -311.250868 | N154: -300.196037 | O154: 1.768429 | P154: -0.033302 | Q154: 2.474943 | R154: 1.996437 | S154: -6.978552 | T154: -1.383522 | U154: 5.792652 | V154: -0.565886 | W154: 0 | X154: 0
A155: 2020-08-21 | B155: 109.015 | C155: 108.623 | D155: 107.556 | E155: 106.013 | F155: 103.487 | G155: 107.431 | H155: 1101.88 | I155: 1102.04 | J155: 1037.74 | K155: 4.1 | L155: 727.39057 | M155: -336.269775 | N155: -285.973524 | O155: 1.82203 | P155: -0.035879 | Q155: -0.015341 | R155: 3.066631 | S155: -5.001847 | T155: -1.727995 | U155: 4.399024 | V155: -0.662843 | W155: 0 | X155: 0
A156: 2020-08-20 | B156: 109.152 | C156: 109.055 | D156: 107.528 | E156: 106.637 | F156: 103.554 | G156: 107.763 | H156: 1103.05 | I156: 1101.55 | J156: 1038.23 | K156: 4.12 | L156: 713.574578 | M156: -320.336314 | N156: -270.893796 | O156: 1.822895 | P156: -1.315399 | Q156: -0.475383 | R156: 3.942521 | S156: -5.736551 | T156: -1.867353 | U156: 4.52227 | V156: 0.605886 | W156: 0 | X156: 0
A157: 2020-08-19 | B157: 109.021 | C157: 109.385 | D157: 107.62 | E157: 106.678 | F157: 103.659 | G157: 107.777 | H157: 1101.53 | I157: 1102.27 | J157: 1039.1 | K157: 4.1 | L157: 711.178977 | M157: -316.874382 | N157: -263.760146 | O157: 1.945925 | P157: -0.574884 | Q157: -0.241291 | R157: 3.393726 | S157: -2.94679 | T157: -1.922117 | U157: 3.998644 | V157: 0.424289 | W157: 0 | X157: 0
A158: 2020-08-18 | B158: 109.216 | C158: 108.266 | D158: 107.911 | E158: 106.203 | F158: 103.754 | G158: 107.518 | H158: 1103.28 | I158: 1104.97 | J158: 1039.87 | K158: 4.12 | L158: 716.554604 | M158: -322.785416 | N158: -259.079029 | O158: 1.931586 | P158: -1.124091 | Q158: 0.854278 | R158: 3.512277 | S158: -5.768555 | T158: -2.069093 | U158: 4.645197 | V158: 0.010174 | W158: 0 | X158: 0
A159: 2020-08-17 | B159: 109.217 | C159: 108.425 | D159: 107.58 | E159: 105.851 | F159: 103.708 | G159: 107.478 | H159: 1103.09 | I159: 1101.45 | J159: 1039.23 | K159: 4.11 | L159: 720.835002 | M159: -328.464337 | N159: -243.54466 | O159: 1.861813 | P159: -0.033151 | Q159: 2.613358 | R159: 1.959941 | S159: -5.306584 | T159: -0.741686 | U159: 4.980688 | V159: -2.262121 | W159: 0 | X159: 0
A160: 2020-08-14 | B160: 109.264 | C160: 110.432 | D160: 107.599 | E160: 107.702 | F160: 103.745 | G160: 108.128 | H160: 1102.95 | I160: 1101.02 | J160: 1039.07 | K160: 4.11 | L160: 710.577314 | M160: -321.228647 | N160: -202.952185 | O160: 2.267521 | P160: 0.010124 | Q160: 4.708659 | R160: 1.447151 | S160: -10.245981 | T160: -1.47746 | U160: 3.982321 | V160: 1.531256 | W160: 0 | X160: 0
A161: 2020-08-13 | B161: 109.264 | C161: 110.766 | D161: 107.598 | E161: 108.069 | F161: 103.726 | G161: 108.3 | H161: 1102.75 | I161: 1100.8 | J161: 1038.7 | K161: 4.08 | L161: 704.409334 | M161: -321.627507 | N161: -186.996165 | O161: 2.398227 | P161: 0.016496 | Q161: 2.967561 | R161: 1.141219 | S161: -6.291281 | T161: -2.136548 | U161: 4.988793 | V161: 0.47574 | W161: 0 | X161: 0
A162: 2020-08-12 | B162: 109.389 | C162: 110.817 | D162: 107.597 | E162: 108.166 | F162: 103.7 | G162: 108.573 | H162: 1103.8 | I162: 1100.59 | J162: 1038.26 | K162: 4.09 | L162: 712.997529 | M162: -329.314139 | N162: -176.345481 | O162: 2.660383 | P162: -0.887051 | Q162: 4.694708 | R162: 1.891284 | S162: -6.059494 | T162: -1.684279 | U162: 2.590313 | V162: 0.515792 | W162: 0 | X162: 0
A163: 2020-08-11 | B163: 109.31 | C163: 111.142 | D163: 107.597 | E163: 108.286 | F163: 103.839 | G163: 108.547 | H163: 1102.81 | I163: 1100.38 | J163: 1039.47 | K163: 4.18 | L163: 710.174285 | M163: -331.643119 | N163: -170.06737 | O163: 2.665012 | P163: -1.254715 | Q163: 1.180958 | R163: 2.910317 | S163: -1.484811 | T163: -4.757436 | U163: 3.404385 | V163: 0.768346 | W163: 0 | X163: 0
A164: 2020-08-10 | B164: 109.089 | C164: 110.947 | D164: 107.608 | E164: 108.228 | F164: 103.803 | G164: 108.323 | H164: 1100.39 | I164: 1100.28 | J164: 1038.93 | K164: 4.18 | L164: 708.361148 | M164: -332.531934 | N164: -168.532631 | O164: 2.63673 | P164: -2.099658 | Q164: 0.818203 | R164: 2.929741 | S164: -0.645596 | T164: -0.979119 | U164: 0.289351 | V164: 0.428492 | W164: 0 | X164: 0
A165: 2020-08-07 | B165: 109.102 | C165: 110.975 | D165: 107.526 | E165: 108.016 | F165: 103.87 | G165: 108.356 | H165: 1099.92 | I165: 1098.84 | J165: 1039.06 | K165: 4.17 | L165: 710.468064 | M165: -333.309679 | N165: -176.405107 | O165: 2.629104 | P165: -3.475878 | Q165: 1.936859 | R165: 4.184035 | S165: -2.719379 | T165: -1.150348 | U165: 1.280336 | V165: 1.084311 | W165: 0 | X165: 0
A166: 2020-08-06 | B166: 109.095 | C166: 111.073 | D166: 107.696 | E166: 108.041 | F166: 103.885 | G166: 108.576 | H166: 1099.64 | I166: 1100.34 | J166: 1039.03 | K166: 4.13 | L166: 710.051711 | M166: -330.24324 | N166: -180.198002 | O166: 2.593778 | P166: -3.755494 | Q166: 1.261522 | R166: 4.446455 | S166: -1.681346 | T166: -1.623821 | U166: 0.926336 | V166: 0.800429 | W166: 0 | X166: 0
A167: 2020-08-05 | B167: 109.13 | C167: 111.674 | D167: 107.6 | E167: 108.277 | F167: 103.96 | G167: 108.651 | H167: 1099.79 | I167: 1099.17 | J167: 1039.6 | K167: 4.1 | L167: 708.642103 | M167: -323.219964 | N167: -185.686923 | O167: 2.671332 | P167: -0.347103 | Q167: 2.875005 | R167: 1.331487 | S167: -4.486072 | T167: -2.235729 | U167: 2.873952 | V167: -0.069928 | W167: 0 | X167: 0
A168: 2020-08-04 | B168: 109.06 | C168: 111.611 | D168: 107.621 | E168: 108.438 | F168: 103.999 | G168: 108.642 | H168: 1098.89 | I168: 1099.17 | J168: 1078.42 | K168: 4.03 | L168: 704.486253 | M168: -330.606112 | N168: -183.805254 | O168: 2.532288 | P168: -4.520319 | Q168: 1.660282 | R168: 6.844216 | S168: -1.207358 | T168: -1.533471 | U168: 0.739419 | V168: 0.183899 | W168: 0 | X168: 0
A169: 2020-08-03 | B169: 109.117 | C169: 111.21 | D169: 107.638 | E169: 108.399 | F169: 104.322 | G169: 108.601 | H169: 1099.26 | I169: 1099.14 | J169: 1081.44 | K169: 3.92 | L169: 708.233521 | M169: -333.431821 | N169: -204.131205 | O169: 2.432233 | P169: -5.425286 | Q169: 0.355474 | R169: 6.570832 | S169: -0.471482 | T169: -1.168361 | U169: 0.731386 | V169: -0.213502 | W169: 0 | X169: 0
A170: 2020-07-31 | B170: 109.099 | C170: 110.902 | D170: 107.582 | E170: 108.027 | F170: 104.022 | G170: 108.484 | H170: 1098.47 | I170: 1097.95 | J170: 1077.8 | K170: 4.26 | L170: 705.777407 | M170: -331.019513 | N170: -226.272955 | O170: 2.145124 | P170: -4.179088 | Q170: 0.704271 | R170: 5.912641 | S170: 2.118749 | T170: -1.195971 | U170: 0.347714 | V170: 0.168569 | W170: 0 | X170: 0
A171: 2020-07-30 | B171: 109.145 | C171: 110.733 | D171: 107.646 | E171: 107.982 | F171: 104.007 | G171: 108.257 | H171: 1098.73 | I171: 1098.39 | J171: 1077.44 | K171: 4.24 | L171: 704.545184 | M171: -322.984166 | N171: -255.61724 | O171: 2.049621 | P171: -4.472127 | Q171: 1.013343 | R171: 5.236735 | S171: 1.626683 | T171: 0.768605 | U171: 0.78774 | V171: 0.726235 | W171: 0 | X171: 0
A172: 2020-07-29 | B172: 109.052 | C172: 112.304 | D172: 107.765 | E172: 108.735 | F172: 104.091 | G172: 108.761 | H172: 1097.6 | I172: 1099.37 | J172: 1078.06 | K172: 4.15 | L172: 697.473879 | M172: -308.12755 | N172: -282.227487 | O172: 1.985759 | P172: -3.402318 | Q172: -2.480533 | R172: 5.404814 | S172: -0.307122 | T172: -1.363236 | U172: 0.711085 | V172: 0.987186 | W172: 0 | X172: 0
A173: 2020-07-28 | B173: 109.091 | C173: 111.648 | D173: 107.8 | E173: 108.77 | F173: 104.117 | G173: 108.802 | H173: 1097.78 | I173: 1099.51 | J173: 1078.11 | K173: 4.11 | L173: 699.824368 | M173: -301.384105 | N173: -299.718689 | O173: 1.99238 | P173: -1.556473 | Q173: 0.73556 | R173: 2.513775 | S173: -1.298699 | T173: -1.996403 | U173: 1.303307 | V173: 0.203161 | W173: 0 | X173: 0
A174: 2020-07-27 | B174: 109.164 | C174: 112.093 | D174: 107.977 | E174: 109.07 | F174: 104.131 | G174: 108.99 | H174: 1098.31 | I174: 1101.08 | J174: 1078.04 | K174: 4.03 | L174: 693.554406 | M174: -297.310285 | N174: -303.745455 | O174: 1.99298 | P174: -4.87879 | Q174: 0.017271 | R174: 3.734451 | S174: -0.809852 | T174: 0.499656 | U174: 1.056115 | V174: 0.990406 | W174: 0 | X174: 0
A175: 2020-07-24 | B175: 109.164 | C175: 112.081 | D175: 107.908 | E175: 109.006 | F175: 104.147 | G175: 108.889 | H175: 1097.71 | I175: 1099.77 | J175: 1077.56 | K175: 3.96 | L175: 693.727647 | M175: -293.405096 | N175: -299.474634 | O175: 2.078208 | P175: -2.829579 | Q175: -0.176915 | R175: 5.301479 | S175: -1.553191 | T175: -0.322394 | U175: 1.235429 | V175: 1.063101 | W175: 0 | X175: 0
A176: 2020-07-23 | B176: 109.133 | C176: 112.418 | D176: 108.122 | E176: 109.297 | F176: 104.137 | G176: 108.99 | H176: 1097.19 | I176: 1101.7 | J176: 1077.25 | K176: 4.03 | L176: 694.623001 | M176: -285.475417 | N176: -292.532421 | O176: 2.186818 | P176: -0.019384 | Q176: 2.099523 | R176: 0.705504 | S176: -2.888251 | T176: -1.354134 | U176: 2.37204 | V176: 0.194819 | W176: 0 | X176: 0
A177: 2020-07-22 | B177: 109.089 | C177: 112.472 | D177: 108.307 | E177: 109.258 | F177: 104.151 | G177: 109.032 | H177: 1096.55 | I177: 1103.34 | J177: 1077.18 | K177: 4.11 | L177: 697.624556 | M177: -286.826697 | N177: -281.92116 | O177: 2.306551 | P177: -0.696739 | Q177: 2.251324 | R177: 1.636606 | S177: -4.285233 | T177: -1.286718 | U177: 2.49614 | V177: -0.213466 | W177: 0 | X177: 0
A178: 2020-07-21 | B178: 109.223 | C178: 112.535 | D178: 108.819 | E178: 109.234 | F178: 104.146 | G178: 108.952 | H178: 1097.69 | I178: 1108.26 | J178: 1076.92 | K178: 4.12 | L178: 701.391299 | M178: -296.304531 | N178: -273.390606 | O178: 2.421058 | P178: -0.103208 | Q178: 3.377561 | R178: 2.942545 | S178: -4.646486 | T178: -2.215816 | U178: 3.099192 | V178: 0.011423 | W178: 0 | X178: 0
A179: 2020-07-20 | B179: 109.335 | C179: 111.99 | D179: 108.58 | E179: 109.173 | F179: 104.106 | G179: 108.857 | H179: 1098.61 | I179: 1105.66 | J179: 1076.3 | K179: 4.12 | L179: 707.176711 | M179: -304.420295 | N179: -269.180178 | O179: 2.426366 | P179: -0.072189 | Q179: 3.264463 | R179: 0.036327 | S179: -3.708817 | T179: -2.325835 | U179: 2.655534 | V179: 0.0563 | W179: 0 | X179: 0
A180: 2020-07-17 | B180: 109.352 | C180: 111.347 | D180: 108.725 | E180: 108.849 | F180: 104.172 | G180: 108.943 | H180: 1098.17 | I180: 1106.49 | J180: 1076.33 | K180: 4.14 | L180: 714.026083 | M180: -318.038522 | N180: -261.45197 | O180: 2.468834 | P180: -0.389677 | Q180: 1.942559 | R180: 0.239639 | S180: -2.48488 | T180: -0.923247 | U180: 2.89187 | V180: -0.906863 | W180: 0 | X180: 0
A181: 2020-07-16 | B181: 109.498 | C181: 111.339 | D181: 108.537 | E181: 108.771 | F181: 104.182 | G181: 108.865 | H181: 1099.43 | I181: 1104.4 | J181: 1076.21 | K181: 4.13 | L181: 721.14196 | M181: -331.551225 | N181: -226.619157 | O181: 2.694015 | P181: 0.114001 | Q181: 1.975336 | R181: 0.485733 | S181: -3.703437 | T181: -1.859979 | U181: 3.361035 | V181: -0.476547 | W181: 0 | X181: 0
A182: 2020-07-15 | B182: 109.498 | C182: 111.919 | D182: 108.937 | E182: 108.815 | F182: 104.165 | G182: 108.971 | H182: 1099.23 | I182: 1108.2 | J182: 1075.83 | K182: 4.25 | L182: 708.681504 | M182: -323.065178 | N182: -158.750037 | O182: 2.949443 | P182: -0.06612 | Q182: 5.147215 | R182: 0.878145 | S182: -7.368713 | T182: -3.477849 | U182: 4.019505 | V182: 0.719473 | W182: 0 | X182: 0
A183: 2020-07-14 | B183: 109.445 | C183: 112.043 | D183: 108.508 | E183: 109.15 | F183: 104.206 | G183: 108.8 | H183: 1098.49 | I183: 1103.7 | J183: 1076.03 | K183: 4.32 | L183: 707.958135 | M183: -325.577954 | N183: -147.474555 | O183: 3.058947 | P183: -0.022857 | Q183: 4.305887 | R183: 1.358152 | S183: -6.370079 | T183: -3.438411 | U183: 3.647664 | V183: 1.397303 | W183: 0 | X183: 0
A184: 2020-07-13 | B184: 109.485 | C184: 112.141 | D184: 108.826 | E184: 109.025 | F184: 104.309 | G184: 108.883 | H184: 1098.69 | I184: 1106.67 | J184: 1076.85 | K184: 4.35 | L184: 709.854847 | M184: -326.296329 | N184: -124.900125 | O184: 3.354061 | P184: 0.017789 | Q184: 3.223317 | R184: 0.807833 | S184: -3.870677 | T184: -3.314638 | U184: 3.435592 | V184: 1.158488 | W184: 0 | X184: 0
A185: 2020-07-10 | B185: 109.659 | C185: 111.801 | D185: 108.914 | E185: 108.941 | F185: 104.213 | G185: 108.552 | H185: 1099.83 | I185: 1106.93 | J185: 1075.25 | K185: 4.34 | L185: 710.484055 | M185: -338.580472 | N185: -122.569375 | O185: 3.077041 | P185: -2.211507 | Q185: 0.552878 | R185: 2.903627 | S185: 0.910297 | T185: -1.583269 | U185: 0.448722 | V185: 0.7817 | W185: 0 | X185: 0
A186: 2020-07-09 | B186: 109.802 | C186: 112.099 | D186: 108.818 | E186: 109.204 | F186: 104.318 | G186: 108.729 | H186: 1101.05 | I186: 1105.76 | J186: 1076.09 | K186: 4.28 | L186: 709.418178 | M186: -344.605827 | N186: -127.595815 | O186: 2.921272 | P186: -4.446633 | Q186: 0.282302 | R186: 5.312366 | S186: -0.744933 | T186: -1.217159 | U186: 0.051364 | V186: 0.010595 | W186: 0 | X186: 0
A187: 2020-07-08 | B187: 109.474 | C187: 111.042 | D187: 108.66 | E187: 108.638 | F187: 104.489 | G187: 108.677 | H187: 1097.57 | I187: 1103.98 | J187: 1077.59 | K187: 4.3 | L187: 711.596885 | M187: -344.263627 | N187: -132.975743 | O187: 2.894944 | P187: -2.549932 | Q187: 0.580083 | R187: 4.644277 | S187: 1.479231 | T187: -2.532286 | U187: 0.017953 | V187: 1.222741 | W187: 0 | X187: 0
A188: 2020-07-07 | B188: 110.071 | C188: 110.418 | D188: 108.765 | E188: 108.404 | F188: 104.558 | G188: 108.321 | H188: 1103.34 | I188: 1104.82 | J188: 1078.06 | K188: 4.25 | L188: 708.120586 | M188: -340.352687 | N188: -137.9464 | O188: 2.618125 | P188: -3.121047 | Q188: -0.021466 | R188: 5.65738 | S188: -0.910695 | T188: -3.993617 | U188: 1.253928 | V188: 1.96242 | W188: 0 | X188: 0
A189: 2020-07-06 | B189: 110.183 | C189: 110.161 | D189: 108.483 | E189: 107.507 | F189: 104.624 | G189: 107.605 | H189: 1104.26 | I189: 1101.79 | J189: 1078.51 | K189: 4.11 | L189: 714.33285 | M189: -340.127478 | N189: -146.942838 | O189: 2.546999 | P189: -1.584279 | Q189: 3.872254 | R189: 2.030298 | S189: -2.334103 | T189: -1.403316 | U189: 1.19972 | V189: 0.770443 | W189: 0 | X189: 0
A190: 2020-07-03 | B190: 110.865 | C190: 110.374 | D190: 108.856 | E190: 107.567 | F190: 104.602 | G190: 108.132 | H190: 1110.47 | I190: 1104.9 | J190: 1077.65 | K190: 4.05 | L190: 708.653521 | M190: -335.561425 | N190: -151.415506 | O190: 2.358716 | P190: -5.195951 | Q190: 0.417077 | R190: 6.426078 | S190: -2.442827 | T190: -1.748137 | U190: 1.517009 | V190: 1.618021 | W190: 0 | X190: 0
A191: 2020-07-02 | B191: 111.195 | C191: 111.579 | D191: 109.152 | E191: 108.8 | F191: 104.652 | G191: 108.395 | H191: 1113.57 | I191: 1107.66 | J191: 1077.94 | K191: 4.22 | L191: 705.664236 | M191: -315.114783 | N191: -145.023185 | O191: 2.940543 | P191: 0.012113 | Q191: 1.53457 | R191: 0.630969 | S191: -1.702934 | T191: -1.718156 | U191: 4.208218 | V191: 0.617078 | W191: 0 | X191: 0
A192: 2020-06-30 | B192: 111.235 | C192: 111.624 | D192: 108.846 | E192: 108.953 | F192: 104.675 | G192: 108.031 | H192: 1113.56 | I192: 1104.18 | J192: 1077.75 | K192: 4.38 | L192: 710.721933 | M192: -319.637199 | N192: -119.157438 | O192: 3.091166 | P192: -0.30584 | Q192: 3.344166 | R192: 0.850256 | S192: -4.65999 | T192: -2.530325 | U192: 2.003337 | V192: 1.483289 | W192: 0 | X192: 0
A193: 2020-06-29 | B193: 111.296 | C193: 112.853 | D193: 108.942 | E193: 109.824 | F193: 104.604 | G193: 108.694 | H193: 1113.97 | I193: 1104.94 | J193: 1076.82 | K193: 4.51 | L193: 699.550311 | M193: -306.999604 | N193: -106.762351 | O193: 3.529022 | P193: 0.253438 | Q193: 1.991554 | R193: 0.72388 | S193: -1.832974 | T193: -5.614947 | U193: 2.962656 | V193: 2.031145 | W193: 0 | X193: 0
A194: 2020-06-26 | B194: 111.406 | C194: 112.8 | D194: 108.721 | E194: 109.973 | F194: 104.683 | G194: 108.791 | H194: 1114.46 | I194: 1102.1 | J194: 1076.98 | K194: 4.51 | L194: 702.806112 | M194: -309.283671 | N194: -101.396476 | O194: 3.766768 | P194: -0.644437 | Q194: 2.578685 | R194: 3.703212 | S194: -5.873833 | T194: -5.362751 | U194: 2.025991 | V194: 2.273478 | W194: 0 | X194: 0
A195: 2020-06-25 | B195: 111.477 | C195: 112.926 | D195: 108.258 | E195: 109.918 | F195: 104.656 | G195: 108.891 | H195: 1114.97 | I195: 1097.27 | J195: 1076.5 | K195: 4.52 | L195: 702.895529 | M195: -306.972674 | N195: -91.364792 | O195: 3.859298 | P195: 0.009278 | Q195: 2.533952 | R195: 0.419869 | S195: -2.864519 | T195: -5.230414 | U195: 2.985844 | V195: 2.006077 | W195: 0 | X195: 0
A196: 2020-06-23 | B196: 111.868 | C196: 113.522 | D196: 108.235 | E196: 110.41 | F196: 104.664 | G196: 108.933 | H196: 1160.38 | I196: 1096.62 | J196: 1076.15 | K196: 4.42 | L196: 701.153158 | M196: -309.553428 | N196: -88.33613 | O196: 4.133198 | P196: 0.036937 | Q196: 2.413108 | R196: -0.023934 | S196: -4.277129 | T196: -3.564718 | U196: 3.482554 | V196: 1.860507 | W196: 0 | X196: 0
A197: 2020-06-22 | B197: 111.991 | C197: 113.866 | D197: 108.609 | E197: 110.305 | F197: 104.666 | G197: 108.959 | H197: 1161.38 | I197: 1100.16 | J197: 1075.96 | K197: 4.39 | L197: 703.497695 | M197: -310.420119 | N197: -85.742108 | O197: 4.291517 | P197: -0.018997 | Q197: 0.954378 | R197: 1.171378 | S197: -1.795162 | T197: -4.22493 | U197: 3.753447 | V197: 1.480438 | W197: 0 | X197: 0
A198: 2020-06-19 | B198: 112.034 | C198: 114.441 | D198: 108.651 | E198: 111.081 | F198: 104.74 | G198: 109.247 | H198: 1161.12 | I198: 1099.96 | J198: 1076.06 | K198: 4.69 | L198: 682.970846 | M198: -308.368043 | N198: -71.174845 | O198: 3.924844 | P198: -3.498338 | Q198: -3.58501 | R198: 7.377344 | S198: -0.721421 | T198: -2.299165 | U198: -1.986894 | V198: 0.014146 | W198: 0 | X198: 0
A199: 2020-06-18 | B199: 112.012 | C199: 114.121 | D199: 107.93 | E199: 110.807 | F199: 104.682 | G199: 108.811 | H199: 1160.67 | I199: 1092.54 | J199: 1075.27 | K199: 4.75 | L199: 689.530909 | M199: -310.118255 | N199: -81.895013 | O199: 4.021993 | P199: -4.076646 | Q199: -4.4249 | R199: 7.994315 | S199: 3.824396 | T199: -1.895937 | U199: 0.471609 | V199: 0.664748 | W199: 0 | X199: 0
A200: 2020-06-17 | B200: 112.092 | C200: 113.952 | D200: 108.81 | E200: 110.702 | F200: 104.706 | G200: 108.711 | H200: 1161.24 | I200: 1101.13 | J200: 1075.3 | K200: 4.83 | L200: 691.876148 | M200: -307.53224 | N200: -87.993185 | O200: 4.023556 | P200: -4.28624 | Q200: -4.918789 | R200: 7.728612 | S200: 1.874964 | T200: -3.818699 | U200: -0.403389 | V200: 1.359109 | W200: 0 | X200: 0
... 748 more rows

Sheet Scenario
A1: Номер квартала | B1: Доходность облигаций федерального займа (относительное изменение, % кв/кв)* | E1: RUONIA (относительное изменение,%, кв/кв) <*>
B2: 2Y | C2: 5Y | D2: 10Y
A3: 1 | B3: 1.27 | C3: 0.42 | D3: -0.01 | E3: 1.12
A4: 2 | B4: 44.24 | C4: 55.6 | D4: 42.37 | E4: 5.1
A5: 3 | B5: -2.84 | C5: -3.61 | D5: -3.02 | E5: 2.03
A6: 4 | B6: -10.86 | C6: -12.97 | D6: -10.77 | E6: 0.44
A7: 5 | B7: -6.26 | C7: -8.86 | D7: -8.17 | E7: -0.97
A8: 6 | B8: -4.13 | C8: -6.7 | D8: -6.53 | E8: 0.25
A9: 7 | B9: -2.64 | C9: -4.41 | D9: -4.29 | E9: -0.51
A10: 8 | B10: -1.67 | C10: -2.83 | D10: -2.75 | E10: -0.14
A11: 9 | B11: -1.04 | C11: -1.79 | D11: -1.74 | E11: 0.08
A12: 10 | B12: -0.65 | C12: -1.12 | D12: -1.09 | E12: -0.23
A13: 11 | B13: -0.4 | C13: -0.7 | D13: -0.67 | E13: -0.23
A14: 12 | B14: -0.25 | C14: -0.43 | D14: -0.42 | E14: 0.08
A15: 13 | B15: -0.15 | C15: -0.27 | D15: -0.26 | E15: 0.23
A16: 14 | B16: -0.09 | C16: -0.16 | D16: -0.16 | E16: 0.28
A17: 15 | B17: -0.06 | C17: -0.1 | D17: -0.1 | E17: 0.27
A18: 16 | B18: -0.04 | C18: -0.06 | D18: -0.06 | E18: 0.24
A19: 17 | B19: -0.02 | C19: -0.04 | D19: -0.04 | E19: 0.18
A20: 18 | B20: -0.01 | C20: -0.02 | D20: -0.02 | E20: 0.11
A21: 19 | B21: -0.01 | C21: -0.01 | D21: -0.01 | E21: 0.01
A22: 20 | B22: -0.01 | C22: -0.01 | D22: -0.01 | E22: -0.02

Sheet Bonds
A1: ISIN | B1: GRN | C1: BeginEventPer | D1: EventDate | E1: RT | F1: Pay1Bond | G1: CURR | H1: Call option | J1: Надбавка к ставке | K1: 2015-07-01 | L1: 2015-12-30 | M1: 2016-06-29 | N1: 2016-12-28 | O1: 2017-06-28 | P1: 2017-12-27 | Q1: 2018-06-27 | R1: 2018-12-26 | S1: 2019-06-26 | T1: 2019-12-25 | U1: 2020-06-24 | V1: 2020-12-23 | W1: 2021-06-23 | X1: 2021-12-22 | Y1: 2022-06-22 | Z1: 2022-12-21 | AA1: 2023-06-21 | AB1: 2023-12-20 | AC1: 2024-06-19 | AD1: 2024-12-18 | AE1: 2025-06-18 | AF1: 2025-12-17 | AG1: 2026-06-17 | AH1: 2026-12-16 | AI1: 2027-06-16 | AJ1: 2027-12-15 | AK1: 2028-06-14 | AL1: 2028-12-13 | AM1: 2029-06-13 | AN1: 2029-12-12 | AO1: 2030-06-12 | AP1: 2030-12-11 | AQ1: 2031-06-11 | AR1: 2031-12-10 | AS1: 2032-06-09 | AT1: 2032-12-08 | AU1: 2033-06-08 | AV1: 2033-12-07 | AW1: 2034-06-07 | AX1: 2034-12-06 | AY1: 2034-12-06
A2: RU000A0JV4Q1 | B2: 29010RMFS | C2: 2014-12-31 | D2: 2034-12-06 | E2: 100 | F2: 1000 | G2: RUB | H2: 2018-02-16 | I2: 182 | J2: 1.6 | K2: 54.6 | L2: 80.43 | M2: 64.02 | N2: 62.03 | O2: 58.89 | P2: 56.44 | Q2: 49.46 | R2: 43.18 | S2: 43.88 | T2: 45.77 | U2: 41.93 | V2: 36.8 | W2: 28.72 | X2: 0 | Y2: 0 | Z2: 0 | AA2: 0 | AB2: 0 | AC2: 0 | AD2: 0 | AE2: 0 | AF2: 0 | AG2: 0 | AH2: 0 | AI2: 0 | AJ2: 0 | AK2: 0 | AL2: 0 | AM2: 0 | AN2: 0 | AO2: 0 | AP2: 0 | AQ2: 0 | AR2: 0 | AS2: 0 | AT2: 0 | AU2: 0 | AV2: 0 | AW2: 0 | AX2: 0 | AY2: 1000
A3: RU000A0ZYUB7 | B3: 26225RMFS | C3: 2018-02-21 | D3: 2034-05-10 | E3: 100 | F3: 1000 | G3: RUB
K4: 2015-04-22 | L4: 2015-10-21 | M4: 2016-04-20 | N4: 2016-10-19 | O4: 2017-04-19 | P4: 2017-10-18 | Q4: 2018-04-18 | R4: 2018-10-17 | S4: 2019-04-17 | T4: 2019-10-16 | U4: 2020-04-15 | V4: 2020-10-14 | W4: 2021-04-14 | X4: 2021-10-13 | Y4: 2022-04-13 | Z4: 2022-10-12 | AA4: 2023-04-12 | AB4: 2023-10-11 | AC4: 2024-04-10 | AD4: 2024-10-09 | AE4: 2025-04-09 | AF4: 2025-10-08 | AG4: 2026-04-08 | AH4: 2026-10-07 | AI4: 2027-04-07 | AJ4: 2027-10-06 | AK4: 2028-04-05 | AL4: 2028-10-04 | AM4: 2029-04-04 | AN4: 2029-10-03 | AO4: 2029-10-03
A5: RU000A0JV4P3 | B5: 29008RMFS | C5: 2014-12-31 | D5: 2029-10-03 | E5: 100 | F5: 1000 | G5: RUB | H5: 2018-02-16 | I5: 182 | J5: 1.4 | K5: 32.99 | L5: 77.44 | M5: 66.22 | N5: 62.13 | O5: 59.24 | P5: 57.09 | Q5: 51.01 | R5: 44.08 | S5: 42.13 | T5: 44.13 | U5: 43.28 | V5: 37.65 | W5: 30.32 | X5: 0 | Y5: 0 | Z5: 0 | AA5: 0 | AB5: 0 | AC5: 0 | AD5: 0 | AE5: 0 | AF5: 0 | AG5: 0 | AH5: 0 | AI5: 0 | AJ5: 0 | AK5: 0 | AL5: 0 | AM5: 0 | AN5: 0 | AO5: 1000
A6: RU000A0ZYUA9 | B6: 26224RMFS | C6: 2018-02-21 | D6: 2029-05-23 | E6: 100 | F6: 1000 | G6: RUB
K7: 2015-02-11 | L7: 2015-08-12 | M7: 2016-02-10 | N7: 2016-08-10 | O7: 2017-02-08 | P7: 2017-08-09 | Q7: 2018-02-07 | R7: 2018-08-08 | S7: 2019-02-06 | T7: 2019-08-07 | U7: 2020-02-05 | V7: 2020-08-05 | W7: 2021-02-03 | X7: 2021-08-04 | Y7: 2022-02-02 | Z7: 2022-08-03 | AA7: 2023-02-01 | AB7: 2023-08-02 | AC7: 2024-01-31 | AD7: 2024-07-31 | AE7: 2025-01-29 | AF7: 2025-01-29
A8: RU000A0JV4L2 | B8: 29006RMFS | C8: 2014-12-31 | D8: 2025-01-29 | E8: 100 | F8: 1000 | G8: RUB | H8: 2019-10-10 | I8: 182 | J8: 1.2 | K8: 12.14 | L8: 63.13 | M8: 72.2 | N8: 61.43 | O8: 59.34 | P8: 56.89 | Q8: 52.9 | R8: 45.48 | S8: 41.14 | T8: 42.28 | U8: 43.53 | V8: 38.64 | W8: 32.66 | X8: 26.78 | Y8: 0 | Z8: 0 | AA8: 0 | AB8: 0 | AC8: 0 | AD8: 0 | AE8: 0 | AF8: 1000
A9: RU000A0JXQF2 | B9: 26222RMFS | C9: 2017-05-03 | D9: 2024-10-16 | E9: 100 | F9: 1000 | G9: RUB

Sheet SQL
A1: SELECT TFL1.[TRADEDATE]
A2: ,TFL1.[WAPRICE] as [29010RMFS], IsNull(TFIX1.[WAPRICE],0) as [26225RMFS]
B3: , IsNull(TFL2.[WAPRICE],0) as [29008RMFS], IsNull(TFIX2.[WAPRICE],0) as [26224RMFS]
B4: , IsNull(TFL3.[WAPRICE],0) as [29006RMFS], IsNull(TFIX3.[WAPRICE],0) as [26222RMFS]
B5: ,TFL1.[WAPRICE]*10.0 + TFL1.ACCINT as [29010RUB]
B6: , IsNull(TFL2.[WAPRICE],0)*10.0 + TFL2.ACCINT as [29008RUB]
B7: , IsNull(TFL3.[WAPRICE],0)*10.0 + TFL3.ACCINT as [29006RUB]
B8: -- ,[REGNUMBER],[VALUE],[FACEVALUE],[ACCINT],[CLOSE],[WAPRICE] ,[YIELDATWAP],[YIELDCLOSE],[DURATION],[MATDATE]
B9: ,IsNull([ZN],
E10: (SELECT max([ZN]) FROM [BANKS].[dbo].[CBR_IND] as CBRT1 where [IDIND]=1 and [DT]=((SELECT MAX(DT) FROM [BANKS].[dbo].[CBR_IND] as CBRT2 where CBRT2.[IDIND]=1 and CBRT2.DT<TFL1.[TRADEDATE] and CBRT2.ZN is not null)))
D11: ) as RUONIA
B12: ,[B1],[B2],[B3],[T1],[G1],[G2],[G3],[G4],[G5],[G6],[G7],[G8],[G9]
A14: FROM
C15: (select [TRADEDATE],[WAPRICE],ACCINT from [BANKS].[dbo].[MOEX_SEC] where [REGNUMBER]='29010RMFS' and [BOARDID]='TQOB') as TFL1
C16: left outer join
C17: (select [TRADEDATE],[WAPRICE] from [BANKS].[dbo].[MOEX_SEC] where [REGNUMBER]='26225RMFS' and [BOARDID]='TQOB') as TFIX1
C18: on TFL1.[TRADEDATE]=TFIX1.[TRADEDATE]
C19: left outer join
C20: (select [TRADEDATE],[WAPRICE],ACCINT from [BANKS].[dbo].[MOEX_SEC] where [REGNUMBER]='29008RMFS' and [BOARDID]='TQOB') as TFL2
C21: on TFL1.[TRADEDATE]=TFL2.[TRADEDATE]
C22: left outer join
C23: (select [TRADEDATE],[WAPRICE] from [BANKS].[dbo].[MOEX_SEC] where [REGNUMBER]='26224RMFS' and [BOARDID]='TQOB') as TFIX2
C24: on TFL1.[TRADEDATE]=TFIX2.[TRADEDATE]
C25: left outer join
C26: (select [TRADEDATE],[WAPRICE],ACCINT from [BANKS].[dbo].[MOEX_SEC] where [REGNUMBER]='29006RMFS' and [BOARDID]='TQOB') as TFL3
C27: on TFL1.[TRADEDATE]=TFL3.[TRADEDATE]
C28: left outer join
C29: (select [TRADEDATE],[WAPRICE] from [BANKS].[dbo].[MOEX_SEC] where [REGNUMBER]='26222RMFS' and [BOARDID]='TQOB') as TFIX3
C30: on TFL1.[TRADEDATE]=TFIX3.[TRADEDATE]
C32: left outer join
C33: (SELECT [TRADEDATE],[B1],[B2],[B3],[T1],[G1],[G2],[G3],[G4],[G5],[G6],[G7],[G8],[G9] FROM [BANKS].[dbo].[MOEX_GLINE]) as GTAB
C34: on TFL1.[TRADEDATE]=GTAB.[TRADEDATE]
C35: left outer join
C36: (SELECT [DT],[IDIND],[ZN] FROM [BANKS].[dbo].[CBR_IND] where [IDIND]=1) RTAB
C37: on TFL1.[TRADEDATE]=RTAB.[DT]
A39: order by [TRADEDATE] desc
